NUMERO_MANDATO;RIGA_MANDATO;QUIET;IMPORTO_RIGA;IMPORTO_MANDATO;BENEFICIARIO;CIG;TITOLO_PAGAMENTO;DATA_MANDATO;CAPITOLO;ARTICOLO;NUMERO_IMPEGNO;TITOLO;DESCR_TITOLO;LIVELLO_II;DESCR_LIVELLO_II;LIVELLO_III;DESCR_LIVELLO_III;LIVELLO_IV;DESCR_LIVELLO_IV;LIVELLO_V;DESCR_LIVELLO_V;DATA_PAG_EFF;
2;1;26;"1.616,26";"1.616,26";MINISTERO DELL'ECONOMIA E DELLE FINANZE; ;saldo iva dicembre 2019;13-01-2020;1070;0;748;1;Spese correnti;10;Altre spese correnti;3;Versamenti IVA a debito;1;Versamenti IVA a debito per le gestioni commerciali;1;Versamenti IVA a debito per le gestioni commerciali;14-01-2020;
3;1;34;"34,30";"34,30";CATTAZZO MICHELE - ECONOMO COMUNALE; ;Rimborso bollette;13-01-2020;50;0;742;1;Spese correnti;3;Acquisto di beni e servizi;2;Acquisto di servizi;2;"Organizzazione eventi, pubblicita` e servizi per trasferta";1;Rimborso per viaggio e trasloco;16-01-2020;
4;1;35;"9,90";"9,90";CATTAZZO MICHELE - ECONOMO COMUNALE; ;Rimborso bollette;13-01-2020;105;0;740;1;Spese correnti;3;Acquisto di beni e servizi;2;Acquisto di servizi;16;Servizi amministrativi;2;Spese postali;16-01-2020;
6;1;37;"22,89";"22,89";CATTAZZO MICHELE - ECONOMO COMUNALE; ;Rimborso bollette;13-01-2020;265;0;745;1;Spese correnti;3;Acquisto di beni e servizi;1;Acquisto di beni;2;Altri beni di consumo;1;"Carta, cancelleria e stampati";16-01-2020;
8;1;39;"281,82";"281,82";CATTAZZO MICHELE - ECONOMO COMUNALE; ;Rimborso bollette;13-01-2020;377;0;744;1;Spese correnti;3;Acquisto di beni e servizi;1;Acquisto di beni;2;Altri beni di consumo;5;Accessori per uffici e alloggi;16-01-2020;
9;1;11;"27,28";"27,28";TELECOM ITALIA;Z402525AA0;SALDO Fatt.n. 8E00863182  del 07/10/2019 6BIM 2019;13-01-2020;113;0;159;1;Spese correnti;3;Acquisto di beni e servizi;2;Acquisto di servizi;5;Utenze e canoni;1;Telefonia fissa;13-01-2020;
10;1;12;"15,84";"15,84";TELECOM ITALIA;Z402525AA0;SALDO Fatt.n. 8E00865934  del 07/10/2019 6BIM 2019;13-01-2020;113;0;161;1;Spese correnti;3;Acquisto di beni e servizi;2;Acquisto di servizi;5;Utenze e canoni;1;Telefonia fissa;13-01-2020;
11;1;13;"9,69";"9,69";TELECOM ITALIA;Z402525AA0;SALDO Fatt.n. 8E00861118  del 07/10/2019 6BIM 2019;13-01-2020;113;0;160;1;Spese correnti;3;Acquisto di beni e servizi;2;Acquisto di servizi;5;Utenze e canoni;1;Telefonia fissa;13-01-2020;
12;1;14;"14,96";"14,96";TELECOM ITALIA;Z402525AA0;SALDO Fatt.n. 8E00862770  del 07/10/2019 6BIM 2019;13-01-2020;113;0;158;1;Spese correnti;3;Acquisto di beni e servizi;2;Acquisto di servizi;5;Utenze e canoni;1;Telefonia fissa;13-01-2020;
13;1;15;"25,00";"25,00";TELECOM ITALIA;Z402525AA0;SALDO Fatt.n. 8E00867085  del 07/10/2019 6BIM 2019;13-01-2020;583;0;164;1;Spese correnti;3;Acquisto di beni e servizi;2;Acquisto di servizi;5;Utenze e canoni;1;Telefonia fissa;13-01-2020;
14;1;16;"11,62";"11,62";TELECOM ITALIA;Z402525AA0;SALDO Fatt.n. 8E00862054  del 07/10/2019 6BIM 2019;13-01-2020;543;0;163;1;Spese correnti;3;Acquisto di beni e servizi;2;Acquisto di servizi;5;Utenze e canoni;1;Telefonia fissa;13-01-2020;
15;1;17;"15,25";"15,25";TELECOM ITALIA;Z402525AA0;SALDO Fatt.n. 8E00863554  del 07/10/2019 6BIM 2019;13-01-2020;213;0;162;1;Spese correnti;3;Acquisto di beni e servizi;2;Acquisto di servizi;5;Utenze e canoni;1;Telefonia fissa;13-01-2020;
18;1;42;"5,88";"5,88";COMUNE DI LAVAGNO; ;RIMBORSO SPESE DI NOTIFICA ATTI EFFETTUATE DA PARTE DI ALTRI COMUNI - RIF. MARCHESINI CLAUDIO - VS. PROT. N. 21529-2019;20-01-2020;843;0;280;1;Spese correnti;3;Acquisto di beni e servizi;2;Acquisto di servizi;3;Aggi di riscossione;999;Altri aggi di riscossione n.a.c.;20-01-2020;
19;1;43;"9,00";"9,00";COMUNE DI LAVAGNO; ;"RIMBORSO SPESE DI NOTIFICA ATTI EFFETTUATE DA PARTE DI ALTRI COMUNI - RIF. PASETTO DAVIDE - JOBBY SOC.COOP. - AVVISO TARI N. 209/2019 - VS, PROT. 113/2020";20-01-2020;843;0;280;1;Spese correnti;3;Acquisto di beni e servizi;2;Acquisto di servizi;3;Aggi di riscossione;999;Altri aggi di riscossione n.a.c.;20-01-2020;
22;1;45;"6.530,21";"6.530,21";CONSIGLIO DI BACINO VERONA NORD;Z6C29791C0;ECOLOGIA - CONTRIBUZIONE DEI COMUNI CONSORZIATI PER LANNO 2019 - IMPEGNO DI SPESA E LIQUIDAZIONE A FAVORE DEL CONSIGLIO DI BACINO VERONA NORD;20-01-2020;841;0;662;1;Spese correnti;4;Trasferimenti correnti;1;Trasferimenti correnti a Amministrazioni Pubbliche;2;Trasferimenti correnti a Amministrazioni Locali;18;Trasferimenti correnti a Consorzi di enti locali;20-01-2020;
23;1;46;"400,00";"400,00";ASSOCIAZIONE COLLE PER LA FAMIGLIA;Z362A7B0B2;"PROGETTO DI ASCOLTO GENITORI-FIGLI, APPROVATO CON DGC 107/2019. PROVVEDIMENTI DI SPESA.";20-01-2020;933;0;593;1;Spese correnti;3;Acquisto di beni e servizi;2;Acquisto di servizi;2;"Organizzazione eventi, pubblicita` e servizi per trasferta";5;Organizzazione e partecipazione a manifestazioni e convegni;20-01-2020;
24;1;47;"14.000,00";"14.000,00";FONDAZIONE DON GAETANO PROVOLI - SCUOLA PARITARIA PER L; ;EROGAZIONE CONTRIBUTO STRAORDINARIO ALLA SCUOLA MATERNA PARITARIA DON PROVOLI A SOSTEGNO DEI COSTI PER IL PERSONALE DEDICATO AGLI ALUNNI CON DISABILITA.;20-01-2020;480;0;731;1;Spese correnti;4;Trasferimenti correnti;4;Trasferimenti correnti a Istituzioni Sociali Private;1;Trasferimenti correnti a Istituzioni Sociali Private;1;Trasferimenti correnti a Istituzioni Sociali Private;20-01-2020;
25;1;48;"2.300,00";"2.300,00";PARROCCHIA S.PIETRO APOSTOLO (CALDIERO); ;EROGAZIONE CONTRIBUTO ECONOMICO ALLA PARROCCHIA DI CALDIERO PER LE ATTIVITA ESTIVE DI GREST 2019.;20-01-2020;891;2;728;1;Spese correnti;4;Trasferimenti correnti;4;Trasferimenti correnti a Istituzioni Sociali Private;1;Trasferimenti correnti a Istituzioni Sociali Private;1;Trasferimenti correnti a Istituzioni Sociali Private;20-01-2020;
26;1;49;"12,38";"12,38";COMUNE DI GOITO; ;RIMBORSO SPESE DI NOTIFICA ATTI EFFETTUATE DA PARTE DI ALTRI COMUNI - RIF. NOTIFICA N. 235 MAGRO GIANCARLO - TARI 2014-2015 - NOTIFICA IL 20/12/2019;20-01-2020;843;0;280;1;Spese correnti;3;Acquisto di beni e servizi;2;Acquisto di servizi;3;Aggi di riscossione;999;Altri aggi di riscossione n.a.c.;20-01-2020;
27;1;50;"15.664,00";"15.664,00";ARDEA SRL;Z9F2429A12;Fatt.n. 2 del 08/01/2020;20-01-2020;464;0;376;1;Spese correnti;3;Acquisto di beni e servizi;2;Acquisto di servizi;7;Utilizzo di beni di terzi;1;Locazione di beni immobili;20-01-2020;
28;1;61;"812,03";"812,03";STUDIO GIALLO SRL;ZDB264042A;Fatt.n. 406/11 del 19/12/2019 FATTURA 406/11 del 19/12/19;22-01-2020;378;0;157;1;Spese correnti;3;Acquisto di beni e servizi;2;Acquisto di servizi;16;Servizi amministrativi;999;Altre spese per servizi amministrativi;23-01-2020;
29;1;62;"6.098,78";"6.098,78";BIASIOLO OMAR;ZA62AAF9BB;SALDO Fatt.n. 40  del 16/12/2019 FATTURA;22-01-2020;1092;3;634;2;Spese in conto capitale;2;Investimenti fissi lordi e acquisto di terreni;1;Beni materiali;9;Beni immobili;19;Fabbricati ad uso strumentale;23-01-2020;
30;1;63;"1.877,82";"1.877,82";ZACCARELLA GAETANO;Z0827BDA99;SALDO Fatt.n. 30/001  del 11/11/2019 FATTURA;22-01-2020;1185;0;156;2;Spese in conto capitale;2;Investimenti fissi lordi e acquisto di terreni;1;Beni materiali;9;Beni immobili;12;Infrastrutture stradali;23-01-2020;
31;1;78;"3.825,00";"3.825,00";AMMINISTRATORI COMUNALI; ;INDENNITA DI CARICA SPETTANTE PER IL MESE DI GENNAIO 2020;22-01-2020;10;0;4;1;Spese correnti;3;Acquisto di beni e servizi;2;Acquisto di servizi;1;Organi e incarichi istituzionali dell'amministrazione;1;Organi istituzionali dell'amministrazione - Indennità;28-01-2020;
111;1;71;"329,40";"817,40";IL VOLANTINAGGIO SRL;Z92288123B;Fatt.n. 1068/001 del 23/12/2019;24-01-2020;115;0;271;1;Spese correnti;3;Acquisto di beni e servizi;2;Acquisto di servizi;11;Prestazioni professionali e specialistiche;999;Altre prestazioni professionali e specialistiche n.a.c.;24-01-2020;
111;2;71;"488,00";"817,40";IL VOLANTINAGGIO SRL;Z92288123B;Fatt.n. 1070/001 del 23/12/2019;24-01-2020;115;0;271;1;Spese correnti;3;Acquisto di beni e servizi;2;Acquisto di servizi;11;Prestazioni professionali e specialistiche;999;Altre prestazioni professionali e specialistiche n.a.c.;24-01-2020;
112;1;72;"1.265,00";"1.265,00";ASSOCIAZIONE CULTURALE TEATRO DELLE ARANCE;ZC72A387C5;Fatt.n. 1/PA del 13/01/2020 Spettacolo Teatrale del 14/12/19 Det. 127/2019 Impegno di spesa 581/2019;24-01-2020;686;0;581;1;Spese correnti;3;Acquisto di beni e servizi;2;Acquisto di servizi;2;"Organizzazione eventi, pubblicita` e servizi per trasferta";5;Organizzazione e partecipazione a manifestazioni e convegni;24-01-2020;
113;1;73;"906,66";"906,66";MINISTERO INTERNO - DIREZIONE CENTR SERV DEMOGRAFICI; ;Liquidazione diritti per il rilascio di carte d'identita' elettroniche dicembre 2019.;24-01-2020;325;0;74;1;Spese correnti;4;Trasferimenti correnti;1;Trasferimenti correnti a Amministrazioni Pubbliche;1;Trasferimenti correnti a Amministrazioni Centrali;1;Trasferimenti correnti a Ministeri;24-01-2020;
114;1;74;"1.650,00";"1.650,00";IL NODO ASSOCIAZIONE CULT. SSDL;Z282A3880E;SALDO Fatt.n. FATTPA 35_19  del 23/12/2019;24-01-2020;686;0;582;1;Spese correnti;3;Acquisto di beni e servizi;2;Acquisto di servizi;2;"Organizzazione eventi, pubblicita` e servizi per trasferta";5;Organizzazione e partecipazione a manifestazioni e convegni;24-01-2020;
115;1;75;"450,00";"450,00";ASTROFILI VAL D'ILLASI; ;LIQUIDAZIONE A CONSUNTIVO DEL CONTRIBUTO ECONOMICO ASSEGNATO ALLASSOCIAZIONE ASTROFILI VALDILLASI CON DELIBERA DI GIUNTA N.135/2019.;24-01-2020;895;0;726;1;Spese correnti;4;Trasferimenti correnti;4;Trasferimenti correnti a Istituzioni Sociali Private;1;Trasferimenti correnti a Istituzioni Sociali Private;1;Trasferimenti correnti a Istituzioni Sociali Private;24-01-2020;
116;1;76;"770,00";"770,00";LA MOSCHETA - COMPAGNIA TEATRALE;Z742A38407;SALDO Fatt.n. FATTPA 5_19  del 17/12/2019 fattura;24-01-2020;686;0;580;1;Spese correnti;3;Acquisto di beni e servizi;2;Acquisto di servizi;2;"Organizzazione eventi, pubblicita` e servizi per trasferta";5;Organizzazione e partecipazione a manifestazioni e convegni;24-01-2020;
117;1;77;"585,60";"585,60";TIPOGRAFIA CENTRALE SAS DI GIONA F & C;Z702AD88D6;SALDO Fatt.n. FATTPA 34_19  del 18/12/2019;24-01-2020;933;0;641;1;Spese correnti;3;Acquisto di beni e servizi;2;Acquisto di servizi;2;"Organizzazione eventi, pubblicita` e servizi per trasferta";5;Organizzazione e partecipazione a manifestazioni e convegni;24-01-2020;
118;1;81;"500,00";"500,00";CORO POLIFONICO; ;EROGAZIONE A CONSUNTIVO DEL CONTRIBUTO ECONOMICO ASSEGNATO A FAVORE DELLASSOCIAZIONE  CORO POLIFONICO DI CALDIERO CON DELIBERA DI GIUNTA N.136/2019.;27-01-2020;690;0;725;1;Spese correnti;4;Trasferimenti correnti;4;Trasferimenti correnti a Istituzioni Sociali Private;1;Trasferimenti correnti a Istituzioni Sociali Private;1;Trasferimenti correnti a Istituzioni Sociali Private;28-01-2020;
119;1;82;"700,00";"700,00";ASSOCIAZIONE NOI CALDIERINO -  EX CIRC. ANSPI (ONLUS); ;EROGAZIONE A CONSUNTIVO DEL CONTRIBUTO ECONOMICO ASSEGNATO A FAVORE DELL ASSOCIAZIONE NOI CALDIERINO CON DELIBERA DI GIUNTA COMUNALE N. 131/2019.;27-01-2020;891;2;701;1;Spese correnti;4;Trasferimenti correnti;4;Trasferimenti correnti a Istituzioni Sociali Private;1;Trasferimenti correnti a Istituzioni Sociali Private;1;Trasferimenti correnti a Istituzioni Sociali Private;28-01-2020;
120;1;83;"214,39";"214,39";SHARP ELECTRONICS ITALIA SPA;ZF81FAD390;"SALDO Fatt.n. 7719019263  del 27/12/2019 COMUNE DI CALDIERO, ORDINE 3811295, CIG ZF81FAD390";27-01-2020;109;0;483;1;Spese correnti;3;Acquisto di beni e servizi;2;Acquisto di servizi;7;Utilizzo di beni di terzi;4;Noleggi di hardware;28-01-2020;
121;1;84;"2.092,50";"2.092,50";SOCIETA' COOPERATIVA CULTURE;7559364882;SALDO Fatt.n. 4522/FE  del 27/12/2019 FATTURA MESE DI NOVEMBRE 2019;27-01-2020;680;0;547;1;Spese correnti;3;Acquisto di beni e servizi;2;Acquisto di servizi;15;Contratti di servizio pubblico;999;Altre spese per contratti di servizio pubblico;28-01-2020;
122;1;85;"150,00";"150,00";ANUSCA;Z6B2796945;SALDO Fatt.n. 3142E  del 21/12/2019 FATTURA;27-01-2020;90;0;139;1;Spese correnti;3;Acquisto di beni e servizi;2;Acquisto di servizi;4;Acquisto di servizi per formazione e addestramento del personale dell'ente;999;Acquisto di servizi per altre spese per formazione e addestramento n.a.c.;28-01-2020;
123;1;86;"1.414,40";"1.414,40";TIPOGRAFIA CENTRALE SAS DI GIONA F & C;Z8423A29AF;SALDO Fatt.n. FATTPA 35_19  del 18/12/2019 FATTURA;27-01-2020;147;0;304;1;Spese correnti;3;Acquisto di beni e servizi;2;Acquisto di servizi;2;"Organizzazione eventi, pubblicita` e servizi per trasferta";999;"Altre spese per relazioni pubbliche, convegni e mostre, pubblicita` n.a.c";28-01-2020;
124;1;87;"188,73";"188,73";OLIVETTI  SPA;ZA31A76D7F;SALDO Fatt.n. A20020191000048019  del 31/12/2019 FATTURA;27-01-2020;109;0;174;1;Spese correnti;3;Acquisto di beni e servizi;2;Acquisto di servizi;7;Utilizzo di beni di terzi;4;Noleggi di hardware;28-01-2020;
125;1;88;"6.300,00";"6.300,00";BOMMARTINI MARIA; ;PATRIMONIO COMUNALE - LOCAZIONE DI UN IMMOBILE ED AREA ESTERNA DA ADIBIRE A DEPOSITO COMUNALE - APPROVAZIONE CONTRATTO DI LOCAZIONE PER IL PERIODO 30 LUGLIO 2017 -:- 29 LUGLIO 2020 - IMPEGNO DI SPESA -;27-01-2020;280;0;265;1;Spese correnti;3;Acquisto di beni e servizi;2;Acquisto di servizi;7;Utilizzo di beni di terzi;1;Locazione di beni immobili;28-01-2020;
126;1;89;"3.000,00";"3.000,00";BOMMARTINI MARIA; ;PATRIMONIO COMUNALE - LOCAZIONE DI UN IMMOBILE ED AREA ESTERNA DA ADIBIRE A DEPOSITO COMUNALE - APPROVAZIONE CONTRATTO DI LOCAZIONE PER IL PERIODO 30 LUGLIO 2017 -:- 29 LUGLIO 2020 - IMPEGNO DI SPESA -;27-01-2020;280;0;265;1;Spese correnti;3;Acquisto di beni e servizi;2;Acquisto di servizi;7;Utilizzo di beni di terzi;1;Locazione di beni immobili;28-01-2020;
127;1;90;"5,88";"5,88";COMUNE DI GARDA; ;RIMBORSO SPESE DI NOTIFICA ATTI EFFETTUATE DA PARTE DI ALTRI COMUNI - IMPEGNO DI SPESA PER LANNO 2019.;27-01-2020;843;0;280;1;Spese correnti;3;Acquisto di beni e servizi;2;Acquisto di servizi;3;Aggi di riscossione;999;Altri aggi di riscossione n.a.c.;28-01-2020;
128;1;91;"9,03";"9,03";COMUNE DI VERONA; ;RIMBORSO SPESE DI NOTIFICA ATTI EFFETTUATE DA PARTE DI ALTRI COMUNI - IMPEGNO DI SPESA PER LANNO 2019 (SPESE NOTIFICA N. 200032).;27-01-2020;843;0;280;1;Spese correnti;3;Acquisto di beni e servizi;2;Acquisto di servizi;3;Aggi di riscossione;999;Altri aggi di riscossione n.a.c.;28-01-2020;
129;1;92;"18,26";"18,26";COMUNE DI ZEVIO; ;RIMBORSO SPESE DI NOTIFICA ATTI EFFETTUATE DA PARTE DI ALTRI COMUNI - IMPEGNO DI SPESA PER LANNO 2019 (RIF. VS. RICHIESTA PERIODO 01.07.19-31.12.19 - COPPINI E ISEPPI);27-01-2020;843;0;280;1;Spese correnti;3;Acquisto di beni e servizi;2;Acquisto di servizi;3;Aggi di riscossione;999;Altri aggi di riscossione n.a.c.;28-01-2020;
130;1;93;"5,88";"5,88";COMUNE DI SAN BONIFACIO; ;RIMBORSO SPESE DI NOTIFICA ATTI EFFETTUATE DA PARTE DI ALTRI COMUNI - IMPEGNO DI SPESA PER LANNO 2019 (RIF. 2 SEMESTRE 2019 - BENATI);27-01-2020;843;0;280;1;Spese correnti;3;Acquisto di beni e servizi;2;Acquisto di servizi;3;Aggi di riscossione;999;Altri aggi di riscossione n.a.c.;28-01-2020;
131;1;94;"11,76";"11,76";COMUNE DI TREGNAGO; ;RIMBORSO SPESE DI NOTIFICA ATTI EFFETTUATE DA PARTE DI ALTRI COMUNI - IMPEGNO DI SPESA PER LANNO 2019.;27-01-2020;843;0;280;1;Spese correnti;3;Acquisto di beni e servizi;2;Acquisto di servizi;3;Aggi di riscossione;999;Altri aggi di riscossione n.a.c.;28-01-2020;
132;1;118;"205,45";"205,45";PRO LOCO DI CALDIERO; ;"PROGRAMMA CULTURALE AUTUNNO 2019, APPROVATO CON DELIBERA DI GIUNTA COMUNALE N.104/2019. IMPEGNO CONTRIBUTO ECONOMICO A FAVORE DELLASSOCIAZIONE PROLOCO DI CALDIERO.";28-01-2020;690;0;578;1;Spese correnti;4;Trasferimenti correnti;4;Trasferimenti correnti a Istituzioni Sociali Private;1;Trasferimenti correnti a Istituzioni Sociali Private;1;Trasferimenti correnti a Istituzioni Sociali Private;29-01-2020;
133;1;119;"250,00";"250,00";PRO LOCO DI CALDIERO; ;"INIZIATIVA COMUNALE SANTA LUCIA IN PIAZZA. CALDIERO PER LA SOLIDARIETA domenica 08 dicembre 2019. IMPEGNO DI SPESA A FAVORE DELLE ASSOCIAZIONI PROLOCO, NOI CALDIERO E NOI CALDIERINO.";28-01-2020;891;2;638;1;Spese correnti;4;Trasferimenti correnti;4;Trasferimenti correnti a Istituzioni Sociali Private;1;Trasferimenti correnti a Istituzioni Sociali Private;1;Trasferimenti correnti a Istituzioni Sociali Private;29-01-2020;
134;1;120;"151,41";"151,41";PRO LOCO DI CALDIERO; ;"INIZIATIVA COMUNALE SANTA LUCIA IN PIAZZA. CALDIERO PER LA SOLIDARIETA domenica 08 dicembre 2019. IMPEGNO DI SPESA A FAVORE DELLE ASSOCIAZIONI PROLOCO, NOI CALDIERO E NOI CALDIERINO.";28-01-2020;891;2;640;1;Spese correnti;4;Trasferimenti correnti;4;Trasferimenti correnti a Istituzioni Sociali Private;1;Trasferimenti correnti a Istituzioni Sociali Private;1;Trasferimenti correnti a Istituzioni Sociali Private;29-01-2020;
136;1;122;"115,41";"115,41";LIBRERIA VALERIO FRIGGI SRL; ;SALDO Fatt.n. 73/PA  del 13/12/2019 Contributo Ambientale Conai assolto.;28-01-2020;555;0;323;1;Spese correnti;4;Trasferimenti correnti;2;Trasferimenti correnti a Famiglie;5;Altri trasferimenti a famiglie;999;Altri trasferimenti a famiglie n.a.c.;29-01-2020;
137;1;123;"31,05";"31,05";CARTOLERIA GRAND PRIX DI PULA GIAMPIETRO; ;SALDO Fatt.n. 11/PA  del 05/12/2019;28-01-2020;555;0;323;1;Spese correnti;4;Trasferimenti correnti;2;Trasferimenti correnti a Famiglie;5;Altri trasferimenti a famiglie;999;Altri trasferimenti a famiglie n.a.c.;29-01-2020;
138;1;124;"129,17";"129,17";LA RONDA - SERVIZI DI VIGILANZA;Z4022A6179;SALDO Fatt.n. V1-15187  del 19/12/2019 FATTURA;28-01-2020;357;0;205;1;Spese correnti;3;Acquisto di beni e servizi;2;Acquisto di servizi;13;Servizi ausiliari per il funzionamento dell'ente;1;"Servizi di sorveglianza, custodia e accoglienza";29-01-2020;
139;1;125;"1.211,95";"1.211,95";TELEFONITALIA SRL;Z4B29109FB;SALDO Fatt.n. 24/2020  del 07/01/2020 FATTURA;28-01-2020;589;0;399;1;Spese correnti;3;Acquisto di beni e servizi;2;Acquisto di servizi;9;Manutenzione ordinaria e riparazioni;8;Manutenzione ordinaria e riparazioni di beni immobili;29-01-2020;
140;1;126;"1.983,04";"1.983,04";COOPERATIVA SOCIALE VENETA ONLUS;Z431F034F6;ACCONTO Fatt.n. 263/002  del 30/12/2019 FATTURA;28-01-2020;782;0;669;1;Spese correnti;3;Acquisto di beni e servizi;2;Acquisto di servizi;9;Manutenzione ordinaria e riparazioni;8;Manutenzione ordinaria e riparazioni di beni immobili;29-01-2020;
141;1;127;"253,40";"253,40";COOPERATIVA SOCIALE VENETA ONLUS;Z431F034F6;SALDO Fatt.n. 263/002  del 30/12/2019 FATTURA;28-01-2020;782;0;669;1;Spese correnti;3;Acquisto di beni e servizi;2;Acquisto di servizi;9;Manutenzione ordinaria e riparazioni;8;Manutenzione ordinaria e riparazioni di beni immobili;29-01-2020;
142;1;128;"174,51";"174,51";FOLETTO LUCIANO SRL;Z4B2981DE3;SALDO Fatt.n. 2019-E-0000043  del 30/12/2019 FATTURE ELETTRONICHE;28-01-2020;350;0;475;1;Spese correnti;3;Acquisto di beni e servizi;1;Acquisto di beni;2;Altri beni di consumo;999;Altri beni e materiali di consumo n.a.c.;29-01-2020;
143;1;129;"8.000,00";"8.000,00";ZAMPINI CARLO SRLS;Z4B2AB018F;SALDO Fatt.n. 137  del 31/12/2019 FATTURA;28-01-2020;142;0;642;1;Spese correnti;3;Acquisto di beni e servizi;2;Acquisto di servizi;99;Altri servizi;999;Altri servizi diversi n.a.c.;29-01-2020;
144;1;130;"109,80";"109,80";PIZZEGHELLA E STEVAN SRL STEVAN;Z1926792B2;SALDO Fatt.n. 19/PA  del 02/01/2020 FATTURA;28-01-2020;352;0;72;1;Spese correnti;3;Acquisto di beni e servizi;2;Acquisto di servizi;9;Manutenzione ordinaria e riparazioni;4;Manutenzione ordinaria e riparazioni di impianti e macchinari;29-01-2020;
145;1;95;"120,78";"120,78";PIZZEGHELLA E STEVAN SRL STEVAN;Z1926792B2;SALDO Fatt.n. 8/PA  del 02/01/2020 FATTURA;28-01-2020;352;0;72;1;Spese correnti;3;Acquisto di beni e servizi;2;Acquisto di servizi;9;Manutenzione ordinaria e riparazioni;4;Manutenzione ordinaria e riparazioni di impianti e macchinari;28-01-2020;
146;1;96;"120,78";"120,78";PIZZEGHELLA E STEVAN SRL STEVAN;Z1926792B2;SALDO Fatt.n. 9/PA  del 02/01/2020 FATTURA;28-01-2020;352;0;72;1;Spese correnti;3;Acquisto di beni e servizi;2;Acquisto di servizi;9;Manutenzione ordinaria e riparazioni;4;Manutenzione ordinaria e riparazioni di impianti e macchinari;28-01-2020;
147;1;131;"274,50";"274,50";PIZZEGHELLA E STEVAN SRL STEVAN;Z1926792B2;SALDO Fatt.n. 18/PA  del 02/01/2020 FATTURA;28-01-2020;352;0;72;1;Spese correnti;3;Acquisto di beni e servizi;2;Acquisto di servizi;9;Manutenzione ordinaria e riparazioni;4;Manutenzione ordinaria e riparazioni di impianti e macchinari;29-01-2020;
148;1;97;"109,80";"109,80";PIZZEGHELLA E STEVAN SRL STEVAN;Z1926792B2;SALDO Fatt.n. 20/PA  del 02/01/2020 FATTURA;28-01-2020;352;0;72;1;Spese correnti;3;Acquisto di beni e servizi;2;Acquisto di servizi;9;Manutenzione ordinaria e riparazioni;4;Manutenzione ordinaria e riparazioni di impianti e macchinari;28-01-2020;
149;1;98;"263,52";"263,52";PIZZEGHELLA E STEVAN SRL STEVAN;Z1926792B2;SALDO Fatt.n. 10/PA  del 02/01/2020 FATTURA;28-01-2020;352;0;72;1;Spese correnti;3;Acquisto di beni e servizi;2;Acquisto di servizi;9;Manutenzione ordinaria e riparazioni;4;Manutenzione ordinaria e riparazioni di impianti e macchinari;28-01-2020;
150;1;99;"170,80";"170,80";RATTICIDA VENETA SAS DI FERLENGA M. E G.;ZF31F0A617;SALDO Fatt.n. 402/PA  del 19/12/2019 FATTURA;28-01-2020;465;0;453;1;Spese correnti;3;Acquisto di beni e servizi;2;Acquisto di servizi;99;Altri servizi;999;Altri servizi diversi n.a.c.;28-01-2020;
151;1;100;"2.074,00";"2.074,00";MAPROTEC SRL;ZC828E738A;SALDO Fatt.n. 323  del 31/10/2019 Fattura Cliente;28-01-2020;350;0;398;1;Spese correnti;3;Acquisto di beni e servizi;1;Acquisto di beni;2;Altri beni di consumo;999;Altri beni e materiali di consumo n.a.c.;28-01-2020;
152;1;101;"1.731,94";"1.731,94";ECOGEO S.R.L.;7375058A62;SALDO Fatt.n. 822  del 13/12/2019 FATTURA;28-01-2020;275;0;143;1;Spese correnti;3;Acquisto di beni e servizi;2;Acquisto di servizi;18;Servizi sanitari;1;Spese per accertamenti sanitari resi necessari dall'attività lavorativa;28-01-2020;
153;1;102;"538,02";"538,02";MORANDO FRANCESCO;ZC1253B725;SALDO Fatt.n. 458/E  del 18/12/2019 FATTURA;28-01-2020;952;0;650;1;Spese correnti;3;Acquisto di beni e servizi;2;Acquisto di servizi;9;Manutenzione ordinaria e riparazioni;8;Manutenzione ordinaria e riparazioni di beni immobili;28-01-2020;
154;1;103;"971,50";"971,50";NARCONTI FLLI SNC DI NARCONTI M E F;ZCE2A9EC19;SALDO Fatt.n. 89/E  del 19/12/2019 FORNITURA SRAMATORE CON ACCESSORI;28-01-2020;950;0;664;1;Spese correnti;3;Acquisto di beni e servizi;1;Acquisto di beni;2;Altri beni di consumo;999;Altri beni e materiali di consumo n.a.c.;28-01-2020;
155;1;104;"414,80";"414,80";VERONALAB SRL;ZC62A95EB7;SALDO Fatt.n. 19E001124  del 27/12/2019 determinazione n. 141 del 18/11/19-CIG: ZC62A95EB;28-01-2020;270;0;602;1;Spese correnti;3;Acquisto di beni e servizi;2;Acquisto di servizi;11;Prestazioni professionali e specialistiche;999;Altre prestazioni professionali e specialistiche n.a.c.;28-01-2020;
156;1;105;"418,00";"418,00";VEZZOLA FABIANA;ZC929032E7;SALDO Fatt.n. 141/2019  del 13/12/2019 FATTURA;28-01-2020;270;0;384;1;Spese correnti;3;Acquisto di beni e servizi;2;Acquisto di servizi;11;Prestazioni professionali e specialistiche;999;Altre prestazioni professionali e specialistiche n.a.c.;28-01-2020;
157;1;106;"379,30";"379,30";EDILTOSI SRL;Z9B248C873;SALDO Fatt.n. 007849  del 27/12/2019 FATTURA;28-01-2020;950;0;537;1;Spese correnti;3;Acquisto di beni e servizi;1;Acquisto di beni;2;Altri beni di consumo;999;Altri beni e materiali di consumo n.a.c.;28-01-2020;
158;1;107;"1.756,80";"1.756,80";FONDERIA VELO SRL;Z702951F54;SALDO Fatt.n. F1904647  del 18/12/2019 FATTURA VENDITA;28-01-2020;950;0;467;1;Spese correnti;3;Acquisto di beni e servizi;1;Acquisto di beni;2;Altri beni di consumo;7;Altri materiali tecnico-specialistici non sanitari;28-01-2020;
159;1;108;"80,86";"80,86";FOLETTO LUCIANO SRL;Z4B2981DE3;SALDO Fatt.n. 2019-E-0000038  del 30/11/2019 FATTURE ELETTRONICHE;28-01-2020;350;0;475;1;Spese correnti;3;Acquisto di beni e servizi;1;Acquisto di beni;2;Altri beni di consumo;999;Altri beni e materiali di consumo n.a.c.;28-01-2020;
160;1;109;"292,80";"292,80";TECNOART SRL;ZF32A86AF1;SALDO Fatt.n. 482  del 23/12/2019 FATTURA;28-01-2020;1093;1;473;2;Spese in conto capitale;2;Investimenti fissi lordi e acquisto di terreni;1;Beni materiali;9;Beni immobili;19;Fabbricati ad uso strumentale;28-01-2020;
161;1;110;"1.334,08";"1.334,08";COOPERATIVA SOCIALE VENETA ONLUS;Z431F034F6;SALDO Fatt.n. 244/002  del 30/11/2019 FATTURA;28-01-2020;782;0;454;1;Spese correnti;3;Acquisto di beni e servizi;2;Acquisto di servizi;9;Manutenzione ordinaria e riparazioni;8;Manutenzione ordinaria e riparazioni di beni immobili;28-01-2020;
162;1;111;"723,29";"723,29";SOENERGY SRL;7961490D60;SALDO Fatt.n. 191322614  del 11/12/2019 FORNITURA GAS;28-01-2020;887;0;377;1;Spese correnti;3;Acquisto di beni e servizi;2;Acquisto di servizi;5;Utenze e canoni;6;Gas;28-01-2020;
163;1;112;"5.617,81";"5.617,81";SOENERGY SRL;7961490D60;ACCONTO Fatt.n. 201007381  del 10/01/2020 FORNITURA GAS;28-01-2020;887;0;377;1;Spese correnti;3;Acquisto di beni e servizi;2;Acquisto di servizi;5;Utenze e canoni;6;Gas;28-01-2020;
164;1;113;"786,76";"786,76";SOENERGY SRL;7961490D60;SALDO Fatt.n. 201007381  del 10/01/2020 FORNITURA GAS;28-01-2020;542;0;374;1;Spese correnti;3;Acquisto di beni e servizi;2;Acquisto di servizi;5;Utenze e canoni;6;Gas;28-01-2020;
165;1;114;"1.002,64";"1.002,64";MATTARANETTA SOCIETA' COOPERATIVA SOCIALE;Z9F225C229;ACCONTO Fatt.n. 53/FE  del 31/12/2019 FATTURA IMMEDIATA;28-01-2020;840;0;141;1;Spese correnti;3;Acquisto di beni e servizi;2;Acquisto di servizi;15;Contratti di servizio pubblico;4;Contratti di servizio per la raccolta rifiuti;28-01-2020;
166;1;115;"271,52";"271,52";MATTARANETTA SOCIETA' COOPERATIVA SOCIALE;Z9F225C229;SALDO Fatt.n. 53/FE  del 31/12/2019 FATTURA IMMEDIATA;28-01-2020;840;0;141;1;Spese correnti;3;Acquisto di beni e servizi;2;Acquisto di servizi;15;Contratti di servizio pubblico;4;Contratti di servizio per la raccolta rifiuti;28-01-2020;
167;1;116;"48,76";"48,76";LA RONDA - SERVIZI DI VIGILANZA;Z4022A6179;ACCONTO Fatt.n. V1-2112  del 09/01/2020 FATTURA;28-01-2020;357;0;205;1;Spese correnti;3;Acquisto di beni e servizi;2;Acquisto di servizi;13;Servizi ausiliari per il funzionamento dell'ente;1;"Servizi di sorveglianza, custodia e accoglienza";28-01-2020;
168;1;117;"0,04";"0,04";LA RONDA - SERVIZI DI VIGILANZA;Z4022A6179;SALDO Fatt.n. V1-2112  del 09/01/2020 FATTURA;28-01-2020;357;0;205;1;Spese correnti;3;Acquisto di beni e servizi;2;Acquisto di servizi;13;Servizi ausiliari per il funzionamento dell'ente;1;"Servizi di sorveglianza, custodia e accoglienza";28-01-2020;
169;1;132;"122,00";"122,00";E-DISTRIBUZIONE SPA; ;cod. rintr. 230344699 - Fatt.n. 0000920900000212  del 16/01/2020 cod. rintr. 230344699;28-01-2020;881;0;77;1;Spese correnti;3;Acquisto di beni e servizi;2;Acquisto di servizi;5;Utenze e canoni;4;Energia elettrica;29-01-2020;
170;1;133;"0,22";"0,22";TELECOM ITALIA;Z3E288BEB4;SALDO Fatt.n. 7X04019735  del 14/10/2019 6BIM 2019;28-01-2020;113;0;272;1;Spese correnti;3;Acquisto di beni e servizi;2;Acquisto di servizi;5;Utenze e canoni;2;Telefonia mobile;03-02-2020;
172;1;6;"1,90";"1,90";INTESA SAN PAOLO - TESORERIA COMUNALE;ZB823CBCD9;ENTE EROGATORE SERVIZI POS-CANONE SPESE DIVERSE SERVIZIO POS                           COMUNE DI CALDIERO98 COMMSETEFI5 (P.       6 -R.       6);29-01-2020;374;0;301;1;Spese correnti;3;Acquisto di beni e servizi;2;Acquisto di servizi;17;Servizi finanziari;2;Oneri per servizio di tesoreria;03-02-2020;
173;1;9;"1,90";"217,90";INTESA SAN PAOLO - TESORERIA COMUNALE;ZB823CBCD9;ENTE EROGATORE SERVIZI POS-CANONE SPESE DIVERSE SERVIZIO POS                           COMUNE DI CALDIERO98 COMMSETEFI5 (P.       9 -R.       9);29-01-2020;374;0;301;1;Spese correnti;3;Acquisto di beni e servizi;2;Acquisto di servizi;17;Servizi finanziari;2;Oneri per servizio di tesoreria;03-02-2020;
173;2;9;"216,00";"217,90";INTESA SAN PAOLO - TESORERIA COMUNALE;ZB823CBCD9;ENTE EROGATORE SERVIZI POS-CANONE SPESE DIVERSE SERVIZIO POS                           ADD CANONE POS DA 01 19 A 12 (P.      10 -R.      10);29-01-2020;374;0;301;1;Spese correnti;3;Acquisto di beni e servizi;2;Acquisto di servizi;17;Servizi finanziari;2;Oneri per servizio di tesoreria;03-02-2020;
174;1;18;"996,15";"996,15";SOENERGY SRL;7961490D60;BENEFICIARI DIVERSI-PAGAMENTI DIVERSI             COD DISP 012001020YUH5Z NOME  SOENERGY S R L MANDATO99Z1610053624A299 PFM 4297193 Fattura 191315531 del 11 12 19 Scad 13 0 (P.      11 -R.      18);29-01-2020;542;0;374;1;Spese correnti;3;Acquisto di beni e servizi;2;Acquisto di servizi;5;Utenze e canoni;6;Gas;03-02-2020;
175;1;134;"219,15";"219,15";SOENERGY SRL;7961490D60;SALDO Fatt.n. 191315531  del 11/12/2019 FORNITURA GAS;29-01-2020;542;0;374;1;Spese correnti;3;Acquisto di beni e servizi;2;Acquisto di servizi;5;Utenze e canoni;6;Gas;03-02-2020;
176;1;19;"185,35";"185,35";SOENERGY SRL;7961490D60;BENEFICIARI DIVERSI-PAGAMENTI DIVERSI             COD DISP 012001020YUH6P NOME  SOENERGY S R L MANDATO99Z1610053624A299 PFM 4297196 Fattura 191322611 del 11 12 19 Scad 13 0 (P.      12 -R.      19);29-01-2020;112;0;372;1;Spese correnti;3;Acquisto di beni e servizi;2;Acquisto di servizi;5;Utenze e canoni;6;Gas;03-02-2020;
177;1;135;"40,78";"40,78";SOENERGY SRL;7961490D60;SALDO Fatt.n. 191322611  del 11/12/2019 FORNITURA GAS;29-01-2020;112;0;372;1;Spese correnti;3;Acquisto di beni e servizi;2;Acquisto di servizi;5;Utenze e canoni;6;Gas;03-02-2020;
178;1;20;"1.936,10";"1.936,10";SOENERGY SRL;7961490D60;BENEFICIARI DIVERSI-PAGAMENTI DIVERSI             COD DISP 012001020YUH5U NOME  SOENERGY S R L MANDATO99Z1610053624A299 PFM 4297197 Fattura 191322612 del 11 12 19 Scad 13 0 (P.      13 -R.      20);29-01-2020;888;0;378;1;Spese correnti;3;Acquisto di beni e servizi;2;Acquisto di servizi;5;Utenze e canoni;6;Gas;03-02-2020;
179;1;136;"425,94";"425,94";SOENERGY SRL;7961490D60;SALDO Fatt.n. 191322612  del 11/12/2019 FORNITURA GAS;29-01-2020;888;0;378;1;Spese correnti;3;Acquisto di beni e servizi;2;Acquisto di servizi;5;Utenze e canoni;6;Gas;03-02-2020;
180;1;21;"410,85";"410,85";SOENERGY SRL;7961490D60;BENEFICIARI DIVERSI-PAGAMENTI DIVERSI             COD DISP 012001020YUHQ4 NOME  SOENERGY S R L MANDATO99Z1610053624A299 PFM 4297198 Fattura 191322613 del 11 12 19 Scad 13 0 (P.      14 -R.      21);29-01-2020;212;0;373;1;Spese correnti;3;Acquisto di beni e servizi;2;Acquisto di servizi;5;Utenze e canoni;6;Gas;03-02-2020;
181;1;137;"90,39";"90,39";SOENERGY SRL;7961490D60;SALDO Fatt.n. 191322613  del 11/12/2019 FORNITURA GAS;29-01-2020;212;0;373;1;Spese correnti;3;Acquisto di beni e servizi;2;Acquisto di servizi;5;Utenze e canoni;6;Gas;03-02-2020;
182;1;22;"474,09";"474,09";SOENERGY SRL;7961490D60;BENEFICIARI DIVERSI-PAGAMENTI DIVERSI             COD DISP 012001020YUHKV NOME  SOENERGY S R L MANDATO99Z1610053624A299 PFM 4297195 Fattura 191322610 del 11 12 19 Scad 13 0 (P.      15 -R.      22);29-01-2020;582;0;375;1;Spese correnti;3;Acquisto di beni e servizi;2;Acquisto di servizi;5;Utenze e canoni;6;Gas;03-02-2020;
183;1;138;"104,30";"104,30";SOENERGY SRL;7961490D60;SALDO Fatt.n. 191322610  del 11/12/2019 FORNITURA GAS;29-01-2020;582;0;375;1;Spese correnti;3;Acquisto di beni e servizi;2;Acquisto di servizi;5;Utenze e canoni;6;Gas;03-02-2020;
184;1;23;"821,71";"821,71";SOENERGY SRL;7961490D60;BENEFICIARI DIVERSI-PAGAMENTI DIVERSI             COD DISP 012001020YUHL0 NOME  SOENERGY S R L MANDATO99Z1610053624A299 PFM 4297192 Fattura 191315530 del 11 12 19 Scad 13 0 (P.      16 -R.      23);29-01-2020;353;0;376;1;Spese correnti;3;Acquisto di beni e servizi;2;Acquisto di servizi;5;Utenze e canoni;6;Gas;03-02-2020;
185;1;139;"180,64";"180,64";SOENERGY SRL;7961490D60;SALDO Fatt.n. 191315530  del 11/12/2019 FORNITURA GAS;29-01-2020;353;0;376;1;Spese correnti;3;Acquisto di beni e servizi;2;Acquisto di servizi;5;Utenze e canoni;6;Gas;03-02-2020;
186;1;24;"912,85";"912,85";SOENERGY SRL;7961490D60;BENEFICIARI DIVERSI-PAGAMENTI DIVERSI             COD DISP 012001020YUHPZ NOME  SOENERGY S R L MANDATO99Z1610053624A299 PFM 4297194 Fattura 191322609 del 11 12 19 Scad 13 0 (P.      17 -R.      24);29-01-2020;884;0;379;1;Spese correnti;3;Acquisto di beni e servizi;2;Acquisto di servizi;5;Utenze e canoni;6;Gas;03-02-2020;
187;1;140;"200,83";"200,83";SOENERGY SRL;7961490D60;SALDO Fatt.n. 191322609  del 11/12/2019 FORNITURA GAS;29-01-2020;884;0;379;1;Spese correnti;3;Acquisto di beni e servizi;2;Acquisto di servizi;5;Utenze e canoni;6;Gas;03-02-2020;
188;1;51;"35,25";"35,25";GP GLOBAL POWER SPA;7961277D9A;BENEFICIARI DIVERSI-PAGAMENTI DIVERSI             COD DISP 0120011007BDE8 NOME  GLOBAL POWER SPA MANDATOAA5TZ1C7799 PFM 717 020120 FEC0 CIG CIG7961277D9A IBAN 1000003000153B (P.      25 -R.      51);29-01-2020;951;0;370;1;Spese correnti;3;Acquisto di beni e servizi;2;Acquisto di servizi;5;Utenze e canoni;4;Energia elettrica;03-02-2020;
189;1;141;"7,76";"7,76";GP GLOBAL POWER SPA;7961277D9A;SALDO Fatt.n. V0/717  del 02/01/2020 Fattura Energia Elettrica;29-01-2020;951;0;370;1;Spese correnti;3;Acquisto di beni e servizi;2;Acquisto di servizi;5;Utenze e canoni;4;Energia elettrica;03-02-2020;
190;1;52;"426,89";"426,89";GP GLOBAL POWER SPA;7961277D9A;BENEFICIARI DIVERSI-PAGAMENTI DIVERSI             COD DISP 0120011007BDEI NOME  GLOBAL POWER SPA MANDATOAA5TZ1C7799 PFM 714 020120 FEC0 CIG CIG7961277D9A IBAN 1000003000153B (P.      26 -R.      52);29-01-2020;354;0;364;1;Spese correnti;3;Acquisto di beni e servizi;2;Acquisto di servizi;5;Utenze e canoni;4;Energia elettrica;03-02-2020;
191;1;142;"93,92";"93,92";GP GLOBAL POWER SPA;7961277D9A;SALDO Fatt.n. V0/714  del 02/01/2020 Fattura Energia Elettrica;29-01-2020;354;0;364;1;Spese correnti;3;Acquisto di beni e servizi;2;Acquisto di servizi;5;Utenze e canoni;4;Energia elettrica;03-02-2020;
192;1;53;"2.221,87";"2.221,87";GP GLOBAL POWER SPA;7961277D9A;BENEFICIARI DIVERSI-PAGAMENTI DIVERSI             COD DISP 0120011007BDH0 NOME  GLOBAL POWER SPA MANDATOAA5TZ1C7799 PFM 712 020120 FEC0 CIG CIG7961277D9A IBAN 1000003000153B (P.      27 -R.      53);29-01-2020;111;0;362;1;Spese correnti;3;Acquisto di beni e servizi;2;Acquisto di servizi;5;Utenze e canoni;4;Energia elettrica;03-02-2020;
193;1;143;"488,81";"488,81";GP GLOBAL POWER SPA;7961277D9A;SALDO Fatt.n. V0/712  del 02/01/2020 Fattura Energia Elettrica;29-01-2020;111;0;362;1;Spese correnti;3;Acquisto di beni e servizi;2;Acquisto di servizi;5;Utenze e canoni;4;Energia elettrica;03-02-2020;
194;1;54;"176,19";"176,19";GP GLOBAL POWER SPA;7961277D9A;BENEFICIARI DIVERSI-PAGAMENTI DIVERSI             COD DISP 0120011007BDEZ NOME  GLOBAL POWER SPA MANDATOAA5TZ1C7799 PFM 713 020120 FEC0 CIG CIG7961277D9A IBAN 1000003000153B (P.      28 -R.      54);29-01-2020;211;0;363;1;Spese correnti;3;Acquisto di beni e servizi;2;Acquisto di servizi;5;Utenze e canoni;4;Energia elettrica;03-02-2020;
195;1;144;"38,76";"38,76";GP GLOBAL POWER SPA;7961277D9A;SALDO Fatt.n. V0/713  del 02/01/2020 Fattura Energia Elettrica;29-01-2020;211;0;363;1;Spese correnti;3;Acquisto di beni e servizi;2;Acquisto di servizi;5;Utenze e canoni;4;Energia elettrica;03-02-2020;
196;1;55;"83,05";"83,05";GP GLOBAL POWER SPA;7961277D9A;BENEFICIARI DIVERSI-PAGAMENTI DIVERSI             COD DISP 0120011007BDEP NOME  GLOBAL POWER SPA MANDATOAA5TZ1C7799 PFM 715 020120 FEC0 CIG CIG7961277D9A IBAN 1000003000153B (P.      29 -R.      55);29-01-2020;541;0;365;1;Spese correnti;3;Acquisto di beni e servizi;2;Acquisto di servizi;5;Utenze e canoni;4;Energia elettrica;03-02-2020;
197;1;145;"8,31";"8,31";GP GLOBAL POWER SPA;7961277D9A;SALDO Fatt.n. V0/715  del 02/01/2020 Fattura Energia Elettrica;29-01-2020;541;0;365;1;Spese correnti;3;Acquisto di beni e servizi;2;Acquisto di servizi;5;Utenze e canoni;4;Energia elettrica;03-02-2020;
198;1;56;"1.000,34";"1.000,34";GP GLOBAL POWER SPA;7961277D9A;BENEFICIARI DIVERSI-PAGAMENTI DIVERSI             COD DISP 0120011007BDED NOME  GLOBAL POWER SPA MANDATOAA5TZ1C7799 PFM 710 020120 FEC0 CIG CIG7961277D9A IBAN 1000003000153B (P.      30 -R.      56);29-01-2020;886;0;369;1;Spese correnti;3;Acquisto di beni e servizi;2;Acquisto di servizi;5;Utenze e canoni;4;Energia elettrica;03-02-2020;
199;1;146;"220,07";"220,07";GP GLOBAL POWER SPA;7961277D9A;SALDO Fatt.n. V0/710  del 02/01/2020 Fattura Energia Elettrica;29-01-2020;886;0;369;1;Spese correnti;3;Acquisto di beni e servizi;2;Acquisto di servizi;5;Utenze e canoni;4;Energia elettrica;03-02-2020;
200;1;57;"846,10";"846,10";GP GLOBAL POWER SPA;7961277D9A;BENEFICIARI DIVERSI-PAGAMENTI DIVERSI             COD DISP 0120011007BDEK NOME  GLOBAL POWER SPA MANDATOAA5TZ1C7799 PFM 716 020120 FEC0 CIG CIG7961277D9A IBAN 1000003000153B (P.      31 -R.      57);29-01-2020;581;0;366;1;Spese correnti;3;Acquisto di beni e servizi;2;Acquisto di servizi;5;Utenze e canoni;4;Energia elettrica;03-02-2020;
201;1;147;"84,61";"84,61";GP GLOBAL POWER SPA;7961277D9A;SALDO Fatt.n. V0/716  del 02/01/2020 Fattura Energia Elettrica;29-01-2020;581;0;366;1;Spese correnti;3;Acquisto di beni e servizi;2;Acquisto di servizi;5;Utenze e canoni;4;Energia elettrica;03-02-2020;
202;1;58;"11.116,67";"11.116,67";GP GLOBAL POWER SPA;7961277D9A;BENEFICIARI DIVERSI-PAGAMENTI DIVERSI             COD DISP 0120011007BDEU NOME  GLOBAL POWER SPA MANDATOAA5TZ1C7799 PFM 711 020120 FEC0 CIG CIG7961277D9A IBAN 1000003000153B (P.      32 -R.      58);29-01-2020;960;0;371;1;Spese correnti;3;Acquisto di beni e servizi;2;Acquisto di servizi;5;Utenze e canoni;4;Energia elettrica;03-02-2020;
203;1;148;"2.445,67";"2.445,67";GP GLOBAL POWER SPA;7961277D9A;SALDO Fatt.n. V0/711  del 02/01/2020 Fattura Energia Elettrica;29-01-2020;960;0;371;1;Spese correnti;3;Acquisto di beni e servizi;2;Acquisto di servizi;5;Utenze e canoni;4;Energia elettrica;03-02-2020;
204;1;59;"858,26";"858,26";GP GLOBAL POWER SPA;7961277D9A;BENEFICIARI DIVERSI-PAGAMENTI DIVERSI             COD DISP 0120011007BDDU NOME  GLOBAL POWER SPA MANDATOAA5TZ1C7799 PFM 709 020120 FEC0 CIG CIG7961277D9A IBAN 1000003000153B (P.      33 -R.      59);29-01-2020;881;0;367;1;Spese correnti;3;Acquisto di beni e servizi;2;Acquisto di servizi;5;Utenze e canoni;4;Energia elettrica;03-02-2020;
205;1;149;"188,82";"188,82";GP GLOBAL POWER SPA;7961277D9A;SALDO Fatt.n. V0/709  del 02/01/2020 Fattura Energia Elettrica;29-01-2020;881;0;367;1;Spese correnti;3;Acquisto di beni e servizi;2;Acquisto di servizi;5;Utenze e canoni;4;Energia elettrica;03-02-2020;
206;1;60;"397,53";"397,53";GP GLOBAL POWER SPA;7961277D9A;BENEFICIARI DIVERSI-PAGAMENTI DIVERSI             COD DISP 0120011007BDE1 NOME  GLOBAL POWER SPA MANDATOAA5TZ1C7799 PFM 708 020120 FEC0 CIG CIG7961277D9A IBAN 1000003000153B (P.      34 -R.      60);29-01-2020;885;0;368;1;Spese correnti;3;Acquisto di beni e servizi;2;Acquisto di servizi;5;Utenze e canoni;4;Energia elettrica;03-02-2020;
207;1;150;"87,46";"87,46";GP GLOBAL POWER SPA;7961277D9A;SALDO Fatt.n. V0/708  del 02/01/2020 Fattura Energia Elettrica;29-01-2020;885;0;368;1;Spese correnti;3;Acquisto di beni e servizi;2;Acquisto di servizi;5;Utenze e canoni;4;Energia elettrica;03-02-2020;
208;1;151;"394,13";"394,13";UNIONE DI COMUNI VERONA EST;80300395CF;SERVIZIO DI RISTORAZIONE SCOLASTICA A RIDOTTO IMPATTO AMBIENTALE A.S.2019/20 E 2020/21 RINNOVABILE PER LA.S.2021/22  AGGIUDICATO DALLUNIONE COMUNI VERONA EST  Centrale Unica di Committenza A CIRFOOD DI REGGIO EMILIA (RE) LOTTO 1  COMUNE DI CALDIERO-;31-01-2020;662;0;697;1;Spese correnti;3;Acquisto di beni e servizi;2;Acquisto di servizi;15;Contratti di servizio pubblico;6;Contratti di servizio per le mense scolastiche;03-02-2020;
209;1;27;"39,03";"39,03";TELECOM ITALIA;Z402525AA0;EROGATORE SERVIZI TELEFONICI-PAGAMENTO TELEFONO            COD DISP 01200106026ESD NOME  TELECOM ITALIA S P A MANDATO80020100004507652424145URC (P.      18 -R.      27);31-01-2020;543;0;82;1;Spese correnti;3;Acquisto di beni e servizi;2;Acquisto di servizi;5;Utenze e canoni;1;Telefonia fissa;03-02-2020;
210;1;152;"8,59";"8,59";TELECOM ITALIA;Z402525AA0;SALDO Fatt.n. 8E01034982  del 05/12/2019 1BIM 2020;31-01-2020;543;0;82;1;Spese correnti;3;Acquisto di beni e servizi;2;Acquisto di servizi;5;Utenze e canoni;1;Telefonia fissa;03-02-2020;
211;1;28;"130,25";"130,25";TELECOM ITALIA;Z6E2A4DE7A;EROGATORE SERVIZI TELEFONICI-PAGAMENTO TELEFONO            COD DISP 01200106026ES9 NOME  TELECOM ITALIA S P A MANDATO80020100004507650048145URC (P.      19 -R.      28);31-01-2020;583;0;572;1;Spese correnti;3;Acquisto di beni e servizi;2;Acquisto di servizi;5;Utenze e canoni;1;Telefonia fissa;03-02-2020;
212;1;153;"28,66";"28,66";TELECOM ITALIA;Z6E2A4DE7A;SALDO Fatt.n. 8E01037100  del 05/12/2019 1BIM 2020;31-01-2020;583;0;572;1;Spese correnti;3;Acquisto di beni e servizi;2;Acquisto di servizi;5;Utenze e canoni;1;Telefonia fissa;03-02-2020;
213;1;29;"63,32";"63,32";TELECOM ITALIA;Z6E2A4DE7A;EROGATORE SERVIZI TELEFONICI-PAGAMENTO TELEFONO            COD DISP 01200106026F5O NOME  TELECOM ITALIA S P A MANDATO80020100004506152502115URC (P.      20 -R.      29);31-01-2020;213;0;573;1;Spese correnti;3;Acquisto di beni e servizi;2;Acquisto di servizi;5;Utenze e canoni;1;Telefonia fissa;03-02-2020;
214;1;154;"13,93";"13,93";TELECOM ITALIA;Z6E2A4DE7A;SALDO Fatt.n. 8E01034308  del 05/12/2019 1BIM 2020;31-01-2020;213;0;573;1;Spese correnti;3;Acquisto di beni e servizi;2;Acquisto di servizi;5;Utenze e canoni;1;Telefonia fissa;03-02-2020;
215;1;30;"62,73";"62,73";TELECOM ITALIA;Z6E2A4DE7A;EROGATORE SERVIZI TELEFONICI-PAGAMENTO TELEFONO            COD DISP 01200106026ES1 NOME  TELECOM ITALIA S P A MANDATO80020100004507650023135URC (P.      21 -R.      30);31-01-2020;113;0;570;1;Spese correnti;3;Acquisto di beni e servizi;2;Acquisto di servizi;5;Utenze e canoni;1;Telefonia fissa;03-02-2020;
216;1;155;"13,80";"13,80";TELECOM ITALIA;Z6E2A4DE7A;SALDO Fatt.n. 8E01029971  del 05/12/2019 1BIM 2020;31-01-2020;113;0;570;1;Spese correnti;3;Acquisto di beni e servizi;2;Acquisto di servizi;5;Utenze e canoni;1;Telefonia fissa;03-02-2020;
217;1;31;"63,31";"63,31";TELECOM ITALIA;Z6E2A4DE7A;EROGATORE SERVIZI TELEFONICI-PAGAMENTO TELEFONO            COD DISP 01200106026ESH NOME  TELECOM ITALIA S P A MANDATO80020100004507652787155URC (P.      22 -R.      31);31-01-2020;543;0;571;1;Spese correnti;3;Acquisto di beni e servizi;2;Acquisto di servizi;5;Utenze e canoni;1;Telefonia fissa;03-02-2020;
218;1;156;"13,93";"13,93";TELECOM ITALIA;Z6E2A4DE7A;SALDO Fatt.n. 8E01035329  del 05/12/2019 1BIM 2020;31-01-2020;543;0;571;1;Spese correnti;3;Acquisto di beni e servizi;2;Acquisto di servizi;5;Utenze e canoni;1;Telefonia fissa;03-02-2020;
219;1;32;"148,35";"148,35";TELECOM ITALIA;Z6E2A4DE7A;EROGATORE SERVIZI TELEFONICI-PAGAMENTO TELEFONO            COD DISP 01200106026F3V NOME  TELECOM ITALIA S P A MANDATO80020100004506150148155URC (P.      23 -R.      32);31-01-2020;113;0;570;1;Spese correnti;3;Acquisto di beni e servizi;2;Acquisto di servizi;5;Utenze e canoni;1;Telefonia fissa;03-02-2020;
220;1;157;"32,64";"32,64";TELECOM ITALIA;Z6E2A4DE7A;SALDO Fatt.n. 8E01028535  del 05/12/2019 1BIM 2020;31-01-2020;113;0;570;1;Spese correnti;3;Acquisto di beni e servizi;2;Acquisto di servizi;5;Utenze e canoni;1;Telefonia fissa;03-02-2020;
221;1;33;"67,23";"67,23";TELECOM ITALIA;Z6E2A4DE7A;EROGATORE SERVIZI TELEFONICI-PAGAMENTO TELEFONO            COD DISP 01200106026F3Y NOME  TELECOM ITALIA S P A MANDATO80020100004506151555195URC (P.      24 -R.      33);31-01-2020;113;0;570;1;Spese correnti;3;Acquisto di beni e servizi;2;Acquisto di servizi;5;Utenze e canoni;1;Telefonia fissa;03-02-2020;
222;1;158;"14,79";"14,79";TELECOM ITALIA;Z6E2A4DE7A;SALDO Fatt.n. 8E01035103  del 05/12/2019 1BIM 2020;31-01-2020;113;0;570;1;Spese correnti;3;Acquisto di beni e servizi;2;Acquisto di servizi;5;Utenze e canoni;1;Telefonia fissa;03-02-2020;
224;1;159;"159,62";"159,62";ACQUE VERONESI SCARL; ;SALDO Fatt.n. 0350120190801110700  del 14/11/2019 FATTURA B/Bollettazione;31-01-2020;879;0;218;1;Spese correnti;3;Acquisto di beni e servizi;2;Acquisto di servizi;5;Utenze e canoni;5;Acqua;03-02-2020;
226;1;200;"2.768,12";"2.768,12";MINISTERO DELL'ECONOMIA E DELLE FINANZE; ;VERSAMENTO IVA A DEBITO RELATIVA AL MESE DI GENNAIO 2020;03-02-2020;1070;0;85;1;Spese correnti;10;Altre spese correnti;3;Versamenti IVA a debito;1;Versamenti IVA a debito per le gestioni commerciali;1;Versamenti IVA a debito per le gestioni commerciali;13-02-2020;
228;1;168;"11.188,94";"11.188,94";CIRFOOD SOCIETA' COOPERATIVA ITALIANA DI RISTORAZIONE;80300395CF;"SALDO Fatt.n. 5200032151  del 30/11/2019 Destinatario:0000528988,SC.PRIMARIA C.EDERLECOMUNE DI CALDIERO,PIAZZA VITTORIO VENETO .,CALDIERO,37042,VR";05-02-2020;662;0;492;1;Spese correnti;3;Acquisto di beni e servizi;2;Acquisto di servizi;15;Contratti di servizio pubblico;6;Contratti di servizio per le mense scolastiche;05-02-2020;
229;1;169;"726,64";"726,64";ACCATRE SRL;Z7D29F7C0F;SALDO Fatt.n. 191432/1  del 18/12/2019;05-02-2020;843;0;524;1;Spese correnti;3;Acquisto di beni e servizi;2;Acquisto di servizi;3;Aggi di riscossione;999;Altri aggi di riscossione n.a.c.;05-02-2020;
230;1;170;"2.740,82";"2.740,82";ACCATRE SRL;Z7D29F7C0F;SALDO Fatt.n. 191431/1  del 18/12/2019;05-02-2020;843;0;524;1;Spese correnti;3;Acquisto di beni e servizi;2;Acquisto di servizi;3;Aggi di riscossione;999;Altri aggi di riscossione n.a.c.;05-02-2020;
234;1;175;"318,93";"318,93";ABACO SPA;7408612407;SALDO Fatt.n. 2019140004422  del 06/12/2019;06-02-2020;843;0;663;1;Spese correnti;3;Acquisto di beni e servizi;2;Acquisto di servizi;3;Aggi di riscossione;999;Altri aggi di riscossione n.a.c.;10-02-2020;
235;1;176;"47,90";"47,90";ABACO SPA;7408612407;SALDO Fatt.n. 2020140000252  del 08/01/2020 FATTURA;06-02-2020;843;0;663;1;Spese correnti;3;Acquisto di beni e servizi;2;Acquisto di servizi;3;Aggi di riscossione;999;Altri aggi di riscossione n.a.c.;10-02-2020;
236;1;177;"298,81";"298,81";ABACO SPA;7408612407;SALDO Fatt.n. 2019120004889  del 06/11/2019 FATTURA;06-02-2020;382;0;166;1;Spese correnti;3;Acquisto di beni e servizi;2;Acquisto di servizi;3;Aggi di riscossione;999;Altri aggi di riscossione n.a.c.;10-02-2020;
237;1;178;"29,88";"29,88";ABACO SPA;7408612407;SALDO Fatt.n. 2020120000079  del 08/01/2020 FATTURA;06-02-2020;382;0;166;1;Spese correnti;3;Acquisto di beni e servizi;2;Acquisto di servizi;3;Aggi di riscossione;999;Altri aggi di riscossione n.a.c.;10-02-2020;
238;1;179;"8.961,00";"8.961,00";FONDAZIONE DON GAETANO PROVOLI - SCUOLA PARITARIA PER L; ;EDILIZIA SCOLASTICA  PRESA DATTO CONCESSIONE CONTRIBUTO IN CONTO CAPITALE PER LINTERVENTO DI RISTRUTTURAZIONE ED EFFICIENTAMENTO ENERGETICO DELLEDIFICIO DI PROPRIETA IN USO ALLASILO NIDO INTEGRATO IL PALLONCINO E APPROVAZIONE DELLO SCHEMA DI C;07-02-2020;1102;1;661;2;Spese in conto capitale;2;Investimenti fissi lordi e acquisto di terreni;1;Beni materiali;9;Beni immobili;3;Fabbricati ad uso scolastico;10-02-2020;
239;1;180;"402,73";"402,73";ABACO SPA;7408612407;SALDO Fatt.n. 2020120000046  del 08/01/2020 FATTURA;07-02-2020;382;0;166;1;Spese correnti;3;Acquisto di beni e servizi;2;Acquisto di servizi;3;Aggi di riscossione;999;Altri aggi di riscossione n.a.c.;10-02-2020;
240;1;181;"1.141,92";"1.141,92";SBERVEGLIERI LUCA;Z5F2735303;SALDO Fatt.n. 29  del 20/11/2019 SALDO PER LA DIREZIONE LAVORI;07-02-2020;1185;0;155;2;Spese in conto capitale;2;Investimenti fissi lordi e acquisto di terreni;1;Beni materiali;9;Beni immobili;12;Infrastrutture stradali;10-02-2020;
241;1;182;"468,61";"468,61";ABACO SPA;7408612407;SALDO Fatt.n. 2019120004948  del 07/11/2019 FATTURA;10-02-2020;382;0;166;1;Spese correnti;3;Acquisto di beni e servizi;2;Acquisto di servizi;3;Aggi di riscossione;999;Altri aggi di riscossione n.a.c.;12-02-2020;
242;1;183;"256,47";"256,47";ABACO SPA;7408612407;SALDO Fatt.n. 2019120005300  del 06/12/2019 FATTURA;10-02-2020;382;0;166;1;Spese correnti;3;Acquisto di beni e servizi;2;Acquisto di servizi;3;Aggi di riscossione;999;Altri aggi di riscossione n.a.c.;12-02-2020;
243;1;184;"509,90";"509,90";ABACO SPA;7408612407;SALDO Fatt.n. 2020120000045  del 08/01/2020 FATTURA;10-02-2020;382;0;166;1;Spese correnti;3;Acquisto di beni e servizi;2;Acquisto di servizi;3;Aggi di riscossione;999;Altri aggi di riscossione n.a.c.;12-02-2020;
244;1;185;"180,00";"180,00";MAG SPA;Z1F2BD8BEA;"ACCENSIONE, IN FAVORE DELLUFFICIO CONCESSIONI DI VENETO STRADE S.P.A., DI UNA POLIZZA FIDEJUSSORIA PER LA REALIZZAZIONE DI UN TRATTO DI PISTA CICLABILE LUNGO LA S.R. 11 PADANA SUPERIORE DA KM 315+800 A KM 316+200 DX, CON LA COMPAGNIA ASSICURATIVA";11-02-2020;1193;0;339;2;Spese in conto capitale;2;Investimenti fissi lordi e acquisto di terreni;1;Beni materiali;9;Beni immobili;12;Infrastrutture stradali;12-02-2020;
245;1;186;"2.777,94";"2.777,94";POWER MEDIA SNC;Z082B49B2F;SALDO Fatt.n. FATTPA 10_20  del 01/02/2020 VENDITA;11-02-2020;118;0;709;1;Spese correnti;3;Acquisto di beni e servizi;2;Acquisto di servizi;19;Servizi informatici e di telecomunicazioni;9;Servizi per le postazioni di lavoro e relativa manutenzione;12-02-2020;
246;1;187;"1.822,68";"1.822,68";POWER MEDIA SNC;Z3D2B63594;SALDO Fatt.n. FATTPA 9_20  del 01/02/2020 VENDITA;11-02-2020;118;0;739;1;Spese correnti;3;Acquisto di beni e servizi;2;Acquisto di servizi;19;Servizi informatici e di telecomunicazioni;1;Gestione e manutenzione applicazioni;12-02-2020;
247;1;188;"47,48";"47,48";ASTOLFI ANTONIO; ;ACCONTO Fatt.n. 00017/PA  del 17/12/2019;11-02-2020;148;0;762;1;Spese correnti;3;Acquisto di beni e servizi;2;Acquisto di servizi;1;Organi e incarichi istituzionali dell'amministrazione;8;"Compensi agli organi istituzionali di revisione, di controllo ed altri incarichi istituzionali dell'amministrazione";12-02-2020;
248;1;189;"4.227,36";"4.227,36";ASTOLFI ANTONIO; ;ACCONTO Fatt.n. 00017/PA  del 17/12/2019;11-02-2020;148;0;762;1;Spese correnti;3;Acquisto di beni e servizi;2;Acquisto di servizi;1;Organi e incarichi istituzionali dell'amministrazione;8;"Compensi agli organi istituzionali di revisione, di controllo ed altri incarichi istituzionali dell'amministrazione";12-02-2020;
249;1;190;"174,01";"174,01";ASTOLFI ANTONIO; ;SALDO Fatt.n. 00017/PA  del 17/12/2019;11-02-2020;148;0;762;1;Spese correnti;3;Acquisto di beni e servizi;2;Acquisto di servizi;1;Organi e incarichi istituzionali dell'amministrazione;8;"Compensi agli organi istituzionali di revisione, di controllo ed altri incarichi istituzionali dell'amministrazione";12-02-2020;
250;1;191;"773,85";"773,85";COMUNE DI SOAVE; ;SERVIZIO ELETTORALE: Rimborso alla IX Sottocommissione elettorale circondariale di Soave relativo al I semestre 2019.;11-02-2020;130;0;75;1;Spese correnti;3;Acquisto di beni e servizi;2;Acquisto di servizi;1;Organi e incarichi istituzionali dell'amministrazione;7;Commissioni elettorali;12-02-2020;
251;1;254;"-8,40";"145,39";LEGGERE SRL;Z8A2934CC5;SALDO Fatt.n. 22088  del 31/12/2019 NOTA DI ACCREDITO;12-02-2020;681;0;388;1;Spese correnti;3;Acquisto di beni e servizi;1;Acquisto di beni;1;"Giornali, riviste e pubblicazioni";2;Pubblicazioni;14-02-2020;
251;2;254;"153,79";"145,39";LEGGERE SRL;Z8A2934CC5;SALDO Fatt.n. 22087  del 31/12/2019 FATTURA LIBRI;12-02-2020;681;0;388;1;Spese correnti;3;Acquisto di beni e servizi;1;Acquisto di beni;1;"Giornali, riviste e pubblicazioni";2;Pubblicazioni;14-02-2020;
252;1;255;"-0,01";"28,71";LEGGERE SRL;Z8A2934CC5;SALDO Fatt.n. 22086  del 31/12/2019 FATTURA LIBRI;12-02-2020;681;0;388;1;Spese correnti;3;Acquisto di beni e servizi;1;Acquisto di beni;1;"Giornali, riviste e pubblicazioni";2;Pubblicazioni;14-02-2020;
252;2;255;"28,72";"28,71";LEGGERE SRL;Z8A2934CC5;SALDO Fatt.n. 22086  del 31/12/2019 FATTURA LIBRI;12-02-2020;681;0;388;1;Spese correnti;3;Acquisto di beni e servizi;1;Acquisto di beni;1;"Giornali, riviste e pubblicazioni";2;Pubblicazioni;14-02-2020;
253;1;256;"824,72";"824,72";ADAMI GRAZIANO;Z9426E4C37;SALDO Fatt.n. 7/PA  del 07/02/2020 FATTURA;12-02-2020;378;0;69;1;Spese correnti;3;Acquisto di beni e servizi;2;Acquisto di servizi;16;Servizi amministrativi;999;Altre spese per servizi amministrativi;14-02-2020;
254;1;257;"959,65";"959,65";CIDIELLE COOPERATIVA SOCIALE;6993707D94;SALDO Fatt.n. 313/02  del 28/11/2019 fattura Mese di giugno 2018;12-02-2020;117;0;150;1;Spese correnti;3;Acquisto di beni e servizi;2;Acquisto di servizi;13;Servizi ausiliari per il funzionamento dell'ente;2;Servizi di pulizia e lavanderia;14-02-2020;
255;1;258;"-2.357,55";"40,93";CIDIELLE COOPERATIVA SOCIALE;7815839A5F;SALDO Fatt.n. 312/02  del 28/11/2019 NOTA DI ACCREDITO;12-02-2020;117;0;115;1;Spese correnti;3;Acquisto di beni e servizi;2;Acquisto di servizi;13;Servizi ausiliari per il funzionamento dell'ente;2;Servizi di pulizia e lavanderia;14-02-2020;
255;2;258;"2.398,48";"40,93";CIDIELLE COOPERATIVA SOCIALE;7815839A5F;SALDO Fatt.n. 355/02  del 31/12/2019 FATTURA MESE DI DICEMBRE 2019;12-02-2020;117;0;115;1;Spese correnti;3;Acquisto di beni e servizi;2;Acquisto di servizi;13;Servizi ausiliari per il funzionamento dell'ente;2;Servizi di pulizia e lavanderia;14-02-2020;
256;1;259;"116,23";"116,23";CONVERGE SPA;Z5A1F50C97;ACCONTO Fatt.n. 20300572  del 21/01/2020 NOLEGGIO APPARECCHIATURE MULTIFUNZIONE PER UFFICIO TECNICO;12-02-2020;109;0;397;1;Spese correnti;3;Acquisto di beni e servizi;2;Acquisto di servizi;7;Utilizzo di beni di terzi;4;Noleggi di hardware;14-02-2020;
257;1;260;"196,14";"196,14";CONVERGE SPA;Z5A1F50C97;SALDO Fatt.n. 20300572  del 21/01/2020 NOLEGGIO APPARECCHIATURE MULTIFUNZIONE PER UFFICIO TECNICO;12-02-2020;109;0;397;1;Spese correnti;3;Acquisto di beni e servizi;2;Acquisto di servizi;7;Utilizzo di beni di terzi;4;Noleggi di hardware;14-02-2020;
258;1;261;"1.729,37";"1.729,37";MINISTERO INTERNO - DIREZIONE CENTR SERV DEMOGRAFICI; ;Liquidazione diritti per il rilascio di carte didentita elettroniche GENNAIO 2020 (N. 103 CARTE DI IDENTITA);13-02-2020;325;0;73;1;Spese correnti;4;Trasferimenti correnti;1;Trasferimenti correnti a Amministrazioni Pubbliche;1;Trasferimenti correnti a Amministrazioni Centrali;1;Trasferimenti correnti a Ministeri;14-02-2020;
259;1;262;"914,71";"914,71";ANCI VENETO; ;ORGANISMI ASSOCIATIVI - ADESIONE ANNO 2020 AD ANCI VENETO;13-02-2020;190;0;92;1;Spese correnti;4;Trasferimenti correnti;1;Trasferimenti correnti a Amministrazioni Pubbliche;1;Trasferimenti correnti a Amministrazioni Centrali;11;Trasferimenti correnti a enti centrali a struttura associativa;14-02-2020;
260;1;263;"230,00";"230,00";ANUTEL; ;ORGANISMI ASSOCIATIVI - ADESIONE ANNO 2020 AD ANUTEL;13-02-2020;190;0;93;1;Spese correnti;4;Trasferimenti correnti;1;Trasferimenti correnti a Amministrazioni Pubbliche;1;Trasferimenti correnti a Amministrazioni Centrali;11;Trasferimenti correnti a enti centrali a struttura associativa;14-02-2020;
261;1;264;"440,00";"440,00";ANUSCA; ;ORGANISMI ASSOCIATIVI - ADESIONE ANNO 2020 AD  ANUSCA;13-02-2020;190;0;94;1;Spese correnti;4;Trasferimenti correnti;1;Trasferimenti correnti a Amministrazioni Pubbliche;1;Trasferimenti correnti a Amministrazioni Centrali;11;Trasferimenti correnti a enti centrali a struttura associativa;14-02-2020;
262;1;265;"500,00";"500,00";AVVISO PUBBLICO; ;ORGANISMI ASSOCIATIVI - ADESIONE ANNO 2020 AD AVVISO PUBBLICO;13-02-2020;190;0;95;1;Spese correnti;4;Trasferimenti correnti;1;Trasferimenti correnti a Amministrazioni Pubbliche;1;Trasferimenti correnti a Amministrazioni Centrali;11;Trasferimenti correnti a enti centrali a struttura associativa;14-02-2020;
263;1;266;"880,00";"880,00";CENTRO TEATRALE CORNIANI ARTISTI ASSOCIATI;Z3B2BA9B99;SALDO Fatt.n. 8  del 05/02/2020;13-02-2020;686;0;74;1;Spese correnti;3;Acquisto di beni e servizi;2;Acquisto di servizi;2;"Organizzazione eventi, pubblicita` e servizi per trasferta";5;Organizzazione e partecipazione a manifestazioni e convegni;14-02-2020;
264;1;267;"770,00";"770,00";ACCADEMIA DI TEAMUS;Z4C2A3830D;SALDO Fatt.n. 1  del 15/01/2020;13-02-2020;686;0;579;1;Spese correnti;3;Acquisto di beni e servizi;2;Acquisto di servizi;2;"Organizzazione eventi, pubblicita` e servizi per trasferta";5;Organizzazione e partecipazione a manifestazioni e convegni;14-02-2020;
265;1;268;"770,00";"770,00";ACCADEMIA DI TEAMUS;ZC223EF641;SALDO Fatt.n. 2  del 07/02/2020;13-02-2020;686;0;412;1;Spese correnti;3;Acquisto di beni e servizi;2;Acquisto di servizi;2;"Organizzazione eventi, pubblicita` e servizi per trasferta";5;Organizzazione e partecipazione a manifestazioni e convegni;14-02-2020;
281;1;284;"5,58";"5,58";COMUNE DI COLOGNOLA AI COLLI; ;RIMBORSO SPESE DI NOTIFICA ATTI EFFETTUATE DA PARTE DI ALTRI COMUNI - ACCONTO RIF. VS. RICHIESTA PROT. N. 1771 DEL 30/01/2020;17-02-2020;843;0;280;1;Spese correnti;3;Acquisto di beni e servizi;2;Acquisto di servizi;3;Aggi di riscossione;999;Altri aggi di riscossione n.a.c.;18-02-2020;
282;1;287;"67,26";"67,26";COMUNE DI COLOGNOLA AI COLLI; ;RIMBORSO SPESE DI NOTIFICA ATTI EFFETTUATE DA PARTE DI ALTRI COMUNI - SALDO RIF. VS. RICHIESTA PROT. N. 1771 DEL 30/01/2020;17-02-2020;843;0;87;1;Spese correnti;3;Acquisto di beni e servizi;2;Acquisto di servizi;3;Aggi di riscossione;999;Altri aggi di riscossione n.a.c.;19-02-2020;
283;1;285;"225,00";"225,00";UNIONE DI COMUNI VERONA EST;8083630680;LAVORI DI COMPLETAMENTO DEL SECONDO PIANO DELLA NUOVA ALA DELLA SCUOLA ELEMENTARE CARLO EDERLE DI CALDIERO - CONTRIBUTO ANAC;17-02-2020;1108;0;802;2;Spese in conto capitale;2;Investimenti fissi lordi e acquisto di terreni;1;Beni materiali;9;Beni immobili;3;Fabbricati ad uso scolastico;18-02-2020;
284;1;286;"162,75";"162,75";UNIONE DI COMUNI VERONA EST; ;Rimborso a favore della  C.U.C. Unione Comuni Verona Est delle spese inerenti la commissione di gara ed il contributo ANAC per lespletamento della procedura di gara per lappalto dei lavori di Completamento del secondo piano della nuova ala della s;17-02-2020;1108;0;802;2;Spese in conto capitale;2;Investimenti fissi lordi e acquisto di terreni;1;Beni materiali;9;Beni immobili;3;Fabbricati ad uso scolastico;18-02-2020;
286;1;164;"1,90";"3,80";INTESA SAN PAOLO - TESORERIA COMUNALE;ZB823CBCD9;ENTE EROGATORE SERVIZI POS-CANONE SPESE DIVERSE SERVIZIO POS                           COMUNE DI CALDIERO98 COMM     SETEFI5 (P.      42 -R.     164);19-02-2020;374;0;301;1;Spese correnti;3;Acquisto di beni e servizi;2;Acquisto di servizi;17;Servizi finanziari;2;Oneri per servizio di tesoreria;21-02-2020;
286;2;164;"1,90";"3,80";INTESA SAN PAOLO - TESORERIA COMUNALE;ZB823CBCD9;ENTE EROGATORE SERVIZI POS-CANONE SPESE DIVERSE SERVIZIO POS                           COMUNE DI CALDIERO98 COMM     SETEFI5 (P.      45 -R.     167);19-02-2020;374;0;301;1;Spese correnti;3;Acquisto di beni e servizi;2;Acquisto di servizi;17;Servizi finanziari;2;Oneri per servizio di tesoreria;21-02-2020;
287;1;193;"692,86";"692,86";SOENERGY SRL;7961490D60;SALDO Fatt.n. 201007377  del 10/01/2020 FORNITURA GAS;19-02-2020;582;0;375;1;Spese correnti;3;Acquisto di beni e servizi;2;Acquisto di servizi;5;Utenze e canoni;6;Gas;21-02-2020;
288;1;288;"152,43";"152,43";SOENERGY SRL;7961490D60;Fatt.n. 201007377 del 10/01/2020 FORNITURA GAS;19-02-2020;582;0;375;1;Spese correnti;3;Acquisto di beni e servizi;2;Acquisto di servizi;5;Utenze e canoni;6;Gas;21-02-2020;
289;1;194;"275,26";"275,26";SOENERGY SRL;7961490D60;BENEFICIARI DIVERSI-PAGAMENTI DIVERSI             COD DISP 012001310XDW1N NOME  SOENERGY S R L MANDATO        99Z1610053624A299 PFM 4396737 Fattura 201007378 del 10 01 20 Scad 12 0 (P.      48 -R.     194);19-02-2020;112;0;372;1;Spese correnti;3;Acquisto di beni e servizi;2;Acquisto di servizi;5;Utenze e canoni;6;Gas;21-02-2020;
290;1;289;"60,56";"60,56";SOENERGY SRL;7961490D60;Fatt.n. 201007378 del 10/01/2020 FORNITURA GAS;19-02-2020;112;0;372;1;Spese correnti;3;Acquisto di beni e servizi;2;Acquisto di servizi;5;Utenze e canoni;6;Gas;21-02-2020;
291;1;195;"618,89";"618,89";SOENERGY SRL;7961490D60;BENEFICIARI DIVERSI-PAGAMENTI DIVERSI             COD DISP 012001310XDW2W NOME  SOENERGY S R L MANDATO        99Z1610053624A299 PFM 4396739 Fattura 201007380 del 10 01 20 Scad 12 0 (P.      49 -R.     195);19-02-2020;212;0;373;1;Spese correnti;3;Acquisto di beni e servizi;2;Acquisto di servizi;5;Utenze e canoni;6;Gas;21-02-2020;
292;1;290;"136,16";"136,16";SOENERGY SRL;7961490D60;Fatt.n. 201007380 del 10/01/2020 FORNITURA GAS;19-02-2020;212;0;373;1;Spese correnti;3;Acquisto di beni e servizi;2;Acquisto di servizi;5;Utenze e canoni;6;Gas;21-02-2020;
293;1;196;"1.087,14";"1.087,14";SOENERGY SRL;7961490D60;BENEFICIARI DIVERSI-PAGAMENTI DIVERSI             COD DISP 012001310XDW21 NOME  SOENERGY S R L MANDATO        99Z1610053624A299 PFM 4396735 Fattura 201007376 del 10 01 20 Scad 12 0 (P.      50 -R.     196);19-02-2020;884;0;379;1;Spese correnti;3;Acquisto di beni e servizi;2;Acquisto di servizi;5;Utenze e canoni;6;Gas;21-02-2020;
294;1;291;"239,17";"239,17";SOENERGY SRL;7961490D60;Fatt.n. 201007376 del 10/01/2020 FORNITURA GAS;19-02-2020;884;0;379;1;Spese correnti;3;Acquisto di beni e servizi;2;Acquisto di servizi;5;Utenze e canoni;6;Gas;21-02-2020;
295;1;197;"1.511,56";"1.511,56";SOENERGY SRL;7961490D60;BENEFICIARI DIVERSI-PAGAMENTI DIVERSI             COD DISP 012001310XDW1R NOME  SOENERGY S R L MANDATO        99Z1610053624A299 PFM 4396734 Fattura 201000331 del 10 01 20 Scad 12 0 (P.      51 -R.     197);19-02-2020;542;0;374;1;Spese correnti;3;Acquisto di beni e servizi;2;Acquisto di servizi;5;Utenze e canoni;6;Gas;21-02-2020;
296;1;292;"332,54";"332,54";SOENERGY SRL;7961490D60;Fatt.n. 201000331 del 10/01/2020 FORNITURA GAS;19-02-2020;542;0;374;1;Spese correnti;3;Acquisto di beni e servizi;2;Acquisto di servizi;5;Utenze e canoni;6;Gas;21-02-2020;
297;1;198;"1.269,16";"1.269,16";SOENERGY SRL;7961490D60;BENEFICIARI DIVERSI-PAGAMENTI DIVERSI             COD DISP 012001310XDW1W NOME  SOENERGY S R L MANDATO        99Z1610053624A299 PFM 4396733 Fattura 201000330 del 10 01 20 Scad 12 0 (P.      52 -R.     198);19-02-2020;353;0;376;1;Spese correnti;3;Acquisto di beni e servizi;2;Acquisto di servizi;5;Utenze e canoni;6;Gas;21-02-2020;
298;1;293;"279,08";"279,08";SOENERGY SRL;7961490D60;Fatt.n. 201000330 del 10/01/2020 FORNITURA GAS;19-02-2020;353;0;376;1;Spese correnti;3;Acquisto di beni e servizi;2;Acquisto di servizi;5;Utenze e canoni;6;Gas;21-02-2020;
299;1;294;"482,14";"482,14";SBERVEGLIERI LUCA;ZF624A849E;SALDO Fatt.n. 5  del 07/02/2020 fattura;21-02-2020;270;0;484;1;Spese correnti;3;Acquisto di beni e servizi;2;Acquisto di servizi;11;Prestazioni professionali e specialistiche;999;Altre prestazioni professionali e specialistiche n.a.c.;21-02-2020;
300;1;295;"976,00";"976,00";CARDIN MARCO;Z4828D1168;SALDO Fatt.n. 38/2019  del 14/11/2019 FATTURA;21-02-2020;270;0;360;1;Spese correnti;3;Acquisto di beni e servizi;2;Acquisto di servizi;11;Prestazioni professionali e specialistiche;4;Perizie;21-02-2020;
301;1;296;"761,28";"761,28";STUDIO ASSOCIATO INGEGNERI IS5812 DI CASSIN MARCO E DAN;Z112752352;SALDO Fatt.n. FPA 3/20  del 03/02/2020 FATTURA;21-02-2020;1093;1;473;2;Spese in conto capitale;2;Investimenti fissi lordi e acquisto di terreni;1;Beni materiali;9;Beni immobili;19;Fabbricati ad uso strumentale;21-02-2020;
303;1;298;"5.000,00";"5.000,00";FONDAZIONE DON GAETANO PROVOLI - SCUOLA PARITARIA PER L; ;FATTORE FAMIGLIA: APPROVAZIONE CRITERI E MODALITA PER LAPPLICAZIONE ALLE RETTE DEGLI ASILI NIDO E DELLE SCUOLE DINFANZIA PARITARIE - ACCONTO DI EURO 5.000 SU 5.264 RIF. DETERMINA AREA AMMVA N. 9-2020;21-02-2020;480;0;732;1;Spese correnti;4;Trasferimenti correnti;4;Trasferimenti correnti a Istituzioni Sociali Private;1;Trasferimenti correnti a Istituzioni Sociali Private;1;Trasferimenti correnti a Istituzioni Sociali Private;21-02-2020;
304;1;299;"264,00";"264,00";FONDAZIONE DON GAETANO PROVOLI - SCUOLA PARITARIA PER L; ;"FATTORE FAMIGLIA COMUNALE - STANZIAMENTO DEL FONDO  PER LAPPLICAZIONE DELLISTITUTO - SALDO DI  264,00 SU 5.264,00 RIF. DETERMINA AREA AMMVA N. 9-2020";21-02-2020;480;0;733;1;Spese correnti;4;Trasferimenti correnti;4;Trasferimenti correnti a Istituzioni Sociali Private;1;Trasferimenti correnti a Istituzioni Sociali Private;1;Trasferimenti correnti a Istituzioni Sociali Private;21-02-2020;
305;1;300;"2.016,00";"2.016,00";SCUOLA MATERNA MARIA BAMBINA; ;FATTORE FAMIGLIA COMUNALE - STANZIAMENTO DEL FONDO  PER LAPPLICAZIONE DELLISTITUTO - RIF. DETERMINA AREA AMMVA N. 9-2020;21-02-2020;480;0;733;1;Spese correnti;4;Trasferimenti correnti;4;Trasferimenti correnti a Istituzioni Sociali Private;1;Trasferimenti correnti a Istituzioni Sociali Private;1;Trasferimenti correnti a Istituzioni Sociali Private;21-02-2020;
306;1;301;"1.470,00";"1.470,00";SCUOLA MATERNA "MARIA IMMACOLATA" STRA'; ;FATTORE FAMIGLIA COMUNALE - STANZIAMENTO DEL FONDO  PER LAPPLICAZIONE DELLISTITUTO - RIF. DETERMINA AREA AMMVA N. 9-2020;21-02-2020;480;0;733;1;Spese correnti;4;Trasferimenti correnti;4;Trasferimenti correnti a Istituzioni Sociali Private;1;Trasferimenti correnti a Istituzioni Sociali Private;1;Trasferimenti correnti a Istituzioni Sociali Private;21-02-2020;
307;1;302;"770,00";"770,00";COMPAGNIA TEATRALE GT EINAUDI-GALILEI;ZA52770371;SALDO Fatt.n. 2  del 12/02/2020 FATTURA;21-02-2020;686;0;128;1;Spese correnti;3;Acquisto di beni e servizi;2;Acquisto di servizi;2;"Organizzazione eventi, pubblicita` e servizi per trasferta";5;Organizzazione e partecipazione a manifestazioni e convegni;21-02-2020;
308;1;303;"682,00";"682,00";ASSOCIAZIONE CULTURALE TEATRINO DELLA NEVE;Z0E2BE8A2D;SALDO Fatt.n. FATTPA 5_20  del 12/02/2020;21-02-2020;686;0;96;1;Spese correnti;3;Acquisto di beni e servizi;2;Acquisto di servizi;2;"Organizzazione eventi, pubblicita` e servizi per trasferta";5;Organizzazione e partecipazione a manifestazioni e convegni;21-02-2020;
309;1;304;"157,58";"157,58";VENETO STRADE SPA; ;SALDO Fatt.n. 12  del 04/02/2020 Emissione Fattura;21-02-2020;1193;0;339;2;Spese in conto capitale;2;Investimenti fissi lordi e acquisto di terreni;1;Beni materiali;9;Beni immobili;12;Infrastrutture stradali;21-02-2020;
310;1;305;"4.453,09";"4.453,09";SORDATO SRL;Z102019168;SALDO Fatt.n. PA  000007  del 29/01/2020 FATTURA;21-02-2020;114;0;599;1;Spese correnti;3;Acquisto di beni e servizi;2;Acquisto di servizi;9;Manutenzione ordinaria e riparazioni;4;Manutenzione ordinaria e riparazioni di impianti e macchinari;21-02-2020;
311;1;306;"129,17";"129,17";LA RONDA - SERVIZI DI VIGILANZA;Z4022A6179;SALDO Fatt.n. V1-2416  del 30/01/2020 FATTURA;21-02-2020;357;0;205;1;Spese correnti;3;Acquisto di beni e servizi;2;Acquisto di servizi;13;Servizi ausiliari per il funzionamento dell'ente;1;"Servizi di sorveglianza, custodia e accoglienza";21-02-2020;
312;1;307;"14.640,00";"14.640,00";MORANDO FRANCESCO;Z7F2A916A2;ACCONTO Fatt.n. 38/E  del 03/02/2020 fattura;21-02-2020;870;0;665;1;Spese correnti;3;Acquisto di beni e servizi;2;Acquisto di servizi;9;Manutenzione ordinaria e riparazioni;8;Manutenzione ordinaria e riparazioni di beni immobili;21-02-2020;
313;1;308;"12.608,46";"12.608,46";MORANDO FRANCESCO;Z7F2A916A2;SALDO Fatt.n. 38/E  del 03/02/2020 fattura;21-02-2020;870;0;665;1;Spese correnti;3;Acquisto di beni e servizi;2;Acquisto di servizi;9;Manutenzione ordinaria e riparazioni;8;Manutenzione ordinaria e riparazioni di beni immobili;21-02-2020;
314;1;309;"2.074,00";"2.074,00";COOPERATIVA SOCIALE VENETA ONLUS;Z5E2729583;SALDO Fatt.n. 20/002  del 31/01/2020 FATTURA;21-02-2020;782;0;170;1;Spese correnti;3;Acquisto di beni e servizi;2;Acquisto di servizi;9;Manutenzione ordinaria e riparazioni;8;Manutenzione ordinaria e riparazioni di beni immobili;21-02-2020;
315;1;310;"1.263,56";"1.263,56";COOPERATIVA SOCIALE VENETA ONLUS;Z431F034F6;ACCONTO Fatt.n. 19/002  del 31/01/2020 FATTURA;21-02-2020;782;0;669;1;Spese correnti;3;Acquisto di beni e servizi;2;Acquisto di servizi;9;Manutenzione ordinaria e riparazioni;8;Manutenzione ordinaria e riparazioni di beni immobili;21-02-2020;
316;1;311;"125,20";"125,20";COOPERATIVA SOCIALE VENETA ONLUS;Z431F034F6;SALDO Fatt.n. 19/002  del 31/01/2020 FATTURA;21-02-2020;782;0;170;1;Spese correnti;3;Acquisto di beni e servizi;2;Acquisto di servizi;9;Manutenzione ordinaria e riparazioni;8;Manutenzione ordinaria e riparazioni di beni immobili;21-02-2020;
317;1;312;"1.411,66";"1.411,66";MATTARANETTA SOCIETA' COOPERATIVA SOCIALE;Z9F225C229;SALDO Fatt.n. 4/FE  del 31/01/2020 FATTURA IMMEDIATA;21-02-2020;840;0;141;1;Spese correnti;3;Acquisto di beni e servizi;2;Acquisto di servizi;15;Contratti di servizio pubblico;4;Contratti di servizio per la raccolta rifiuti;21-02-2020;
318;1;313;"17.042,47";"17.042,47";CIDIELLE COOPERATIVA SOCIALE;79401979D7;SALDO Fatt.n. 374/02  del 31/12/2019 FATTURA;21-02-2020;870;0;342;1;Spese correnti;3;Acquisto di beni e servizi;2;Acquisto di servizi;9;Manutenzione ordinaria e riparazioni;8;Manutenzione ordinaria e riparazioni di beni immobili;21-02-2020;
319;1;314;"53,93";"53,93";EDILTOSI SRL;Z9B248C873;SALDO Fatt.n. 000382  del 31/01/2020 FATTURA;21-02-2020;950;0;537;1;Spese correnti;3;Acquisto di beni e servizi;1;Acquisto di beni;2;Altri beni di consumo;999;Altri beni e materiali di consumo n.a.c.;21-02-2020;
320;1;315;"4.016,96";"4.016,96";PAIOLA BRUNO SAS DI PAIOLA GIORGIO & C;Z42240A47F;SALDO Fatt.n. 2/E  del 23/01/2020 Fattura Accompagnatoria;21-02-2020;970;0;480;1;Spese correnti;3;Acquisto di beni e servizi;2;Acquisto di servizi;9;Manutenzione ordinaria e riparazioni;4;Manutenzione ordinaria e riparazioni di impianti e macchinari;21-02-2020;
323;1;318;"1.543,30";"1.543,30";PROMOLINE SRL;Z782B07B03;SALDO Fatt.n. 2020    31  del 31/01/2020 fattura;21-02-2020;883;0;668;1;Spese correnti;3;Acquisto di beni e servizi;2;Acquisto di servizi;9;Manutenzione ordinaria e riparazioni;8;Manutenzione ordinaria e riparazioni di beni immobili;21-02-2020;
324;1;319;"504,00";"504,00";GALEOTTI GEOM. FRANCESCO STUDIO TECNICO;Z682A49258;SALDO Fatt.n. 0000001/PA  del 20/01/2020 fattura;21-02-2020;270;0;598;1;Spese correnti;3;Acquisto di beni e servizi;2;Acquisto di servizi;11;Prestazioni professionali e specialistiche;999;Altre prestazioni professionali e specialistiche n.a.c.;21-02-2020;
325;1;320;"3.050,00";"3.050,00";VERONA FINESTRE SRL;Z9B27472C6;SALDO Fatt.n. 877  del 06/12/2019 FATTURA;21-02-2020;549;0;208;1;Spese correnti;3;Acquisto di beni e servizi;2;Acquisto di servizi;9;Manutenzione ordinaria e riparazioni;8;Manutenzione ordinaria e riparazioni di beni immobili;21-02-2020;
326;1;321;"1.196,65";"1.196,65";SAVOIA ANDREA;Z9C24BEDAF;ACCONTO Fatt.n. 1/01  del 04/02/2020 fattura;21-02-2020;271;0;555;1;Spese correnti;3;Acquisto di beni e servizi;2;Acquisto di servizi;11;Prestazioni professionali e specialistiche;999;Altre prestazioni professionali e specialistiche n.a.c.;21-02-2020;
327;1;322;"333,10";"333,10";SAVOIA ANDREA;Z9C24BEDAF;SALDO Fatt.n. 1/01  del 04/02/2020 fattura;21-02-2020;271;0;555;1;Spese correnti;3;Acquisto di beni e servizi;2;Acquisto di servizi;11;Prestazioni professionali e specialistiche;999;Altre prestazioni professionali e specialistiche n.a.c.;21-02-2020;
329;1;324;"6.962,91";"6.962,91";CIRFOOD SOCIETA' COOPERATIVA ITALIANA DI RISTORAZIONE;80300395CF;"ACCONTO Fatt.n. 5200035860  del 31/12/2019 Destinatario:0000528988,SC.PRIMARIA C.EDERLECOMUNE DI CALDIERO,PIAZZA VITTORIO VENETO .,CALDIERO,37042,VR";21-02-2020;662;0;492;1;Spese correnti;3;Acquisto di beni e servizi;2;Acquisto di servizi;15;Contratti di servizio pubblico;6;Contratti di servizio per le mense scolastiche;21-02-2020;
330;1;325;"1.292,40";"1.292,40";CIRFOOD SOCIETA' COOPERATIVA ITALIANA DI RISTORAZIONE;80300395CF;"SALDO Fatt.n. 5200035860  del 31/12/2019 Destinatario:0000528988,SC.PRIMARIA C.EDERLECOMUNE DI CALDIERO,PIAZZA VITTORIO VENETO .,CALDIERO,37042,VR";21-02-2020;662;0;492;1;Spese correnti;3;Acquisto di beni e servizi;2;Acquisto di servizi;15;Contratti di servizio pubblico;6;Contratti di servizio per le mense scolastiche;21-02-2020;
331;1;404;"4.655,00";"4.655,00";AMMINISTRATORI COMUNALI; ;INDENNITA DI CARICA SPETTANTE PER IL MESE DI FEBBRAIO 2020;21-02-2020;10;0;4;1;Spese correnti;3;Acquisto di beni e servizi;2;Acquisto di servizi;1;Organi e incarichi istituzionali dell'amministrazione;1;Organi istituzionali dell'amministrazione - Indennità;28-02-2020;
347;1;410;"251,86";"251,86";DIPENDENTI COMUNALI;80300395CF;INCENTIVO FUNZIONI TECNICHE - SERVIZIO DI RISTORAZIONE SCOLASTICA A RIDOTTO IMPATTO AMBIENTALE A.S.2019/20 E 2020/21 RINNOVABILE PER LA.S.2021/22  AGGIUDICATO DALLUNIONE COMUNI VERONA EST CUC A CIRFOOD DI REGGIO EMILIA (RE) LOTTO 1;21-02-2020;662;0;700;1;Spese correnti;3;Acquisto di beni e servizi;2;Acquisto di servizi;15;Contratti di servizio pubblico;6;Contratti di servizio per le mense scolastiche;28-02-2020;
351;1;410;"661,87";"661,87";AMMINISTRATORI COMUNALI;Z9426E4C37;GETTONI DI PRESENZA 2019;21-02-2020;10;0;746;1;Spese correnti;3;Acquisto di beni e servizi;2;Acquisto di servizi;1;Organi e incarichi istituzionali dell'amministrazione;1;Organi istituzionali dell'amministrazione - Indennità;28-02-2020;
352;1;2735;"38,41";"38,41";SGREVA FABIO;Z9426E4C37;GETTONI DI PRESENZA 2019;21-02-2020;10;0;746;1;Spese correnti;3;Acquisto di beni e servizi;2;Acquisto di servizi;1;Organi e incarichi istituzionali dell'amministrazione;1;Organi istituzionali dell'amministrazione - Indennità;29-12-2020;
353;1;410;"150,00";"150,00";FRIGO ANDREA; ;liquidazione Geom. Frigo Andrea dipendente del comune di Soave per lincarico di collaborazione presso lArea Lavori Pubblici del Comune di Caldiero;21-02-2020;253;0;477;1;Spese correnti;3;Acquisto di beni e servizi;2;Acquisto di servizi;11;Prestazioni professionali e specialistiche;999;Altre prestazioni professionali e specialistiche n.a.c.;28-02-2020;
354;1;352;"225,00";"225,00";ALBI MATTEO;ZEE2AD2865;INIZIATIVA COMUNALE SANTA LUCIA IN PIAZZA. CALDIERO PER LA SOLIDARIETA domenica 08 dicembre 2019. SERVIZIO DI INTRATTENIMENTO. AFFIDAMENTO DIRETTO A RADIO CRICETO DI ALBI MATTEO.;21-02-2020;893;0;637;1;Spese correnti;3;Acquisto di beni e servizi;2;Acquisto di servizi;2;"Organizzazione eventi, pubblicita` e servizi per trasferta";5;Organizzazione e partecipazione a manifestazioni e convegni;26-02-2020;
355;1;336;"225,00";"225,00";UNIONE DI COMUNI VERONA EST; ;Rimborso a favore della  C.U.C. Unione Comuni Verona Est delle spese inerenti il versamento del contributo ANAC per lespletamento della prima procedura di gara per lappalto dei lavori di Completamento del secondo piano della nuova ala della scuola;25-02-2020;1108;0;802;2;Spese in conto capitale;2;Investimenti fissi lordi e acquisto di terreni;1;Beni materiali;9;Beni immobili;3;Fabbricati ad uso scolastico;25-02-2020;
356;1;337;"1.117,22";"1.117,22";MORANDO FRANCESCO;Z82266F3BA;SALDO Fatt.n. 60/E  del 20/02/2020 FATTURA;25-02-2020;870;0;108;1;Spese correnti;3;Acquisto di beni e servizi;2;Acquisto di servizi;9;Manutenzione ordinaria e riparazioni;8;Manutenzione ordinaria e riparazioni di beni immobili;25-02-2020;
357;1;338;"4.000,00";"4.000,00";MORANDO FRANCESCO;Z1D2BE37F0;SALDO Fatt.n. 59/E  del 20/02/2020 FATTURA;25-02-2020;871;0;88;1;Spese correnti;3;Acquisto di beni e servizi;1;Acquisto di beni;3;Flora e Fauna;2;Flora selvatica e non selvatica;25-02-2020;
358;1;339;"20.120,00";"20.120,00";VALTECO SRL;7932234E8F;ACCONTO Fatt.n. 1/PA  del 19/02/2020 FATTURA;25-02-2020;1184;2;716;2;Spese in conto capitale;2;Investimenti fissi lordi e acquisto di terreni;1;Beni materiali;9;Beni immobili;12;Infrastrutture stradali;25-02-2020;
359;1;340;"57.968,86";"57.968,86";VALTECO SRL;7932234E8F;SALDO Fatt.n. 1/PA  del 19/02/2020 FATTURA;25-02-2020;1184;3;602;2;Spese in conto capitale;2;Investimenti fissi lordi e acquisto di terreni;1;Beni materiali;9;Beni immobili;12;Infrastrutture stradali;25-02-2020;
360;1;192;"227,77";"227,77";SOENERGY SRL;7961490D60;BENEFICIARI DIVERSI-PAGAMENTI DIVERSI             COD DISP 012001310XDW31 NOME  SOENERGY S R L MANDATO        99Z1610053624A299 PFM 4396738 Fattura 201007379 del 10 01 20 Scad 12 0 (P.      46 -R.     192);25-02-2020;888;0;378;1;Spese correnti;3;Acquisto di beni e servizi;2;Acquisto di servizi;5;Utenze e canoni;6;Gas;25-02-2020;
361;1;192;"625,85";"625,85";SOENERGY SRL;7961490D60;BENEFICIARI DIVERSI-PAGAMENTI DIVERSI             COD DISP 012001310XDW31 NOME  SOENERGY S R L MANDATO        99Z1610053624A299 PFM 4396738 Fattura 201007379 del 10 01 20 Scad 12 0 (P.      46 -R.     192);25-02-2020;888;0;378;1;Spese correnti;3;Acquisto di beni e servizi;2;Acquisto di servizi;5;Utenze e canoni;6;Gas;25-02-2020;
362;1;192;"1.991,17";"1.991,17";SOENERGY SRL;7961490D60;BENEFICIARI DIVERSI-PAGAMENTI DIVERSI             COD DISP 012001310XDW31 NOME  SOENERGY S R L MANDATO        99Z1610053624A299 PFM 4396738 Fattura 201007379 del 10 01 20 Scad 12 0 (P.      46 -R.     192);25-02-2020;888;0;378;1;Spese correnti;3;Acquisto di beni e servizi;2;Acquisto di servizi;5;Utenze e canoni;6;Gas;25-02-2020;
363;1;341;"625,85";"625,85";SOENERGY SRL;7961490D60;SALDO Fatt.n. 201007379  del 10/01/2020 FORNITURA GAS;25-02-2020;888;0;378;1;Spese correnti;3;Acquisto di beni e servizi;2;Acquisto di servizi;5;Utenze e canoni;6;Gas;25-02-2020;
364;1;326;"2.684,84";"2.684,84";GP GLOBAL POWER SPA;7961277D9A;BENEFICIARI DIVERSI-PAGAMENTI DIVERSI             COD DISP 012002120ALOUR NOME  GLOBAL POWER SPA MANDATO      AA5TZ1C7799 PFM 21641 030220  FEC 0 CIG CIG7961277D9A IBAN 10000030001 (P.      53 -R.     326);25-02-2020;960;0;371;1;Spese correnti;3;Acquisto di beni e servizi;2;Acquisto di servizi;5;Utenze e canoni;4;Energia elettrica;25-02-2020;
365;1;326;"7.712,45";"7.712,45";GP GLOBAL POWER SPA;7961277D9A;BENEFICIARI DIVERSI-PAGAMENTI DIVERSI             COD DISP 012002120ALOUR NOME  GLOBAL POWER SPA MANDATO      AA5TZ1C7799 PFM 21641 030220  FEC 0 CIG CIG7961277D9A IBAN 10000030001 (P.      53 -R.     326);25-02-2020;960;0;371;1;Spese correnti;3;Acquisto di beni e servizi;2;Acquisto di servizi;5;Utenze e canoni;4;Energia elettrica;25-02-2020;
366;1;342;"2.287,40";"2.287,40";GP GLOBAL POWER SPA;7961277D9A;SALDO Fatt.n. V0/21641  del 03/02/2020 Fattura Energia Elettrica;25-02-2020;960;0;371;1;Spese correnti;3;Acquisto di beni e servizi;2;Acquisto di servizi;5;Utenze e canoni;4;Energia elettrica;25-02-2020;
367;1;327;"2.495,29";"2.495,29";GP GLOBAL POWER SPA;7961277D9A;BENEFICIARI DIVERSI-PAGAMENTI DIVERSI             COD DISP 012002120ALOV2 NOME  GLOBAL POWER SPA MANDATO      AA5TZ1C7799 PFM 21642 030220  FEC 0 CIG CIG7961277D9A IBAN 10000030001 (P.      54 -R.     327);25-02-2020;111;0;362;1;Spese correnti;3;Acquisto di beni e servizi;2;Acquisto di servizi;5;Utenze e canoni;4;Energia elettrica;25-02-2020;
368;1;343;"548,96";"548,96";GP GLOBAL POWER SPA;7961277D9A;SALDO Fatt.n. V0/21642  del 03/02/2020 Fattura Energia Elettrica;25-02-2020;111;0;362;1;Spese correnti;3;Acquisto di beni e servizi;2;Acquisto di servizi;5;Utenze e canoni;4;Energia elettrica;25-02-2020;
369;1;328;"916,20";"916,20";GP GLOBAL POWER SPA;7961277D9A;BENEFICIARI DIVERSI-PAGAMENTI DIVERSI             COD DISP 012002120ALOUO NOME  GLOBAL POWER SPA MANDATO      AA5TZ1C7799 PFM 21639 030220  FEC 0 CIG CIG7961277D9A IBAN 10000030001 (P.      55 -R.     328);25-02-2020;881;0;367;1;Spese correnti;3;Acquisto di beni e servizi;2;Acquisto di servizi;5;Utenze e canoni;4;Energia elettrica;25-02-2020;
370;1;344;"201,56";"201,56";GP GLOBAL POWER SPA;7961277D9A;SALDO Fatt.n. V0/21639  del 03/02/2020 Fattura Energia Elettrica;25-02-2020;881;0;367;1;Spese correnti;3;Acquisto di beni e servizi;2;Acquisto di servizi;5;Utenze e canoni;4;Energia elettrica;25-02-2020;
371;1;329;"942,61";"942,61";GP GLOBAL POWER SPA;7961277D9A;BENEFICIARI DIVERSI-PAGAMENTI DIVERSI             COD DISP 012002120ALOUK NOME  GLOBAL POWER SPA MANDATO      AA5TZ1C7799 PFM 21640 030220  FEC 0 CIG CIG7961277D9A IBAN 10000030001 (P.      56 -R.     329);25-02-2020;886;0;369;1;Spese correnti;3;Acquisto di beni e servizi;2;Acquisto di servizi;5;Utenze e canoni;4;Energia elettrica;25-02-2020;
372;1;345;"207,37";"207,37";GP GLOBAL POWER SPA;7961277D9A;SALDO Fatt.n. V0/21640  del 03/02/2020 Fattura Energia Elettrica;25-02-2020;886;0;369;1;Spese correnti;3;Acquisto di beni e servizi;2;Acquisto di servizi;5;Utenze e canoni;4;Energia elettrica;25-02-2020;
373;1;330;"162,62";"162,62";GP GLOBAL POWER SPA;7961277D9A;BENEFICIARI DIVERSI-PAGAMENTI DIVERSI             COD DISP 012002120ALOUY NOME  GLOBAL POWER SPA MANDATO      AA5TZ1C7799 PFM 21643 030220  FEC 0 CIG CIG7961277D9A IBAN 10000030001 (P.      57 -R.     330);25-02-2020;211;0;363;1;Spese correnti;3;Acquisto di beni e servizi;2;Acquisto di servizi;5;Utenze e canoni;4;Energia elettrica;25-02-2020;
374;1;346;"35,78";"35,78";GP GLOBAL POWER SPA;7961277D9A;SALDO Fatt.n. V0/21643  del 03/02/2020 Fattura Energia Elettrica;25-02-2020;211;0;363;1;Spese correnti;3;Acquisto di beni e servizi;2;Acquisto di servizi;5;Utenze e canoni;4;Energia elettrica;25-02-2020;
375;1;331;"609,58";"609,58";GP GLOBAL POWER SPA;7961277D9A;BENEFICIARI DIVERSI-PAGAMENTI DIVERSI             COD DISP 012002120ALP3Z NOME  GLOBAL POWER SPA MANDATO      AA5TZ1C7799 PFM 21645 030220  FEC 0 CIG CIG7961277D9A IBAN 10000030001 (P.      58 -R.     331);25-02-2020;541;0;365;1;Spese correnti;3;Acquisto di beni e servizi;2;Acquisto di servizi;5;Utenze e canoni;4;Energia elettrica;25-02-2020;
376;1;347;"60,96";"60,96";GP GLOBAL POWER SPA;7961277D9A;SALDO Fatt.n. V0/21645  del 03/02/2020 Fattura Energia Elettrica;25-02-2020;541;0;365;1;Spese correnti;3;Acquisto di beni e servizi;2;Acquisto di servizi;5;Utenze e canoni;4;Energia elettrica;25-02-2020;
377;1;332;"354,07";"354,07";GP GLOBAL POWER SPA;7961277D9A;BENEFICIARI DIVERSI-PAGAMENTI DIVERSI             COD DISP 012002120ALORR NOME  GLOBAL POWER SPA MANDATO      AA5TZ1C7799 PFM 21644 030220  FEC 0 CIG CIG7961277D9A IBAN 10000030001 (P.      59 -R.     332);25-02-2020;354;0;364;1;Spese correnti;3;Acquisto di beni e servizi;2;Acquisto di servizi;5;Utenze e canoni;4;Energia elettrica;25-02-2020;
378;1;332;"81,72";"81,72";GP GLOBAL POWER SPA;7961277D9A;BENEFICIARI DIVERSI-PAGAMENTI DIVERSI             COD DISP 012002120ALORR NOME  GLOBAL POWER SPA MANDATO      AA5TZ1C7799 PFM 21644 030220  FEC 0 CIG CIG7961277D9A IBAN 10000030001 (P.      59 -R.     332);25-02-2020;354;0;364;1;Spese correnti;3;Acquisto di beni e servizi;2;Acquisto di servizi;5;Utenze e canoni;4;Energia elettrica;25-02-2020;
379;1;348;"95,87";"95,87";GP GLOBAL POWER SPA;7961277D9A;SALDO Fatt.n. V0/21644  del 03/02/2020 Fattura Energia Elettrica;25-02-2020;354;0;364;1;Spese correnti;3;Acquisto di beni e servizi;2;Acquisto di servizi;5;Utenze e canoni;4;Energia elettrica;25-02-2020;
380;1;333;"387,99";"387,99";GP GLOBAL POWER SPA;7961277D9A;BENEFICIARI DIVERSI-PAGAMENTI DIVERSI             COD DISP 012002120ALOV6 NOME  GLOBAL POWER SPA MANDATO      AA5TZ1C7799 PFM 21638 030220  FEC 0 CIG CIG7961277D9A IBAN 10000030001 (P.      60 -R.     333);25-02-2020;885;0;368;1;Spese correnti;3;Acquisto di beni e servizi;2;Acquisto di servizi;5;Utenze e canoni;4;Energia elettrica;25-02-2020;
381;1;349;"85,36";"85,36";GP GLOBAL POWER SPA;7961277D9A;SALDO Fatt.n. V0/21638  del 03/02/2020 Fattura Energia Elettrica;25-02-2020;885;0;368;1;Spese correnti;3;Acquisto di beni e servizi;2;Acquisto di servizi;5;Utenze e canoni;4;Energia elettrica;25-02-2020;
382;1;334;"109,33";"109,33";GP GLOBAL POWER SPA;7961277D9A;BENEFICIARI DIVERSI-PAGAMENTI DIVERSI             COD DISP 012002120ALP42 NOME  GLOBAL POWER SPA MANDATO      AA5TZ1C7799 PFM 21647 030220  FEC 0 CIG CIG7961277D9A IBAN 10000030001 (P.      61 -R.     334);25-02-2020;951;0;370;1;Spese correnti;3;Acquisto di beni e servizi;2;Acquisto di servizi;5;Utenze e canoni;4;Energia elettrica;25-02-2020;
383;1;350;"24,05";"24,05";GP GLOBAL POWER SPA;7961277D9A;SALDO Fatt.n. V0/21647  del 03/02/2020 Fattura Energia Elettrica;25-02-2020;951;0;370;1;Spese correnti;3;Acquisto di beni e servizi;2;Acquisto di servizi;5;Utenze e canoni;4;Energia elettrica;25-02-2020;
384;1;335;"738,43";"738,43";GP GLOBAL POWER SPA;7961277D9A;BENEFICIARI DIVERSI-PAGAMENTI DIVERSI             COD DISP 012002120ALP3V NOME  GLOBAL POWER SPA MANDATO      AA5TZ1C7799 PFM 21646 030220  FEC 0 CIG CIG7961277D9A IBAN 10000030001 (P.      62 -R.     335);25-02-2020;581;0;366;1;Spese correnti;3;Acquisto di beni e servizi;2;Acquisto di servizi;5;Utenze e canoni;4;Energia elettrica;25-02-2020;
385;1;351;"73,84";"73,84";GP GLOBAL POWER SPA;7961277D9A;SALDO Fatt.n. V0/21646  del 03/02/2020 Fattura Energia Elettrica;25-02-2020;581;0;366;1;Spese correnti;3;Acquisto di beni e servizi;2;Acquisto di servizi;5;Utenze e canoni;4;Energia elettrica;25-02-2020;
410;1;473;"59,94";"59,94";INPS EX INPDAP EX C.P.D.E.L.;80300395CF;VERSAMENTO RITENUTE ASSISTENZIALI E PREVIDENZIALI RELATIVE A INCENTIVO FUNZIONI TECNICHE;25-02-2020;662;0;700;1;Spese correnti;3;Acquisto di beni e servizi;2;Acquisto di servizi;15;Contratti di servizio pubblico;6;Contratti di servizio per le mense scolastiche;13-03-2020;
439;1;502;"21,41";"21,41";MINISTERO ECONOMIA FINANZE - VERSAMENTO IRAP;80300395CF;VERSAMENTO IRAP RELATIVA A INCENTIVO PER FUNZIONI TECNICHE EROGATO NEL MESE DI FEBBRAIO 2020;25-02-2020;662;0;700;1;Spese correnti;3;Acquisto di beni e servizi;2;Acquisto di servizi;15;Contratti di servizio pubblico;6;Contratti di servizio per le mense scolastiche;13-03-2020;
446;1;359;"22,79";"126,38";TELECOM ITALIA;Z3E288BEB4;ACCONTO Fatt.n. 7X04843151  del 13/12/2019 1BIM 2020;26-02-2020;113;0;272;1;Spese correnti;3;Acquisto di beni e servizi;2;Acquisto di servizi;5;Utenze e canoni;2;Telefonia mobile;26-02-2020;
446;2;359;"103,59";"126,38";TELECOM ITALIA;Z3E288BEB4;SALDO Fatt.n. 7X04843151  del 13/12/2019 1BIM 2020;26-02-2020;113;0;272;1;Spese correnti;3;Acquisto di beni e servizi;2;Acquisto di servizi;5;Utenze e canoni;2;Telefonia mobile;26-02-2020;
447;1;360;"12,69";"12,69";TELECOM ITALIA;Z3E288BEB4;ACCONTO Fatt.n. 7X03925718  del 14/10/2019 6BIM 2019;26-02-2020;113;0;272;1;Spese correnti;3;Acquisto di beni e servizi;2;Acquisto di servizi;5;Utenze e canoni;2;Telefonia mobile;26-02-2020;
448;1;361;"57,66";"57,66";TELECOM ITALIA;Z3E288BEB4;SALDO Fatt.n. 7X03925718  del 14/10/2019 6BIM 2019;26-02-2020;113;0;272;1;Spese correnti;3;Acquisto di beni e servizi;2;Acquisto di servizi;5;Utenze e canoni;2;Telefonia mobile;26-02-2020;
449;1;362;"-1.240,48";"53,24";ACQUE VERONESI SCARL; ;Liquidazione fattura n. 0350120200800051700 - NA 0350120200800051800 - NA 0350120200800052700 - 0350120200800054800 beneficiario Acque Veronesi Scarl;26-02-2020;359;0;219;1;Spese correnti;3;Acquisto di beni e servizi;2;Acquisto di servizi;5;Utenze e canoni;5;Acqua;26-02-2020;
449;2;362;"-224,29";"53,24";ACQUE VERONESI SCARL; ;SALDO Fatt.n. 0350120200800054800  del 31/01/2020 NOTA DI CREDITO B/Bollettazione;26-02-2020;359;0;219;1;Spese correnti;3;Acquisto di beni e servizi;2;Acquisto di servizi;5;Utenze e canoni;5;Acqua;26-02-2020;
449;3;362;"-61,15";"53,24";ACQUE VERONESI SCARL; ;SALDO Fatt.n. 0350120200800052700  del 31/01/2020 NOTA DI CREDITO B/Bollettazione;26-02-2020;359;0;219;1;Spese correnti;3;Acquisto di beni e servizi;2;Acquisto di servizi;5;Utenze e canoni;5;Acqua;26-02-2020;
449;4;362;"1.579,16";"53,24";ACQUE VERONESI SCARL; ;SALDO Fatt.n. 0350120200800051700  del 31/01/2020 FATTURA B/Bollettazione;26-02-2020;359;0;219;1;Spese correnti;3;Acquisto di beni e servizi;2;Acquisto di servizi;5;Utenze e canoni;5;Acqua;26-02-2020;
450;1;363;"45,47";"45,47";ACQUE VERONESI SCARL; ;SALDO Fatt.n. 0350120200800053100  del 31/01/2020 FATTURA B/Bollettazione;26-02-2020;879;0;218;1;Spese correnti;3;Acquisto di beni e servizi;2;Acquisto di servizi;5;Utenze e canoni;5;Acqua;26-02-2020;
451;1;364;"63,09";"63,09";ACQUE VERONESI SCARL; ;SALDO Fatt.n. 0350120200800053200  del 31/01/2020 FATTURA B/Bollettazione;26-02-2020;879;0;218;1;Spese correnti;3;Acquisto di beni e servizi;2;Acquisto di servizi;5;Utenze e canoni;5;Acqua;26-02-2020;
452;1;365;"34,72";"34,72";ACQUE VERONESI SCARL; ;ACCONTO Fatt.n. 0350120200800053300  del 31/01/2020 FATTURA B/Bollettazione;26-02-2020;879;0;218;1;Spese correnti;3;Acquisto di beni e servizi;2;Acquisto di servizi;5;Utenze e canoni;5;Acqua;26-02-2020;
453;1;366;"10,75";"10,75";ACQUE VERONESI SCARL; ;SALDO Fatt.n. 0350120200800053300  del 31/01/2020 FATTURA B/Bollettazione;26-02-2020;359;0;219;1;Spese correnti;3;Acquisto di beni e servizi;2;Acquisto di servizi;5;Utenze e canoni;5;Acqua;26-02-2020;
454;1;367;"13,21";"13,21";ACQUE VERONESI SCARL; ;SALDO Fatt.n. 0350120200800053400  del 31/01/2020 FATTURA B/Bollettazione;26-02-2020;359;0;219;1;Spese correnti;3;Acquisto di beni e servizi;2;Acquisto di servizi;5;Utenze e canoni;5;Acqua;26-02-2020;
455;1;368;"35,22";"35,22";ACQUE VERONESI SCARL; ;SALDO Fatt.n. 0350120200800053600  del 31/01/2020 FATTURA B/Bollettazione;26-02-2020;359;0;219;1;Spese correnti;3;Acquisto di beni e servizi;2;Acquisto di servizi;5;Utenze e canoni;5;Acqua;26-02-2020;
456;1;369;"63,09";"63,09";ACQUE VERONESI SCARL; ;SALDO Fatt.n. 0350120200800053700  del 31/01/2020 FATTURA B/Bollettazione;26-02-2020;359;0;219;1;Spese correnti;3;Acquisto di beni e servizi;2;Acquisto di servizi;5;Utenze e canoni;5;Acqua;26-02-2020;
457;1;370;"45,47";"45,47";ACQUE VERONESI SCARL; ;SALDO Fatt.n. 0350120200800054600  del 31/01/2020 FATTURA B/Bollettazione;26-02-2020;359;0;219;1;Spese correnti;3;Acquisto di beni e servizi;2;Acquisto di servizi;5;Utenze e canoni;5;Acqua;26-02-2020;
458;1;371;"45,47";"45,47";ACQUE VERONESI SCARL; ;SALDO Fatt.n. 0350120200800053800  del 31/01/2020 FATTURA B/Bollettazione;26-02-2020;359;0;219;1;Spese correnti;3;Acquisto di beni e servizi;2;Acquisto di servizi;5;Utenze e canoni;5;Acqua;26-02-2020;
459;1;372;"35,22";"35,22";ACQUE VERONESI SCARL; ;SALDO Fatt.n. 0350120200800053900  del 31/01/2020 FATTURA B/Bollettazione;26-02-2020;359;0;219;1;Spese correnti;3;Acquisto di beni e servizi;2;Acquisto di servizi;5;Utenze e canoni;5;Acqua;26-02-2020;
460;1;373;"99,76";"99,76";ACQUE VERONESI SCARL; ;SALDO Fatt.n. 0350120200800054000  del 31/01/2020 FATTURA B/Bollettazione;26-02-2020;359;0;219;1;Spese correnti;3;Acquisto di beni e servizi;2;Acquisto di servizi;5;Utenze e canoni;5;Acqua;26-02-2020;
461;1;374;"95,34";"95,34";ACQUE VERONESI SCARL; ;SALDO Fatt.n. 0350120200800054100  del 31/01/2020 FATTURA B/Bollettazione;26-02-2020;359;0;219;1;Spese correnti;3;Acquisto di beni e servizi;2;Acquisto di servizi;5;Utenze e canoni;5;Acqua;26-02-2020;
462;1;375;"26,41";"26,41";ACQUE VERONESI SCARL; ;SALDO Fatt.n. 0350120200800054300  del 31/01/2020 FATTURA B/Bollettazione;26-02-2020;359;0;219;1;Spese correnti;3;Acquisto di beni e servizi;2;Acquisto di servizi;5;Utenze e canoni;5;Acqua;26-02-2020;
463;1;376;"52,83";"52,83";ACQUE VERONESI SCARL; ;SALDO Fatt.n. 0350120200800054500  del 31/01/2020 FATTURA B/Bollettazione;26-02-2020;359;0;219;1;Spese correnti;3;Acquisto di beni e servizi;2;Acquisto di servizi;5;Utenze e canoni;5;Acqua;26-02-2020;
464;1;377;"52,83";"52,83";ACQUE VERONESI SCARL; ;SALDO Fatt.n. 0350120200800054400  del 31/01/2020 FATTURA B/Bollettazione;26-02-2020;359;0;219;1;Spese correnti;3;Acquisto di beni e servizi;2;Acquisto di servizi;5;Utenze e canoni;5;Acqua;26-02-2020;
465;1;378;"17,09";"17,09";ACQUE VERONESI SCARL; ;SALDO Fatt.n. 0350120200800055600  del 31/01/2020 FATTURA B/Bollettazione;26-02-2020;359;0;219;1;Spese correnti;3;Acquisto di beni e servizi;2;Acquisto di servizi;5;Utenze e canoni;5;Acqua;26-02-2020;
466;1;379;"56,05";"56,05";ACQUE VERONESI SCARL; ;SALDO Fatt.n. 0350120200800055700  del 31/01/2020 FATTURA B/Bollettazione;26-02-2020;359;0;219;1;Spese correnti;3;Acquisto di beni e servizi;2;Acquisto di servizi;5;Utenze e canoni;5;Acqua;26-02-2020;
467;1;380;"14,28";"14,28";ACQUE VERONESI SCARL;Z1322979B8;SALDO Fatt.n. 0350120200800052900  del 31/01/2020 FATTURA B/Bollettazione;26-02-2020;359;0;219;1;Spese correnti;3;Acquisto di beni e servizi;2;Acquisto di servizi;5;Utenze e canoni;5;Acqua;26-02-2020;
468;1;381;"14,28";"14,28";ACQUE VERONESI SCARL; ;SALDO Fatt.n. 0350120200800055800  del 31/01/2020 FATTURA B/Bollettazione;26-02-2020;359;0;219;1;Spese correnti;3;Acquisto di beni e servizi;2;Acquisto di servizi;5;Utenze e canoni;5;Acqua;26-02-2020;
469;1;382;"198,06";"198,06";ACQUE VERONESI SCARL; ;SALDO Fatt.n. 0350120200800050900  del 31/01/2020 FATTURA B/Bollettazione;26-02-2020;359;0;219;1;Spese correnti;3;Acquisto di beni e servizi;2;Acquisto di servizi;5;Utenze e canoni;5;Acqua;26-02-2020;
470;1;383;"112,95";"112,95";ACQUE VERONESI SCARL; ;SALDO Fatt.n. 0350120200800051900  del 31/01/2020 FATTURA B/Bollettazione;26-02-2020;359;0;219;1;Spese correnti;3;Acquisto di beni e servizi;2;Acquisto di servizi;5;Utenze e canoni;5;Acqua;26-02-2020;
471;1;384;"46,95";"46,95";ACQUE VERONESI SCARL; ;SALDO Fatt.n. 0350120200800053000  del 31/01/2020 FATTURA B/Bollettazione;26-02-2020;359;0;219;1;Spese correnti;3;Acquisto di beni e servizi;2;Acquisto di servizi;5;Utenze e canoni;5;Acqua;26-02-2020;
472;1;385;"46,95";"46,95";ACQUE VERONESI SCARL; ;SALDO Fatt.n. 0350120200800052000  del 31/01/2020 FATTURA B/Bollettazione;26-02-2020;359;0;219;1;Spese correnti;3;Acquisto di beni e servizi;2;Acquisto di servizi;5;Utenze e canoni;5;Acqua;26-02-2020;
473;1;386;"83,61";"83,61";ACQUE VERONESI SCARL; ;SALDO Fatt.n. 0350120200800052100  del 31/01/2020 FATTURA B/Bollettazione;26-02-2020;359;0;219;1;Spese correnti;3;Acquisto di beni e servizi;2;Acquisto di servizi;5;Utenze e canoni;5;Acqua;26-02-2020;
474;1;387;"19,06";"19,06";ACQUE VERONESI SCARL; ;SALDO Fatt.n. 0350120200800052200  del 31/01/2020 FATTURA B/Bollettazione;26-02-2020;359;0;219;1;Spese correnti;3;Acquisto di beni e servizi;2;Acquisto di servizi;5;Utenze e canoni;5;Acqua;26-02-2020;
475;1;388;"93,90";"93,90";ACQUE VERONESI SCARL; ;SALDO Fatt.n. 0350120200800052300  del 31/01/2020 FATTURA B/Bollettazione;26-02-2020;359;0;219;1;Spese correnti;3;Acquisto di beni e servizi;2;Acquisto di servizi;5;Utenze e canoni;5;Acqua;26-02-2020;
476;1;389;"80,70";"80,70";ACQUE VERONESI SCARL; ;SALDO Fatt.n. 0350120200800052400  del 31/01/2020 FATTURA B/Bollettazione;26-02-2020;359;0;219;1;Spese correnti;3;Acquisto di beni e servizi;2;Acquisto di servizi;5;Utenze e canoni;5;Acqua;26-02-2020;
477;1;390;"17,61";"17,61";ACQUE VERONESI SCARL; ;SALDO Fatt.n. 0350120200800052800  del 31/01/2020 FATTURA B/Bollettazione;26-02-2020;359;0;219;1;Spese correnti;3;Acquisto di beni e servizi;2;Acquisto di servizi;5;Utenze e canoni;5;Acqua;26-02-2020;
478;1;391;"17,61";"17,61";ACQUE VERONESI SCARL; ;SALDO Fatt.n. 0350120200800052600  del 31/01/2020 FATTURA B/Bollettazione;26-02-2020;359;0;219;1;Spese correnti;3;Acquisto di beni e servizi;2;Acquisto di servizi;5;Utenze e canoni;5;Acqua;26-02-2020;
479;1;392;"17,61";"17,61";ACQUE VERONESI SCARL; ;SALDO Fatt.n. 0350120200800052500  del 31/01/2020 FATTURA B/Bollettazione;26-02-2020;359;0;219;1;Spese correnti;3;Acquisto di beni e servizi;2;Acquisto di servizi;5;Utenze e canoni;5;Acqua;26-02-2020;
480;1;393;"17,61";"17,61";ACQUE VERONESI SCARL; ;SALDO Fatt.n. 0350120200800050800  del 31/01/2020 FATTURA B/Bollettazione;26-02-2020;359;0;219;1;Spese correnti;3;Acquisto di beni e servizi;2;Acquisto di servizi;5;Utenze e canoni;5;Acqua;26-02-2020;
481;1;394;"17,61";"17,61";ACQUE VERONESI SCARL; ;SALDO Fatt.n. 0350120200800055500  del 31/01/2020 FATTURA B/Bollettazione;26-02-2020;359;0;219;1;Spese correnti;3;Acquisto di beni e servizi;2;Acquisto di servizi;5;Utenze e canoni;5;Acqua;26-02-2020;
482;1;395;"17,61";"17,61";ACQUE VERONESI SCARL; ;SALDO Fatt.n. 0350120200800055400  del 31/01/2020 FATTURA B/Bollettazione;26-02-2020;359;0;219;1;Spese correnti;3;Acquisto di beni e servizi;2;Acquisto di servizi;5;Utenze e canoni;5;Acqua;26-02-2020;
483;1;396;"17,61";"17,61";ACQUE VERONESI SCARL; ;SALDO Fatt.n. 0350120200800055300  del 31/01/2020 FATTURA B/Bollettazione;26-02-2020;359;0;219;1;Spese correnti;3;Acquisto di beni e servizi;2;Acquisto di servizi;5;Utenze e canoni;5;Acqua;26-02-2020;
484;1;397;"17,61";"17,61";ACQUE VERONESI SCARL; ;SALDO Fatt.n. 0350120200800055200  del 31/01/2020 FATTURA B/Bollettazione;26-02-2020;359;0;219;1;Spese correnti;3;Acquisto di beni e servizi;2;Acquisto di servizi;5;Utenze e canoni;5;Acqua;26-02-2020;
485;1;398;"17,61";"17,61";ACQUE VERONESI SCARL; ;SALDO Fatt.n. 0350120200800055100  del 31/01/2020 FATTURA B/Bollettazione;26-02-2020;359;0;219;1;Spese correnti;3;Acquisto di beni e servizi;2;Acquisto di servizi;5;Utenze e canoni;5;Acqua;26-02-2020;
486;1;399;"17,61";"17,61";ACQUE VERONESI SCARL; ;SALDO Fatt.n. 0350120200800055000  del 31/01/2020 FATTURA B/Bollettazione;26-02-2020;359;0;219;1;Spese correnti;3;Acquisto di beni e servizi;2;Acquisto di servizi;5;Utenze e canoni;5;Acqua;26-02-2020;
487;1;400;"17,61";"17,61";ACQUE VERONESI SCARL; ;SALDO Fatt.n. 0350120200800054900  del 31/01/2020 FATTURA B/Bollettazione;26-02-2020;359;0;219;1;Spese correnti;3;Acquisto di beni e servizi;2;Acquisto di servizi;5;Utenze e canoni;5;Acqua;26-02-2020;
488;1;401;"17,61";"17,61";ACQUE VERONESI SCARL; ;SALDO Fatt.n. 0350120200800054200  del 31/01/2020 FATTURA B/Bollettazione;26-02-2020;359;0;219;1;Spese correnti;3;Acquisto di beni e servizi;2;Acquisto di servizi;5;Utenze e canoni;5;Acqua;26-02-2020;
489;1;402;"17,61";"17,61";ACQUE VERONESI SCARL; ;SALDO Fatt.n. 0350120200800053500  del 31/01/2020 FATTURA B/Bollettazione;26-02-2020;359;0;219;1;Spese correnti;3;Acquisto di beni e servizi;2;Acquisto di servizi;5;Utenze e canoni;5;Acqua;26-02-2020;
490;1;403;"10.227,46";"10.227,46";CIRFOOD SOCIETA' COOPERATIVA ITALIANA DI RISTORAZIONE;80300395CF;"SALDO Fatt.n. 5200001951  del 31/01/2020 Destinatario:0000528988,SC.PRIMARIA C.EDERLECOMUNE DI CALDIERO,PIAZZA VITTORIO VENETO .,CALDIERO,37042,VR";26-02-2020;662;0;492;1;Spese correnti;3;Acquisto di beni e servizi;2;Acquisto di servizi;15;Contratti di servizio pubblico;6;Contratti di servizio per le mense scolastiche;26-02-2020;
491;1;405;"3.908,85";"3.908,85";COSTRUZIONI FRACCA SOC COOP;Z8529A7CBE;SALDO Fatt.n. 8/2020  del 10/02/2020 FATTURA;27-02-2020;1582;0;486;2;Spese in conto capitale;2;Investimenti fissi lordi e acquisto di terreni;1;Beni materiali;9;Beni immobili;3;Fabbricati ad uso scolastico;27-02-2020;
492;1;406;"1.120,94";"1.120,94";EDILTOSI SRL;Z9B248C873;ACCONTO Fatt.n. 001009  del 24/02/2020 FATTURA;27-02-2020;950;0;537;1;Spese correnti;3;Acquisto di beni e servizi;1;Acquisto di beni;2;Altri beni di consumo;999;Altri beni e materiali di consumo n.a.c.;27-02-2020;
493;1;407;"601,13";"601,13";EDILTOSI SRL;Z9B248C873;SALDO Fatt.n. 001009  del 24/02/2020 FATTURA;27-02-2020;350;0;505;1;Spese correnti;3;Acquisto di beni e servizi;1;Acquisto di beni;2;Altri beni di consumo;999;Altri beni e materiali di consumo n.a.c.;27-02-2020;
494;1;408;"313,28";"313,28";SICONTRAF SRL;ZF721ED995;ACCONTO Fatt.n. 43/PA  del 19/02/2020 FATTURA;27-02-2020;952;0;115;1;Spese correnti;3;Acquisto di beni e servizi;2;Acquisto di servizi;9;Manutenzione ordinaria e riparazioni;4;Manutenzione ordinaria e riparazioni di impianti e macchinari;27-02-2020;
495;1;409;"78,10";"78,10";SICONTRAF SRL;ZF721ED995;SALDO Fatt.n. 43/PA  del 19/02/2020 FATTURA;27-02-2020;952;0;115;1;Spese correnti;3;Acquisto di beni e servizi;2;Acquisto di servizi;9;Manutenzione ordinaria e riparazioni;4;Manutenzione ordinaria e riparazioni di impianti e macchinari;27-02-2020;
497;1;411;"1.500,00";"1.500,00";BANDA ALPINA CITTA' DI CALDIERO; ;"EROGAZIONE CONTRIBUTO ECONOMICO ALLASSOCIAZIONE BANDA ALPINA CITTA DI CALDIERO, RELATIVO ALLE ATTIVTA DELLANNO 2019.";28-02-2020;895;0;727;1;Spese correnti;4;Trasferimenti correnti;4;Trasferimenti correnti a Istituzioni Sociali Private;1;Trasferimenti correnti a Istituzioni Sociali Private;1;Trasferimenti correnti a Istituzioni Sociali Private;03-03-2020;
498;1;412;"1.146,00";"1.146,00";VEZZOLA FABIANA;ZC929032E7;SALDO Fatt.n. 3/2020  del 14/02/2020 FATTURA;28-02-2020;270;0;384;1;Spese correnti;3;Acquisto di beni e servizi;2;Acquisto di servizi;11;Prestazioni professionali e specialistiche;999;Altre prestazioni professionali e specialistiche n.a.c.;03-03-2020;
499;1;413;"170,80";"170,80";EASYSHOW COOP SOCIETA' COOPERATIVA;Z032BFBD0A;SALDO Fatt.n. 5PA-2020-ADM  del 13/02/2020 SPETTACOLO MAGO ALESGAR DEL 09/02/2020;28-02-2020;686;0;101;1;Spese correnti;3;Acquisto di beni e servizi;2;Acquisto di servizi;2;"Organizzazione eventi, pubblicita` e servizi per trasferta";5;Organizzazione e partecipazione a manifestazioni e convegni;03-03-2020;
500;1;414;"8.206,39";"8.206,39";CIDIELLE COOPERATIVA SOCIALE;7512636758;SALDO Fatt.n. 345/02  del 30/11/2019 FATTURA;28-02-2020;952;0;475;1;Spese correnti;3;Acquisto di beni e servizi;2;Acquisto di servizi;9;Manutenzione ordinaria e riparazioni;8;Manutenzione ordinaria e riparazioni di beni immobili;03-03-2020;
501;1;415;"5.490,00";"5.490,00";PICCOLI FLAVIO SRL - IMPIANTI;Z5D2A89EAD;SALDO Fatt.n. 37  del 14/02/2020 FATTURA;28-02-2020;1092;3;597;2;Spese in conto capitale;2;Investimenti fissi lordi e acquisto di terreni;1;Beni materiali;9;Beni immobili;19;Fabbricati ad uso strumentale;03-03-2020;
502;1;416;"2.282,55";"2.282,55";EVO RECAPITI SRL;ZA829BF1EE;SALDO Fatt.n. 0000063/ELE  del 31/12/2019 FATTURA;28-02-2020;843;0;496;1;Spese correnti;3;Acquisto di beni e servizi;2;Acquisto di servizi;3;Aggi di riscossione;999;Altri aggi di riscossione n.a.c.;03-03-2020;
503;1;505;"567,24";"567,24";MINISTERO DELL'ECONOMIA E DELLE FINANZE; ;VERSAMENTO IVA A DEBITO MESE DI FEBBRAIO 2020;02-03-2020;1070;0;187;1;Spese correnti;10;Altre spese correnti;3;Versamenti IVA a debito;1;Versamenti IVA a debito per le gestioni commerciali;1;Versamenti IVA a debito per le gestioni commerciali;13-03-2020;
505;1;417;"189,99";"189,99";SOCIETA' ATHESIS SPA;Z462C12839;SALDO Fatt.n. 2020/CO/856  del 20/02/2020;03-03-2020;150;0;156;1;Spese correnti;3;Acquisto di beni e servizi;2;Acquisto di servizi;5;Utenze e canoni;3;Accesso a banche dati e a pubblicazioni on line;03-03-2020;
506;1;418;"184,04";"184,04";MAZZARINO CLAUDIO;Z242605A89;SALDO Fatt.n. FATTPA 12_19  del 14/12/2019 FATTURA;03-03-2020;275;0;213;1;Spese correnti;3;Acquisto di beni e servizi;2;Acquisto di servizi;18;Servizi sanitari;1;Spese per accertamenti sanitari resi necessari dall'attività lavorativa;03-03-2020;
507;1;419;"2.537,60";"2.537,60";ROSSI ANNA;ZBF2544D99;SALDO Fatt.n. 4  del 18/02/2020 FATTURA;03-03-2020;1184;3;602;2;Spese in conto capitale;2;Investimenti fissi lordi e acquisto di terreni;1;Beni materiali;9;Beni immobili;12;Infrastrutture stradali;03-03-2020;
508;1;420;"129,17";"129,17";LA RONDA - SERVIZI DI VIGILANZA;Z4022A6179;SALDO Fatt.n. V1-3208  del 28/02/2020 FATTURA;03-03-2020;357;0;205;1;Spese correnti;3;Acquisto di beni e servizi;2;Acquisto di servizi;13;Servizi ausiliari per il funzionamento dell'ente;1;"Servizi di sorveglianza, custodia e accoglienza";03-03-2020;
509;1;421;"245,00";"245,00";NARCONTI FLLI SNC DI NARCONTI M E F;ZCE2A9EC19;SALDO Fatt.n. 4/E  del 26/02/2020 FATTURA FORNITURA MATERIALE;03-03-2020;950;0;664;1;Spese correnti;3;Acquisto di beni e servizi;1;Acquisto di beni;2;Altri beni di consumo;999;Altri beni e materiali di consumo n.a.c.;03-03-2020;
510;1;422;"317,23";"317,23";ECOGEO S.R.L.;7375058A62;ACCONTO Fatt.n. 70  del 29/02/2020 FATTURA;03-03-2020;275;0;132;1;Spese correnti;3;Acquisto di beni e servizi;2;Acquisto di servizi;18;Servizi sanitari;1;Spese per accertamenti sanitari resi necessari dall'attività lavorativa;03-03-2020;
511;1;423;"8,70";"8,70";ECOGEO S.R.L.;7375058A62;SALDO Fatt.n. 70  del 29/02/2020 FATTURA;03-03-2020;275;0;143;1;Spese correnti;3;Acquisto di beni e servizi;2;Acquisto di servizi;18;Servizi sanitari;1;Spese per accertamenti sanitari resi necessari dall'attività lavorativa;03-03-2020;
512;1;424;"3.220,80";"3.220,80";MORANDO FRANCESCO;ZC1253B725;SALDO Fatt.n. 68/E  del 26/02/2020 FATTURA;03-03-2020;952;0;650;1;Spese correnti;3;Acquisto di beni e servizi;2;Acquisto di servizi;9;Manutenzione ordinaria e riparazioni;8;Manutenzione ordinaria e riparazioni di beni immobili;03-03-2020;
513;1;438;"19.375,00";"19.375,00";FONDAZIONE DON GAETANO PROVOLI - SCUOLA PARITARIA PER L; ;"CONVENZIONE CON LE SCUOLE MATERNE DEL TERRITORIO, ART.10 - EROGAZIONE PRIMO ACCONTO DEL CONTRIBUTO ECONOMICO PREVISTO PER LANNO 2020. SCUOLA MATERNA DON PROVOLI";05-03-2020;480;0;182;1;Spese correnti;4;Trasferimenti correnti;4;Trasferimenti correnti a Istituzioni Sociali Private;1;Trasferimenti correnti a Istituzioni Sociali Private;1;Trasferimenti correnti a Istituzioni Sociali Private;10-03-2020;
514;1;439;"21,73";"21,73";ABACO SPA;7408612407;SALDO Fatt.n. 2020120000793  del 06/02/2020 FATTURA;05-03-2020;382;0;166;1;Spese correnti;3;Acquisto di beni e servizi;2;Acquisto di servizi;3;Aggi di riscossione;999;Altri aggi di riscossione n.a.c.;10-03-2020;
515;1;440;"31,35";"31,35";ABACO SPA;7408612407;SALDO Fatt.n. 2020120000791  del 06/02/2020 FATTURA;05-03-2020;382;0;166;1;Spese correnti;3;Acquisto di beni e servizi;2;Acquisto di servizi;3;Aggi di riscossione;999;Altri aggi di riscossione n.a.c.;10-03-2020;
518;1;443;"24,44";"24,44";ABACO SPA;7408612407;SALDO Fatt.n. 2020140000768  del 06/02/2020;05-03-2020;843;0;663;1;Spese correnti;3;Acquisto di beni e servizi;2;Acquisto di servizi;3;Aggi di riscossione;999;Altri aggi di riscossione n.a.c.;10-03-2020;
519;1;444;"215,53";"215,53";ABACO SPA;7408612407;SALDO Fatt.n. 2020120000792  del 06/02/2020 FATTURA;05-03-2020;382;0;166;1;Spese correnti;3;Acquisto di beni e servizi;2;Acquisto di servizi;3;Aggi di riscossione;999;Altri aggi di riscossione n.a.c.;10-03-2020;
520;1;445;"1.218,15";"1.218,15";ABACO SPA;7408612407;SALDO Fatt.n. 2020120000794  del 06/02/2020 FATTURA;05-03-2020;382;0;166;1;Spese correnti;3;Acquisto di beni e servizi;2;Acquisto di servizi;3;Aggi di riscossione;999;Altri aggi di riscossione n.a.c.;10-03-2020;
521;1;446;"15,15";"15,15";ABACO SPA;7408612407;SALDO Fatt.n. 2020120000795  del 06/02/2020 FATTURA;05-03-2020;382;0;166;1;Spese correnti;3;Acquisto di beni e servizi;2;Acquisto di servizi;3;Aggi di riscossione;999;Altri aggi di riscossione n.a.c.;10-03-2020;
522;1;447;"10.125,00";"10.125,00";SCUOLA MATERNA "MARIA IMMACOLATA" STRA'; ;"CONVENZIONE CON LE SCUOLE MATERNE DEL TERRITORIO, ART.10 - EROGAZIONE PRIMO ACCONTO DEL CONTRIBUTO ECONOMICO PREVISTO PER LANNO 2020.";06-03-2020;480;0;184;1;Spese correnti;4;Trasferimenti correnti;4;Trasferimenti correnti a Istituzioni Sociali Private;1;Trasferimenti correnti a Istituzioni Sociali Private;1;Trasferimenti correnti a Istituzioni Sociali Private;10-03-2020;
523;1;448;"79.530,00";"79.530,00";CONSORZIO STABILE TOSCANA EDILIZIA & AMBIENTE TEAM SCARL;8083630680;SALDO Fatt.n. 3  del 27/02/2020 FATTURA;10-03-2020;1108;0;802;2;Spese in conto capitale;2;Investimenti fissi lordi e acquisto di terreni;1;Beni materiali;9;Beni immobili;3;Fabbricati ad uso scolastico;11-03-2020;
524;1;449;"11.224,00";"11.224,00";DE VECCHI CORRADO SRL;ZDB2B481B2;SALDO Fatt.n. 01/01  del 05/03/2020 FATTURA;10-03-2020;952;0;719;1;Spese correnti;3;Acquisto di beni e servizi;2;Acquisto di servizi;9;Manutenzione ordinaria e riparazioni;8;Manutenzione ordinaria e riparazioni di beni immobili;11-03-2020;
525;1;450;"1.276,04";"1.276,04";MINISTERO INTERNO - DIREZIONE CENTR SERV DEMOGRAFICI; ;Liquidazione diritti per il rilascio di carte d'identità elettroniche FEBBRAIO 2020.;10-03-2020;325;0;73;1;Spese correnti;4;Trasferimenti correnti;1;Trasferimenti correnti a Amministrazioni Pubbliche;1;Trasferimenti correnti a Amministrazioni Centrali;1;Trasferimenti correnti a Ministeri;11-03-2020;
529;1;430;"1,90";"3,80";INTESA SAN PAOLO - TESORERIA COMUNALE;ZB823CBCD9;ENTE EROGATORE SERVIZI POS-CANONE SPESE DIVERSE SERVIZIO POS                           COMUNE DI CALDIERO98 COMM     SETEFI5 (P.      70 -R.     430);10-03-2020;374;0;301;1;Spese correnti;3;Acquisto di beni e servizi;2;Acquisto di servizi;17;Servizi finanziari;2;Oneri per servizio di tesoreria;11-03-2020;
529;2;430;"1,90";"3,80";INTESA SAN PAOLO - TESORERIA COMUNALE;ZB823CBCD9;ENTE EROGATORE SERVIZI POS-CANONE SPESE DIVERSE SERVIZIO POS                           COMUNE DI CALDIERO98 COMM     SETEFI5 (P.      75 -R.     435);10-03-2020;374;0;301;1;Spese correnti;3;Acquisto di beni e servizi;2;Acquisto di servizi;17;Servizi finanziari;2;Oneri per servizio di tesoreria;11-03-2020;
532;1;587;"4.240,00";"4.240,00";AMMINISTRATORI COMUNALI; ;INDENNITA DI CARICA SPETTANTE PER IL MESE DI MARZO 2020;12-03-2020;10;0;4;1;Spese correnti;3;Acquisto di beni e servizi;2;Acquisto di servizi;1;Organi e incarichi istituzionali dell'amministrazione;1;Organi istituzionali dell'amministrazione - Indennità;27-03-2020;
640;1;555;"230,00";"230,00";LEGISLAZIONE TECNICA SRL;Z7C2BFCA0B;SALDO Fatt.n. 179/PA/2020  del 02/03/2020;17-03-2020;150;0;154;1;Spese correnti;3;Acquisto di beni e servizi;2;Acquisto di servizi;5;Utenze e canoni;3;Accesso a banche dati e a pubblicazioni on line;19-03-2020;
641;1;556;"976,00";"976,00";SOLUZIONE SRL;Z4E2BF87B8;SALDO Fatt.n. 0002100809  del 20/02/2020 FATT. IVA SPLIT P.;17-03-2020;150;0;151;1;Spese correnti;3;Acquisto di beni e servizi;2;Acquisto di servizi;5;Utenze e canoni;3;Accesso a banche dati e a pubblicazioni on line;19-03-2020;
642;1;557;"342,00";"342,00";SEPEL EDITRICE - LO STATO CIVILE ITALIANO;Z132BFEF6F;SALDO Fatt.n. 2/514  del 03/03/2020 VENDITE ABB.RIV.;17-03-2020;150;0;152;1;Spese correnti;3;Acquisto di beni e servizi;2;Acquisto di servizi;5;Utenze e canoni;3;Accesso a banche dati e a pubblicazioni on line;19-03-2020;
643;1;558;"162,81";"162,81";KYOCERA DOCUMENT SOLUTIONS ITALIA SPA;Z6E2796919;SALDO Fatt.n. 1010598050  del 25/02/2020 FOTOCOPIATRICI 29 L3 - 60 MESI;17-03-2020;109;0;186;1;Spese correnti;3;Acquisto di beni e servizi;2;Acquisto di servizi;7;Utilizzo di beni di terzi;4;Noleggi di hardware;19-03-2020;
644;1;559;"185,07";"185,07";PUBLIADIGE SRL;Z502BFBD34;SALDO Fatt.n. 2020/01/5324  del 17/02/2020 det. area amm.va 11 del 11.02.2020 - imp. n. 100/2020;17-03-2020;145;0;100;1;Spese correnti;3;Acquisto di beni e servizi;1;Acquisto di beni;2;Altri beni di consumo;9;Beni per attività di rappresentanza;19-03-2020;
645;1;560;"175,29";"175,29";CONVERGE SPA;Z5A1F50C97;SALDO Fatt.n. 20301766  del 29/02/2020 NOLEGGIO APPARECCHIATURE MULTIFUNZIONE PER UFFICIO TECNICO;17-03-2020;109;0;397;1;Spese correnti;3;Acquisto di beni e servizi;2;Acquisto di servizi;7;Utilizzo di beni di terzi;4;Noleggi di hardware;19-03-2020;
646;1;561;"-0,01";"287,78";LEGGERE SRL;Z8A2934CC5;SALDO Fatt.n. 3250  del 28/02/2020 FATTURA LIBRI;17-03-2020;681;0;388;1;Spese correnti;3;Acquisto di beni e servizi;1;Acquisto di beni;1;"Giornali, riviste e pubblicazioni";2;Pubblicazioni;19-03-2020;
646;2;561;"30,12";"287,78";LEGGERE SRL;Z8A2934CC5;SALDO Fatt.n. 3250  del 28/02/2020 FATTURA LIBRI;17-03-2020;681;0;388;1;Spese correnti;3;Acquisto di beni e servizi;1;Acquisto di beni;1;"Giornali, riviste e pubblicazioni";2;Pubblicazioni;19-03-2020;
646;3;561;"257,67";"287,78";LEGGERE SRL;Z8A2934CC5;SALDO Fatt.n. 3251  del 28/02/2020 FATTURA LIBRI;17-03-2020;681;0;388;1;Spese correnti;3;Acquisto di beni e servizi;1;Acquisto di beni;1;"Giornali, riviste e pubblicazioni";2;Pubblicazioni;19-03-2020;
647;1;562;"377,00";"377,00";MYO SRL;Z752C01D75;SALDO Fatt.n. 2040/200004226  del 21/02/2020 CLI 00602113;17-03-2020;330;0;157;1;Spese correnti;3;Acquisto di beni e servizi;1;Acquisto di beni;2;Altri beni di consumo;14;Stampati specialistici;19-03-2020;
648;1;563;"1.122,00";"1.122,00";VALLISARI ADRIANA;Z1923784C1;"SALDO Fatt.n. FATTPA 1_20  del 09/01/2020 DIREZIONE ""LA GAZZETTA TERMALE"" (anno XX n. 2 - Dicembre 2019). CIG: Z1923784C1. Operazione non soggetta a Iva e a rit. dacconto (art. 27 D.L. n. 98/2011, regime contribuenti minimi)";17-03-2020;147;0;303;1;Spese correnti;3;Acquisto di beni e servizi;2;Acquisto di servizi;2;"Organizzazione eventi, pubblicita` e servizi per trasferta";999;"Altre spese per relazioni pubbliche, convegni e mostre, pubblicita` n.a.c";19-03-2020;
649;1;564;"2.272,50";"2.272,50";SOCIETA' COOPERATIVA CULTURE;7559364882;SALDO Fatt.n. 958/FE  del 20/02/2020 FATTURA GENNAIO 2020;17-03-2020;680;0;547;1;Spese correnti;3;Acquisto di beni e servizi;2;Acquisto di servizi;15;Contratti di servizio pubblico;999;Altre spese per contratti di servizio pubblico;19-03-2020;
650;1;565;"1.840,50";"1.840,50";SOCIETA' COOPERATIVA CULTURE;7559364882;SALDO Fatt.n. 498/FE  del 29/01/2020 FATTURA DICEMBRE 2019;17-03-2020;680;0;547;1;Spese correnti;3;Acquisto di beni e servizi;2;Acquisto di servizi;15;Contratti di servizio pubblico;999;Altre spese per contratti di servizio pubblico;19-03-2020;
651;1;566;"3.519,27";"3.519,27";SISE SISTEMI SEGNALETICI SPA;ZA92A89D97;SALDO Fatt.n. 82/F4  del 24/02/2020 FATTURA;17-03-2020;955;0;775;1;Spese correnti;3;Acquisto di beni e servizi;2;Acquisto di servizi;9;Manutenzione ordinaria e riparazioni;8;Manutenzione ordinaria e riparazioni di beni immobili;19-03-2020;
652;1;567;"3.440,36";"3.440,36";SISE SISTEMI SEGNALETICI SPA;ZA92A89D97;SALDO Fatt.n. 97/F4  del 02/03/2020 FATTURA;17-03-2020;955;0;775;1;Spese correnti;3;Acquisto di beni e servizi;2;Acquisto di servizi;9;Manutenzione ordinaria e riparazioni;8;Manutenzione ordinaria e riparazioni di beni immobili;19-03-2020;
653;1;568;"23,93";"23,93";EDILTOSI SRL;Z9B248C873;SALDO Fatt.n. 001099  del 29/02/2020 FATTURA;17-03-2020;350;0;505;1;Spese correnti;3;Acquisto di beni e servizi;1;Acquisto di beni;2;Altri beni di consumo;999;Altri beni e materiali di consumo n.a.c.;19-03-2020;
654;1;569;"12.347,62";"12.347,62";METALCO SRL;ZCE2B331D0;SALDO Fatt.n. 2020130000105  del 28/02/2020 FATTURA;17-03-2020;1190;1;670;2;Spese in conto capitale;2;Investimenti fissi lordi e acquisto di terreni;1;Beni materiali;3;Mobili e arredi;999;Mobili e arredi n.a.c.;19-03-2020;
655;1;570;"385,38";"385,38";ACQUE VERONESI SCARL; ;SALDO Fatt.n. 0350120200800178200  del 02/03/2020 FATTURA B/Bollettazione;17-03-2020;359;0;219;1;Spese correnti;3;Acquisto di beni e servizi;2;Acquisto di servizi;5;Utenze e canoni;5;Acqua;19-03-2020;
656;1;571;"355,26";"355,26";ARREDOLUCE SRL;ZA72B4B26E;ACCONTO Fatt.n. 20-00002PA  del 29/02/2020 FATTURA VENDITA;17-03-2020;1203;0;715;2;Spese in conto capitale;2;Investimenti fissi lordi e acquisto di terreni;1;Beni materiali;9;Beni immobili;12;Infrastrutture stradali;19-03-2020;
657;1;572;"2.548,34";"2.548,34";ARREDOLUCE SRL;ZA72B4B26E;SALDO Fatt.n. 20-00002PA  del 29/02/2020 FATTURA VENDITA;17-03-2020;1188;0;714;2;Spese in conto capitale;2;Investimenti fissi lordi e acquisto di terreni;1;Beni materiali;9;Beni immobili;12;Infrastrutture stradali;19-03-2020;
658;1;573;"501,34";"501,34";ELETTRO BIONDANI SNC DI BIONDANI LINO & C;Z032776AD9;ACCONTO Fatt.n. 2B/20  del 05/03/2020 FATTURA;17-03-2020;1203;0;396;2;Spese in conto capitale;2;Investimenti fissi lordi e acquisto di terreni;1;Beni materiali;9;Beni immobili;12;Infrastrutture stradali;19-03-2020;
660;1;575;"214,44";"214,44";FOLETTO LUCIANO SRL;Z4B2981DE3;SALDO Fatt.n. 2020-E-0000006  del 29/02/2020 FATTURE ELETTRONICHE;17-03-2020;350;0;475;1;Spese correnti;3;Acquisto di beni e servizi;1;Acquisto di beni;2;Altri beni di consumo;999;Altri beni e materiali di consumo n.a.c.;19-03-2020;
661;1;576;"1.774,26";"1.774,26";CLIMATECH SRL;Z452A5347E;SALDO Fatt.n. 559/20  del 29/02/2020 FATTURA;17-03-2020;114;0;712;1;Spese correnti;3;Acquisto di beni e servizi;2;Acquisto di servizi;9;Manutenzione ordinaria e riparazioni;4;Manutenzione ordinaria e riparazioni di impianti e macchinari;19-03-2020;
662;1;577;"1.285,06";"1.285,06";COOPERATIVA SOCIALE VENETA ONLUS;Z902BC719A;SALDO Fatt.n. 50/002  del 29/02/2020 FATTURA;17-03-2020;782;0;239;1;Spese correnti;3;Acquisto di beni e servizi;2;Acquisto di servizi;9;Manutenzione ordinaria e riparazioni;8;Manutenzione ordinaria e riparazioni di beni immobili;19-03-2020;
663;1;578;"2.854,80";"2.854,80";PROJECT SCARL;Z9F2B99A37;SALDO Fatt.n. FATTPA 2_20  del 09/03/2020 FATTURA - Redazione prestazioni specialistiche  energetiche relative agli spogliatoi degli impianti sportivi (A.P.E. - Diagnosi Energetica - Aggiornamento P.A.E.S.) - SALDO;17-03-2020;270;0;78;1;Spese correnti;3;Acquisto di beni e servizi;2;Acquisto di servizi;11;Prestazioni professionali e specialistiche;999;Altre prestazioni professionali e specialistiche n.a.c.;19-03-2020;
664;1;586;"3.032,49";"3.032,49";MAG SPA;Z6F2C78CE4;ASSICURAZIONI -  AFFIDAMENTO COPERTURA ASSICURATIVA RC AUTO LIBRO MATRICOLA - PERIODO 15.03.2020  31.12.2022 - DETERMINAZIONI;23-03-2020;120;0;246;1;Spese correnti;10;Altre spese correnti;4;Premi di assicurazione;1;Premi di assicurazione contro i danni;3;Premi di assicurazione per responsabilità civile verso terzi;24-03-2020;
665;1;590;"7.714,20";"7.714,20";CIRFOOD SOCIETA' COOPERATIVA ITALIANA DI RISTORAZIONE;80300395CF;"SALDO Fatt.n. 5200005348  del 29/02/2020 Destinatario:0000528988,SC.PRIMARIA C.EDERLECOMUNE DI CALDIERO,PIAZZA VITTORIO VENETO .,CALDIERO,37042,VR";24-03-2020;662;0;492;1;Spese correnti;3;Acquisto di beni e servizi;2;Acquisto di servizi;15;Contratti di servizio pubblico;6;Contratti di servizio per le mense scolastiche;27-03-2020;
666;1;591;"170,74";"1.083,62";SOENERGY SRL;7961490D60;ACCONTO Fatt.n. 201027958  del 13/02/2020 FORNITURA GAS;26-03-2020;887;0;377;1;Spese correnti;3;Acquisto di beni e servizi;2;Acquisto di servizi;5;Utenze e canoni;6;Gas;27-03-2020;
666;2;591;"912,88";"1.083,62";SOENERGY SRL;7961490D60;SALDO Fatt.n. 201027958  del 13/02/2020 FORNITURA GAS;26-03-2020;887;0;377;1;Spese correnti;3;Acquisto di beni e servizi;2;Acquisto di servizi;5;Utenze e canoni;6;Gas;27-03-2020;
667;1;592;"67,04";"67,04";COMUNE DI VERONA; ;FORNITURA LIBRI DI TESTO DELLA SCUOLA PRIMARIA A.S. 2019/20. LIQUIDAZIONE DI SPESA AL COMUNE DI VERONA PER ALUNNI RESIDENTI IN CALDIERO.;26-03-2020;555;0;323;1;Spese correnti;4;Trasferimenti correnti;2;Trasferimenti correnti a Famiglie;5;Altri trasferimenti a famiglie;999;Altri trasferimenti a famiglie n.a.c.;27-03-2020;
668;1;593;"63,31";"63,31";AFRO SRL;Z0D25BB1F8;ACCONTO Fatt.n. FATTPA 7_20  del 26/02/2020;26-03-2020;115;0;199;1;Spese correnti;3;Acquisto di beni e servizi;2;Acquisto di servizi;11;Prestazioni professionali e specialistiche;999;Altre prestazioni professionali e specialistiche n.a.c.;27-03-2020;
669;1;594;"81,02";"81,02";AFRO SRL;Z0D25BB1F8;SALDO Fatt.n. FATTPA 7_20  del 26/02/2020;26-03-2020;115;0;763;1;Spese correnti;3;Acquisto di beni e servizi;2;Acquisto di servizi;11;Prestazioni professionali e specialistiche;999;Altre prestazioni professionali e specialistiche n.a.c.;27-03-2020;
670;1;595;"577,57";"577,57";RANCAN SNC DI RANCAN LAURA E ALESSANDRO & C;Z0F2B965AD;SALDO Fatt.n. 8/PA  del 28/02/2020 Contributo Ambientale Conai assolto.;26-03-2020;110;0;72;1;Spese correnti;3;Acquisto di beni e servizi;1;Acquisto di beni;2;Altri beni di consumo;1;"Carta, cancelleria e stampati";27-03-2020;
671;1;596;"257,00";"257,00";IPSOA WOLTERS KLUWER SRL;Z452BFF02A;SALDO Fatt.n. 0072319475  del 24/01/2020;26-03-2020;150;0;155;1;Spese correnti;3;Acquisto di beni e servizi;2;Acquisto di servizi;5;Utenze e canoni;3;Accesso a banche dati e a pubblicazioni on line;27-03-2020;
672;1;597;"347,70";"347,70";PMP GRAFICA DI PANDOLFO SALVATORE;ZC52C4B312;SALDO Fatt.n. 2  del 06/03/2020 FATTURA;26-03-2020;686;0;200;1;Spese correnti;3;Acquisto di beni e servizi;2;Acquisto di servizi;2;"Organizzazione eventi, pubblicita` e servizi per trasferta";999;"Altre spese per relazioni pubbliche, convegni e mostre, pubblicita` n.a.c";27-03-2020;
673;1;598;"183,00";"183,00";SERIT SRL SERV. IGIENE TERRITORIO;7910634DAD;SALDO Fatt.n. 227/FEL  del 12/03/2020 FATTURA;26-03-2020;840;0;195;1;Spese correnti;3;Acquisto di beni e servizi;2;Acquisto di servizi;15;Contratti di servizio pubblico;4;Contratti di servizio per la raccolta rifiuti;27-03-2020;
674;1;599;"1.133,55";"6.286,03";SOENERGY SRL;7961490D60;ACCONTO Fatt.n. 201075614  del 12/03/2020 FATTURA FORNITURA GAS;26-03-2020;887;0;377;1;Spese correnti;3;Acquisto di beni e servizi;2;Acquisto di servizi;5;Utenze e canoni;6;Gas;27-03-2020;
674;2;599;"5.152,48";"6.286,03";SOENERGY SRL;7961490D60;SALDO Fatt.n. 201075614  del 12/03/2020 FATTURA FORNITURA GAS;26-03-2020;887;0;377;1;Spese correnti;3;Acquisto di beni e servizi;2;Acquisto di servizi;5;Utenze e canoni;6;Gas;27-03-2020;
675;1;600;"36.872,14";"36.872,14";SERIT SRL SERV. IGIENE TERRITORIO;7910634DAD;SALDO Fatt.n. 180/FEL  del 27/02/2020 FATTURA;26-03-2020;840;0;195;1;Spese correnti;3;Acquisto di beni e servizi;2;Acquisto di servizi;15;Contratti di servizio pubblico;4;Contratti di servizio per la raccolta rifiuti;27-03-2020;
676;1;601;"120,79";"120,79";AGENZIA DELLE ENTRATE - RISCOSSIONE; ;RIMBORSO DELLE SPESE ESECUTIVE MATURATE NELLANNO 2019 AD AGENZIA DELLE ENTRATE RISCOSSIONE. CODICE ENTE 08162 RIMBORSO SPES ART. 17 - ANNO 2019;30-03-2020;843;0;253;1;Spese correnti;3;Acquisto di beni e servizi;2;Acquisto di servizi;3;Aggi di riscossione;999;Altri aggi di riscossione n.a.c.;02-04-2020;
677;1;514;"100,00";"100,00";TELECOM ITALIA;Z6E2A4DE7A;EROGATORE SERVIZI TELEFONICI-PAGAMENTO TELEFONO            COD DISP 012003040ZIFVZ NOME  TELECOM ITALIA S P A MANDATO  80020100004506152502115URC (P.      79 -R.     514);31-03-2020;213;0;573;1;Spese correnti;3;Acquisto di beni e servizi;2;Acquisto di servizi;5;Utenze e canoni;1;Telefonia fissa;02-04-2020;
678;1;602;"22,00";"22,00";TELECOM ITALIA;Z6E2A4DE7A;SALDO Fatt.n. 8E00136026  del 06/02/2020 2BIM 2020;31-03-2020;213;0;573;1;Spese correnti;3;Acquisto di beni e servizi;2;Acquisto di servizi;5;Utenze e canoni;1;Telefonia fissa;02-04-2020;
679;1;515;"113,62";"113,62";TELECOM ITALIA;Z6E2A4DE7A;EROGATORE SERVIZI TELEFONICI-PAGAMENTO TELEFONO            COD DISP 012003040ZIFVD NOME  TELECOM ITALIA S P A MANDATO  80020100004506150148155URC (P.      80 -R.     515);31-03-2020;113;0;570;1;Spese correnti;3;Acquisto di beni e servizi;2;Acquisto di servizi;5;Utenze e canoni;1;Telefonia fissa;02-04-2020;
680;1;603;"25,00";"25,00";TELECOM ITALIA;Z6E2A4DE7A;SALDO Fatt.n. 8E00135404  del 06/02/2020 2BIM 2020;31-03-2020;113;0;570;1;Spese correnti;3;Acquisto di beni e servizi;2;Acquisto di servizi;5;Utenze e canoni;1;Telefonia fissa;02-04-2020;
681;1;516;"113,62";"113,62";TELECOM ITALIA;Z6E2A4DE7A;EROGATORE SERVIZI TELEFONICI-PAGAMENTO TELEFONO            COD DISP 012003040ZIFVI NOME  TELECOM ITALIA S P A MANDATO  80020100004506151555195URC (P.      81 -R.     516);31-03-2020;113;0;570;1;Spese correnti;3;Acquisto di beni e servizi;2;Acquisto di servizi;5;Utenze e canoni;1;Telefonia fissa;02-04-2020;
682;1;604;"25,00";"25,00";TELECOM ITALIA;Z6E2A4DE7A;SALDO Fatt.n. 8E00135173  del 06/02/2020 2BIM 2020;31-03-2020;113;0;570;1;Spese correnti;3;Acquisto di beni e servizi;2;Acquisto di servizi;5;Utenze e canoni;1;Telefonia fissa;02-04-2020;
683;1;517;"113,62";"113,62";TELECOM ITALIA;Z6E2A4DE7A;EROGATORE SERVIZI TELEFONICI-PAGAMENTO TELEFONO            COD DISP 012003040ZIG0B NOME  TELECOM ITALIA S P A MANDATO  80020100004507650023135URC (P.      82 -R.     517);31-03-2020;113;0;570;1;Spese correnti;3;Acquisto di beni e servizi;2;Acquisto di servizi;5;Utenze e canoni;1;Telefonia fissa;02-04-2020;
684;1;605;"25,00";"25,00";TELECOM ITALIA;Z6E2A4DE7A;SALDO Fatt.n. 8E00133827  del 06/02/2020 2BIM 2020;31-03-2020;113;0;570;1;Spese correnti;3;Acquisto di beni e servizi;2;Acquisto di servizi;5;Utenze e canoni;1;Telefonia fissa;02-04-2020;
685;1;518;"149,48";"149,48";TELECOM ITALIA;Z6E2A4DE7A;EROGATORE SERVIZI TELEFONICI-PAGAMENTO TELEFONO            COD DISP 012003040ZIG0F NOME  TELECOM ITALIA S P A MANDATO  80020100004507650048145URC (P.      83 -R.     518);31-03-2020;583;0;572;1;Spese correnti;3;Acquisto di beni e servizi;2;Acquisto di servizi;5;Utenze e canoni;1;Telefonia fissa;02-04-2020;
686;1;606;"32,89";"32,89";TELECOM ITALIA;Z6E2A4DE7A;SALDO Fatt.n. 8E00132805  del 06/02/2020 2BIM 2020;31-03-2020;583;0;572;1;Spese correnti;3;Acquisto di beni e servizi;2;Acquisto di servizi;5;Utenze e canoni;1;Telefonia fissa;02-04-2020;
687;1;519;"73,60";"73,60";TELECOM ITALIA;Z6E2A4DE7A;EROGATORE SERVIZI TELEFONICI-PAGAMENTO TELEFONO            COD DISP 012003040ZIG0N NOME  TELECOM ITALIA S P A MANDATO  80020100004507652787155URC (P.      84 -R.     519);31-03-2020;543;0;571;1;Spese correnti;3;Acquisto di beni e servizi;2;Acquisto di servizi;5;Utenze e canoni;1;Telefonia fissa;02-04-2020;
688;1;607;"16,19";"16,19";TELECOM ITALIA;Z6E2A4DE7A;SALDO Fatt.n. 8E00134029  del 06/02/2020 2BIM 2020;31-03-2020;543;0;571;1;Spese correnti;3;Acquisto di beni e servizi;2;Acquisto di servizi;5;Utenze e canoni;1;Telefonia fissa;02-04-2020;
689;1;513;"100,55";"100,55";TELECOM ITALIA;Z402525AA0;EROGATORE SERVIZI TELEFONICI-PAGAMENTO TELEFONO            COD DISP 012003040ZIG0J NOME  TELECOM ITALIA S P A MANDATO  80020100004507652424145URC (P.      78 -R.     513);31-03-2020;543;0;82;1;Spese correnti;3;Acquisto di beni e servizi;2;Acquisto di servizi;5;Utenze e canoni;1;Telefonia fissa;02-04-2020;
690;1;608;"22,12";"22,12";TELECOM ITALIA;Z402525AA0;SALDO Fatt.n. 8E00133732  del 06/02/2020 2BIM 2020;31-03-2020;543;0;82;1;Spese correnti;3;Acquisto di beni e servizi;2;Acquisto di servizi;5;Utenze e canoni;1;Telefonia fissa;02-04-2020;
691;1;520;"300,58";"300,58";SOENERGY SRL;7961490D60;BENEFICIARI DIVERSI-PAGAMENTI DIVERSI             COD DISP 0120030501HUUH NOME  SOENERGY S R L MANDATO        99Z1610053624A299 PFM 4502227 Fattura 201027991 del 13 02 20 Scad 16 0 (P.      85 -R.     520);31-03-2020;112;0;372;1;Spese correnti;3;Acquisto di beni e servizi;2;Acquisto di servizi;5;Utenze e canoni;6;Gas;02-04-2020;
692;1;609;"36,04";"36,04";SOENERGY SRL;7961490D60;SALDO Fatt.n. 201027991  del 13/02/2020 FORNITURA GAS;31-03-2020;112;0;372;1;Spese correnti;3;Acquisto di beni e servizi;2;Acquisto di servizi;5;Utenze e canoni;6;Gas;02-04-2020;
693;1;521;"2.488,12";"2.488,12";SOENERGY SRL;7961490D60;BENEFICIARI DIVERSI-PAGAMENTI DIVERSI             COD DISP 0120030501HUUU NOME  SOENERGY S R L MANDATO        99Z1610053624A299 PFM 4502224 Fattura 201027986 del 13 02 20 Scad 16 0 (P.      86 -R.     521);31-03-2020;542;0;374;1;Spese correnti;3;Acquisto di beni e servizi;2;Acquisto di servizi;5;Utenze e canoni;6;Gas;02-04-2020;
694;1;610;"487,22";"487,22";SOENERGY SRL;7961490D60;SALDO Fatt.n. 201027986  del 13/02/2020 FORNITURA GAS;31-03-2020;542;0;374;1;Spese correnti;3;Acquisto di beni e servizi;2;Acquisto di servizi;5;Utenze e canoni;6;Gas;02-04-2020;
695;1;522;"1.800,01";"1.800,01";SOENERGY SRL;7961490D60;BENEFICIARI DIVERSI-PAGAMENTI DIVERSI             COD DISP 0120030501HUVN NOME  SOENERGY S R L MANDATO        99Z1610053624A299 PFM 4502228 Fattura 201027992 del 13 02 20 Scad 16 0 (P.      87 -R.     522);31-03-2020;888;0;378;1;Spese correnti;3;Acquisto di beni e servizi;2;Acquisto di servizi;5;Utenze e canoni;6;Gas;02-04-2020;
696;1;611;"365,91";"365,91";SOENERGY SRL;7961490D60;SALDO Fatt.n. 201027992  del 13/02/2020 FORNITURA GAS;31-03-2020;888;0;378;1;Spese correnti;3;Acquisto di beni e servizi;2;Acquisto di servizi;5;Utenze e canoni;6;Gas;02-04-2020;
697;1;523;"1.611,18";"1.611,18";SOENERGY SRL;7961490D60;BENEFICIARI DIVERSI-PAGAMENTI DIVERSI             COD DISP 0120030501HUKF NOME  SOENERGY S R L MANDATO        99Z1610053624A299 PFM 4502223 Fattura 201027987 del 13 02 20 Scad 16 0 (P.      88 -R.     523);31-03-2020;353;0;376;1;Spese correnti;3;Acquisto di beni e servizi;2;Acquisto di servizi;5;Utenze e canoni;6;Gas;02-04-2020;
698;1;612;"294,14";"294,14";SOENERGY SRL;7961490D60;SALDO Fatt.n. 201027987  del 13/02/2020 FORNITURA GAS;31-03-2020;353;0;376;1;Spese correnti;3;Acquisto di beni e servizi;2;Acquisto di servizi;5;Utenze e canoni;6;Gas;02-04-2020;
699;1;524;"838,49";"838,49";SOENERGY SRL;7961490D60;BENEFICIARI DIVERSI-PAGAMENTI DIVERSI             COD DISP 0120030501HUV7 NOME  SOENERGY S R L MANDATO        99Z1610053624A299 PFM 4502229 Fattura 201027990 del 13 02 20 Scad 16 0 (P.      89 -R.     524);31-03-2020;212;0;373;1;Spese correnti;3;Acquisto di beni e servizi;2;Acquisto di servizi;5;Utenze e canoni;6;Gas;02-04-2020;
700;1;613;"154,38";"154,38";SOENERGY SRL;7961490D60;SALDO Fatt.n. 201027990  del 13/02/2020 FORNITURA GAS;31-03-2020;212;0;373;1;Spese correnti;3;Acquisto di beni e servizi;2;Acquisto di servizi;5;Utenze e canoni;6;Gas;02-04-2020;
701;1;525;"1.645,11";"1.645,11";SOENERGY SRL;7961490D60;BENEFICIARI DIVERSI-PAGAMENTI DIVERSI             COD DISP 0120030501HUVJ NOME  SOENERGY S R L MANDATO        99Z1610053624A299 PFM 4502225 Fattura 201027988 del 13 02 20 Scad 16 0 (P.      90 -R.     525);31-03-2020;884;0;379;1;Spese correnti;3;Acquisto di beni e servizi;2;Acquisto di servizi;5;Utenze e canoni;6;Gas;02-04-2020;
702;1;614;"331,83";"331,83";SOENERGY SRL;7961490D60;SALDO Fatt.n. 201027988  del 13/02/2020 FORNITURA GAS;31-03-2020;884;0;379;1;Spese correnti;3;Acquisto di beni e servizi;2;Acquisto di servizi;5;Utenze e canoni;6;Gas;02-04-2020;
703;1;579;"401,78";"401,78";GP GLOBAL POWER SPA;7961277D9A;BENEFICIARI DIVERSI-PAGAMENTI DIVERSI             COD DISP 0120031107GK0H NOME  GLOBAL POWER SPA MANDATO      AA5TZ1C7799 PFM 42877 020320  FEC 0 CIG CIG7961277D9A IBAN 10000030001 (P.      91 -R.     579);31-03-2020;354;0;364;1;Spese correnti;3;Acquisto di beni e servizi;2;Acquisto di servizi;5;Utenze e canoni;4;Energia elettrica;02-04-2020;
704;1;615;"88,39";"88,39";GP GLOBAL POWER SPA;7961277D9A;SALDO Fatt.n. V0/42877  del 02/03/2020 Fattura Energia Elettrica;31-03-2020;354;0;364;1;Spese correnti;3;Acquisto di beni e servizi;2;Acquisto di servizi;5;Utenze e canoni;4;Energia elettrica;02-04-2020;
705;1;580;"736,59";"736,59";GP GLOBAL POWER SPA;7961277D9A;BENEFICIARI DIVERSI-PAGAMENTI DIVERSI             COD DISP 0120031107GK08 NOME  GLOBAL POWER SPA MANDATO      AA5TZ1C7799 PFM 42873 020320  FEC 0 CIG CIG7961277D9A IBAN 10000030001 (P.      92 -R.     580);31-03-2020;886;0;369;1;Spese correnti;3;Acquisto di beni e servizi;2;Acquisto di servizi;5;Utenze e canoni;4;Energia elettrica;02-04-2020;
706;1;616;"162,05";"162,05";GP GLOBAL POWER SPA;7961277D9A;SALDO Fatt.n. V0/42873  del 02/03/2020 Fattura Energia Elettrica;31-03-2020;886;0;369;1;Spese correnti;3;Acquisto di beni e servizi;2;Acquisto di servizi;5;Utenze e canoni;4;Energia elettrica;02-04-2020;
707;1;581;"1.306,23";"1.306,23";GP GLOBAL POWER SPA;7961277D9A;BENEFICIARI DIVERSI-PAGAMENTI DIVERSI             COD DISP 0120031107GK0L NOME  GLOBAL POWER SPA MANDATO      AA5TZ1C7799 PFM 42875 020320  FEC 0 CIG CIG7961277D9A IBAN 10000030001 (P.      93 -R.     581);31-03-2020;111;0;362;1;Spese correnti;3;Acquisto di beni e servizi;2;Acquisto di servizi;5;Utenze e canoni;4;Energia elettrica;02-04-2020;
708;1;617;"287,37";"287,37";GP GLOBAL POWER SPA;7961277D9A;SALDO Fatt.n. V0/42875  del 02/03/2020 Fattura Energia Elettrica;31-03-2020;111;0;362;1;Spese correnti;3;Acquisto di beni e servizi;2;Acquisto di servizi;5;Utenze e canoni;4;Energia elettrica;02-04-2020;
709;1;582;"8.126,13";"8.126,13";GP GLOBAL POWER SPA;7961277D9A;BENEFICIARI DIVERSI-PAGAMENTI DIVERSI             COD DISP 0120031107GK0C NOME  GLOBAL POWER SPA MANDATO      AA5TZ1C7799 PFM 42874 020320  FEC 0 CIG CIG7961277D9A IBAN 10000030001 (P.      94 -R.     582);31-03-2020;960;0;371;1;Spese correnti;3;Acquisto di beni e servizi;2;Acquisto di servizi;5;Utenze e canoni;4;Energia elettrica;02-04-2020;
710;1;618;"1.787,75";"1.787,75";GP GLOBAL POWER SPA;7961277D9A;SALDO Fatt.n. V0/42874  del 02/03/2020 Fattura Energia Elettrica;31-03-2020;960;0;371;1;Spese correnti;3;Acquisto di beni e servizi;2;Acquisto di servizi;5;Utenze e canoni;4;Energia elettrica;02-04-2020;
711;1;583;"758,66";"758,66";GP GLOBAL POWER SPA;7961277D9A;BENEFICIARI DIVERSI-PAGAMENTI DIVERSI             COD DISP 0120031107GK0T NOME  GLOBAL POWER SPA MANDATO      AA5TZ1C7799 PFM 42872 020320  FEC 0 CIG CIG7961277D9A IBAN 10000030001 (P.      95 -R.     583);31-03-2020;881;0;367;1;Spese correnti;3;Acquisto di beni e servizi;2;Acquisto di servizi;5;Utenze e canoni;4;Energia elettrica;02-04-2020;
712;1;619;"166,91";"166,91";GP GLOBAL POWER SPA;7961277D9A;SALDO Fatt.n. V0/42872  del 02/03/2020 Fattura Energia Elettrica;31-03-2020;881;0;367;1;Spese correnti;3;Acquisto di beni e servizi;2;Acquisto di servizi;5;Utenze e canoni;4;Energia elettrica;02-04-2020;
713;1;584;"320,52";"320,52";GP GLOBAL POWER SPA;7961277D9A;BENEFICIARI DIVERSI-PAGAMENTI DIVERSI             COD DISP 0120031107GK0X NOME  GLOBAL POWER SPA MANDATO      AA5TZ1C7799 PFM 42871 020320  FEC 0 CIG CIG7961277D9A IBAN 10000030001 (P.      96 -R.     584);31-03-2020;885;0;368;1;Spese correnti;3;Acquisto di beni e servizi;2;Acquisto di servizi;5;Utenze e canoni;4;Energia elettrica;02-04-2020;
714;1;620;"70,51";"70,51";GP GLOBAL POWER SPA;7961277D9A;SALDO Fatt.n. V0/42871  del 02/03/2020 Fattura Energia Elettrica;31-03-2020;885;0;368;1;Spese correnti;3;Acquisto di beni e servizi;2;Acquisto di servizi;5;Utenze e canoni;4;Energia elettrica;02-04-2020;
715;1;585;"165,32";"165,32";GP GLOBAL POWER SPA;7961277D9A;BENEFICIARI DIVERSI-PAGAMENTI DIVERSI             COD DISP 0120031107GK0P NOME  GLOBAL POWER SPA MANDATO      AA5TZ1C7799 PFM 42876 020320  FEC 0 CIG CIG7961277D9A IBAN 10000030001 (P.      97 -R.     585);31-03-2020;211;0;363;1;Spese correnti;3;Acquisto di beni e servizi;2;Acquisto di servizi;5;Utenze e canoni;4;Energia elettrica;02-04-2020;
716;1;621;"36,37";"36,37";GP GLOBAL POWER SPA;7961277D9A;SALDO Fatt.n. V0/42876  del 02/03/2020 Fattura Energia Elettrica;31-03-2020;211;0;363;1;Spese correnti;3;Acquisto di beni e servizi;2;Acquisto di servizi;5;Utenze e canoni;4;Energia elettrica;02-04-2020;
717;1;588;"6,86";"6,86";GP GLOBAL POWER SPA;7961277D9A;BENEFICIARI DIVERSI-PAGAMENTI DIVERSI             COD DISP 012003160BZB9D NOME  GLOBAL POWER SPA MANDATO      AA5TZ1C7799 PFM 58188 060320  100000300015 CTTMHL70M06L364F COMUNE DI (P.      99 -R.     588);31-03-2020;960;0;371;1;Spese correnti;3;Acquisto di beni e servizi;2;Acquisto di servizi;5;Utenze e canoni;4;Energia elettrica;02-04-2020;
718;1;622;"1,51";"1,51";GP GLOBAL POWER SPA;7961277D9A;SALDO Fatt.n. V0/58188  del 06/03/2020 Fattura Energia Elettrica;31-03-2020;960;0;371;1;Spese correnti;3;Acquisto di beni e servizi;2;Acquisto di servizi;5;Utenze e canoni;4;Energia elettrica;02-04-2020;
720;1;710;"141,44";"141,44";MINISTERO DELL'ECONOMIA E DELLE FINANZE; ;VERSAMENTO IVA A DEBITO RELATIVA AL MESE DI MARZO 2020;02-04-2020;1070;0;257;1;Spese correnti;10;Altre spese correnti;3;Versamenti IVA a debito;1;Versamenti IVA a debito per le gestioni commerciali;1;Versamenti IVA a debito per le gestioni commerciali;14-04-2020;
721;1;631;"350,00";"350,00";MAZZARINO CLAUDIO;Z242605A89;SALDO Fatt.n. FATTPA 2_20  del 08/03/2020 FATTURA;02-04-2020;275;0;213;1;Spese correnti;3;Acquisto di beni e servizi;2;Acquisto di servizi;18;Servizi sanitari;1;Spese per accertamenti sanitari resi necessari dall'attività lavorativa;06-04-2020;
722;1;632;"238,82";"238,82";ABACO SPA;7408612407;SALDO Fatt.n. 2020120001165  del 06/03/2020 FATTURA;02-04-2020;382;0;166;1;Spese correnti;3;Acquisto di beni e servizi;2;Acquisto di servizi;3;Aggi di riscossione;999;Altri aggi di riscossione n.a.c.;06-04-2020;
723;1;633;"3,33";"3,33";ABACO SPA;7408612407;SALDO Fatt.n. 2020120001166  del 06/03/2020 FATTURA;02-04-2020;382;0;166;1;Spese correnti;3;Acquisto di beni e servizi;2;Acquisto di servizi;3;Aggi di riscossione;999;Altri aggi di riscossione n.a.c.;06-04-2020;
724;1;634;"352,58";"352,58";ABACO SPA;7408612407;SALDO Fatt.n. 2020120001150  del 05/03/2020 FATTURA;02-04-2020;382;0;166;1;Spese correnti;3;Acquisto di beni e servizi;2;Acquisto di servizi;3;Aggi di riscossione;999;Altri aggi di riscossione n.a.c.;06-04-2020;
725;1;635;"2.398,48";"2.398,48";CIDIELLE COOPERATIVA SOCIALE;7815839A5F;SALDO Fatt.n. 9/02  del 31/01/2020 FATTURA MESE DI GENNAIO 2020;02-04-2020;117;0;115;1;Spese correnti;3;Acquisto di beni e servizi;2;Acquisto di servizi;13;Servizi ausiliari per il funzionamento dell'ente;2;Servizi di pulizia e lavanderia;06-04-2020;
726;1;636;"7.437,88";"7.437,88";CONSORZIO DI BACINO VERONA DUE DEL QUADRILATERO; ;SALDO Fatt.n. 004746/PA  del 17/12/2019 FATTURA;02-04-2020;840;0;212;1;Spese correnti;3;Acquisto di beni e servizi;2;Acquisto di servizi;15;Contratti di servizio pubblico;4;Contratti di servizio per la raccolta rifiuti;06-04-2020;
727;1;637;"1.631,14";"1.631,14";POWER MEDIA SNC;ZD52C70891;SALDO Fatt.n. FATTPA 25_20  del 30/03/2020 VENDITA;02-04-2020;118;0;222;1;Spese correnti;3;Acquisto di beni e servizi;2;Acquisto di servizi;19;Servizi informatici e di telecomunicazioni;4;Servizi di rete per trasmissione dati e VoIP e relativa manutenzione;06-04-2020;
728;1;638;"317,20";"317,20";TIPOGRAFIA CENTRALE SAS DI GIONA F & C;Z692C77A9B;SALDO Fatt.n. FATTPA 7_20  del 23/03/2020 fattura;02-04-2020;147;0;248;1;Spese correnti;3;Acquisto di beni e servizi;2;Acquisto di servizi;2;"Organizzazione eventi, pubblicita` e servizi per trasferta";999;"Altre spese per relazioni pubbliche, convegni e mostre, pubblicita` n.a.c";06-04-2020;
729;1;639;"2.195,50";"2.195,50";SOCIETA' COOPERATIVA CULTURE;7559364882;SALDO Fatt.n. 1233/FE  del 20/03/2020 FATTURA SERVIZI BIBLIOTECARI MESE DI FEBBRAIO 2020;02-04-2020;680;0;547;1;Spese correnti;3;Acquisto di beni e servizi;2;Acquisto di servizi;15;Contratti di servizio pubblico;999;Altre spese per contratti di servizio pubblico;06-04-2020;
730;1;640;"214,39";"214,39";SHARP ELECTRONICS ITALIA SPA;ZF81FAD390;"SALDO Fatt.n. 7720003645  del 25/03/2020 COMUNE DI CALDIERO, ORDINE 3811295, CIG ZF81FAD390";03-04-2020;109;0;483;1;Spese correnti;3;Acquisto di beni e servizi;2;Acquisto di servizi;7;Utilizzo di beni di terzi;4;Noleggi di hardware;06-04-2020;
731;1;641;"1.136,82";"1.136,82";MATTARANETTA SOCIETA' COOPERATIVA SOCIALE;Z9F225C229;ACCONTO Fatt.n. 8/FE  del 29/02/2020 FATTURA IMMEDIATA;03-04-2020;840;0;141;1;Spese correnti;3;Acquisto di beni e servizi;2;Acquisto di servizi;15;Contratti di servizio pubblico;4;Contratti di servizio per la raccolta rifiuti;06-04-2020;
732;1;642;"274,84";"274,84";MATTARANETTA SOCIETA' COOPERATIVA SOCIALE;Z9F225C229;SALDO Fatt.n. 8/FE  del 29/02/2020 FATTURA IMMEDIATA;03-04-2020;840;0;186;1;Spese correnti;3;Acquisto di beni e servizi;2;Acquisto di servizi;15;Contratti di servizio pubblico;5;Contratti di servizio per il conferimento in discarica dei rifiuti;06-04-2020;
733;1;643;"736,98";"736,98";TELEFONITALIA SRL;ZE12BAEBA3;SALDO Fatt.n. 104/2020  del 25/03/2020 FATTURA SERVIZIO ASSISTENZA CENTRALINO COM.LE;03-04-2020;113;1;241;1;Spese correnti;3;Acquisto di beni e servizi;2;Acquisto di servizi;9;Manutenzione ordinaria e riparazioni;4;Manutenzione ordinaria e riparazioni di impianti e macchinari;06-04-2020;
734;1;644;"297,87";"297,87";EDILTOSI SRL;Z9B248C873;SALDO Fatt.n. 001886  del 25/03/2020 FATTURA;03-04-2020;350;0;505;1;Spese correnti;3;Acquisto di beni e servizi;1;Acquisto di beni;2;Altri beni di consumo;999;Altri beni e materiali di consumo n.a.c.;06-04-2020;
735;1;645;"1.000,00";"1.000,00";NUCLEO DI VOL. E PC ANC CALDIERO; ;"CONVENZIONE CON LASSOCIAZIONE NAZIONALE CARABINIERI IN CONGEDO (ANC) PER LA VIGILANZA ED IL MONITORAGGO SU AREE COMUNALI, PARCHI, GIARDINI E LUOGHI PUBBLICI  ANNO 2019. EROGAZIONE A CONSUNTIVO DEL SALDO CONTRIBUTO ECONOMICO.";03-04-2020;895;0;519;1;Spese correnti;4;Trasferimenti correnti;4;Trasferimenti correnti a Istituzioni Sociali Private;1;Trasferimenti correnti a Istituzioni Sociali Private;1;Trasferimenti correnti a Istituzioni Sociali Private;06-04-2020;
736;1;646;"1.726,76";"1.726,76";CONSORZIO DI BACINO VERONA DUE DEL QUADRILATERO; ;SALDO Fatt.n. 004915/PA  del 23/12/2019 FATTURA;03-04-2020;840;0;212;1;Spese correnti;3;Acquisto di beni e servizi;2;Acquisto di servizi;15;Contratti di servizio pubblico;4;Contratti di servizio per la raccolta rifiuti;06-04-2020;
737;1;647;"365,63";"365,63";CONSORZIO DI BACINO VERONA DUE DEL QUADRILATERO; ;SALDO Fatt.n. 004677/PA  del 17/12/2019 FATTURA;03-04-2020;840;0;212;1;Spese correnti;3;Acquisto di beni e servizi;2;Acquisto di servizi;15;Contratti di servizio pubblico;4;Contratti di servizio per la raccolta rifiuti;06-04-2020;
738;1;648;"384,66";"384,66";CONSORZIO DI BACINO VERONA DUE DEL QUADRILATERO; ;SALDO Fatt.n. 004708/PA  del 17/12/2019 FATTURA;03-04-2020;840;0;212;1;Spese correnti;3;Acquisto di beni e servizi;2;Acquisto di servizi;15;Contratti di servizio pubblico;4;Contratti di servizio per la raccolta rifiuti;06-04-2020;
739;1;649;"60,82";"60,82";CONSORZIO DI BACINO VERONA DUE DEL QUADRILATERO; ;SALDO Fatt.n. 004875/PA  del 20/12/2019 FATTURA;03-04-2020;840;0;212;1;Spese correnti;3;Acquisto di beni e servizi;2;Acquisto di servizi;15;Contratti di servizio pubblico;4;Contratti di servizio per la raccolta rifiuti;06-04-2020;
740;1;650;"7.629,07";"7.629,07";CONSORZIO DI BACINO VERONA DUE DEL QUADRILATERO; ;SALDO Fatt.n. 004829/PA  del 18/12/2019 FATTURA;03-04-2020;840;0;212;1;Spese correnti;3;Acquisto di beni e servizi;2;Acquisto di servizi;15;Contratti di servizio pubblico;4;Contratti di servizio per la raccolta rifiuti;06-04-2020;
741;1;651;"34.037,77";"34.037,77";CONSORZIO DI BACINO VERONA DUE DEL QUADRILATERO; ;SALDO Fatt.n. 004977/PA  del 31/12/2019 FATTURA;03-04-2020;840;0;212;1;Spese correnti;3;Acquisto di beni e servizi;2;Acquisto di servizi;15;Contratti di servizio pubblico;4;Contratti di servizio per la raccolta rifiuti;06-04-2020;
742;1;652;"294,51";"294,51";CONSORZIO DI BACINO VERONA DUE DEL QUADRILATERO; ;SALDO Fatt.n. 005160/PA  del 31/12/2019 FATTURA;03-04-2020;840;0;212;1;Spese correnti;3;Acquisto di beni e servizi;2;Acquisto di servizi;15;Contratti di servizio pubblico;4;Contratti di servizio per la raccolta rifiuti;06-04-2020;
743;1;653;"294,51";"294,51";CONSORZIO DI BACINO VERONA DUE DEL QUADRILATERO; ;SALDO Fatt.n. 005159/PA  del 31/12/2019 FATTURA;03-04-2020;840;0;212;1;Spese correnti;3;Acquisto di beni e servizi;2;Acquisto di servizi;15;Contratti di servizio pubblico;4;Contratti di servizio per la raccolta rifiuti;06-04-2020;
744;1;654;"294,51";"294,51";CONSORZIO DI BACINO VERONA DUE DEL QUADRILATERO; ;SALDO Fatt.n. 005158/PA  del 31/12/2019 FATTURA;03-04-2020;840;0;212;1;Spese correnti;3;Acquisto di beni e servizi;2;Acquisto di servizi;15;Contratti di servizio pubblico;4;Contratti di servizio per la raccolta rifiuti;06-04-2020;
745;1;655;"294,51";"294,51";CONSORZIO DI BACINO VERONA DUE DEL QUADRILATERO; ;SALDO Fatt.n. 005157/PA  del 31/12/2019 FATTURA;03-04-2020;840;0;212;1;Spese correnti;3;Acquisto di beni e servizi;2;Acquisto di servizi;15;Contratti di servizio pubblico;4;Contratti di servizio per la raccolta rifiuti;06-04-2020;
746;1;656;"294,51";"294,51";CONSORZIO DI BACINO VERONA DUE DEL QUADRILATERO; ;SALDO Fatt.n. 005156/PA  del 31/12/2019 FATTURA;03-04-2020;840;0;212;1;Spese correnti;3;Acquisto di beni e servizi;2;Acquisto di servizi;15;Contratti di servizio pubblico;4;Contratti di servizio per la raccolta rifiuti;06-04-2020;
747;1;657;"3.537,05";"3.537,05";CONSORZIO DI BACINO VERONA DUE DEL QUADRILATERO; ;SALDO Fatt.n. 005041/PA  del 31/12/2019 FATTURA;03-04-2020;840;0;212;1;Spese correnti;3;Acquisto di beni e servizi;2;Acquisto di servizi;15;Contratti di servizio pubblico;4;Contratti di servizio per la raccolta rifiuti;06-04-2020;
748;1;658;"280,58";"280,58";CONSORZIO DI BACINO VERONA DUE DEL QUADRILATERO; ;SALDO Fatt.n. 005081/PA  del 31/12/2019 FATTURA;03-04-2020;840;0;212;1;Spese correnti;3;Acquisto di beni e servizi;2;Acquisto di servizi;15;Contratti di servizio pubblico;4;Contratti di servizio per la raccolta rifiuti;06-04-2020;
749;1;659;"116,60";"116,60";CONSORZIO DI BACINO VERONA DUE DEL QUADRILATERO; ;SALDO Fatt.n. 005245/PA  del 31/12/2019 FATTURA;03-04-2020;840;0;212;1;Spese correnti;3;Acquisto di beni e servizi;2;Acquisto di servizi;15;Contratti di servizio pubblico;4;Contratti di servizio per la raccolta rifiuti;06-04-2020;
750;1;660;"799,92";"799,92";CONSORZIO DI BACINO VERONA DUE DEL QUADRILATERO; ;SALDO Fatt.n. 005504/PA  del 31/12/2019 FATTURA;03-04-2020;840;0;212;1;Spese correnti;3;Acquisto di beni e servizi;2;Acquisto di servizi;15;Contratti di servizio pubblico;4;Contratti di servizio per la raccolta rifiuti;06-04-2020;
751;1;661;"288,11";"288,11";CONSORZIO DI BACINO VERONA DUE DEL QUADRILATERO; ;SALDO Fatt.n. 005464/PA  del 31/12/2019 FATTURA;03-04-2020;840;0;212;1;Spese correnti;3;Acquisto di beni e servizi;2;Acquisto di servizi;15;Contratti di servizio pubblico;4;Contratti di servizio per la raccolta rifiuti;06-04-2020;
752;1;662;"18.362,54";"18.362,54";CONSORZIO DI BACINO VERONA DUE DEL QUADRILATERO; ;SALDO Fatt.n. 005421/PA  del 31/12/2019 FATTURA;03-04-2020;840;0;212;1;Spese correnti;3;Acquisto di beni e servizi;2;Acquisto di servizi;15;Contratti di servizio pubblico;4;Contratti di servizio per la raccolta rifiuti;06-04-2020;
753;1;663;"365,63";"365,63";CONSORZIO DI BACINO VERONA DUE DEL QUADRILATERO; ;SALDO Fatt.n. 005385/PA  del 31/12/2019 FATTURA;03-04-2020;840;0;212;1;Spese correnti;3;Acquisto di beni e servizi;2;Acquisto di servizi;15;Contratti di servizio pubblico;4;Contratti di servizio per la raccolta rifiuti;06-04-2020;
754;1;664;"280,58";"280,58";CONSORZIO DI BACINO VERONA DUE DEL QUADRILATERO; ;SALDO Fatt.n. 005367/PA  del 31/12/2019 FATTURA;03-04-2020;840;0;212;1;Spese correnti;3;Acquisto di beni e servizi;2;Acquisto di servizi;15;Contratti di servizio pubblico;4;Contratti di servizio per la raccolta rifiuti;06-04-2020;
755;1;665;"1.987,05";"1.987,05";CONSORZIO DI BACINO VERONA DUE DEL QUADRILATERO; ;SALDO Fatt.n. 005264/PA  del 31/12/2019 FATTURA;03-04-2020;840;0;212;1;Spese correnti;3;Acquisto di beni e servizi;2;Acquisto di servizi;15;Contratti di servizio pubblico;4;Contratti di servizio per la raccolta rifiuti;06-04-2020;
756;1;666;"2.690,88";"2.690,88";CONSORZIO DI BACINO VERONA DUE DEL QUADRILATERO; ;SALDO Fatt.n. 005263/PA  del 31/12/2019 FATTURA;03-04-2020;840;0;212;1;Spese correnti;3;Acquisto di beni e servizi;2;Acquisto di servizi;15;Contratti di servizio pubblico;4;Contratti di servizio per la raccolta rifiuti;06-04-2020;
757;1;667;"241,86";"241,86";CONSORZIO DI BACINO VERONA DUE DEL QUADRILATERO; ;SALDO Fatt.n. 005250/PA  del 31/12/2019 FATTURA;03-04-2020;840;0;212;1;Spese correnti;3;Acquisto di beni e servizi;2;Acquisto di servizi;15;Contratti di servizio pubblico;4;Contratti di servizio per la raccolta rifiuti;06-04-2020;
758;1;668;"3.438,47";"3.438,47";CONSORZIO DI BACINO VERONA DUE DEL QUADRILATERO; ;SALDO Fatt.n. 005542/PA  del 31/12/2019 FATTURA;03-04-2020;840;0;212;1;Spese correnti;3;Acquisto di beni e servizi;2;Acquisto di servizi;15;Contratti di servizio pubblico;4;Contratti di servizio per la raccolta rifiuti;06-04-2020;
759;1;669;"366,69";"366,69";CONSORZIO DI BACINO VERONA DUE DEL QUADRILATERO; ;SALDO Fatt.n. 005628/PA  del 31/12/2019 FATTURA;03-04-2020;840;0;212;1;Spese correnti;3;Acquisto di beni e servizi;2;Acquisto di servizi;15;Contratti di servizio pubblico;4;Contratti di servizio per la raccolta rifiuti;06-04-2020;
760;1;670;"366,14";"366,14";CONSORZIO DI BACINO VERONA DUE DEL QUADRILATERO; ;SALDO Fatt.n. 005727/PA  del 31/12/2019 FATTURA;03-04-2020;840;0;212;1;Spese correnti;3;Acquisto di beni e servizi;2;Acquisto di servizi;15;Contratti di servizio pubblico;4;Contratti di servizio per la raccolta rifiuti;06-04-2020;
761;1;671;"806,90";"806,90";CONSORZIO DI BACINO VERONA DUE DEL QUADRILATERO; ;SALDO Fatt.n. 005683/PA  del 31/12/2019 FATTURA;03-04-2020;840;0;212;1;Spese correnti;3;Acquisto di beni e servizi;2;Acquisto di servizi;15;Contratti di servizio pubblico;4;Contratti di servizio per la raccolta rifiuti;06-04-2020;
762;1;672;"701,34";"701,34";CONSORZIO DI BACINO VERONA DUE DEL QUADRILATERO; ;SALDO Fatt.n. 000071/PA  del 28/02/2020 FATTURA;03-04-2020;840;0;196;1;Spese correnti;3;Acquisto di beni e servizi;2;Acquisto di servizi;15;Contratti di servizio pubblico;5;Contratti di servizio per il conferimento in discarica dei rifiuti;06-04-2020;
763;1;673;"9.184,09";"9.184,09";CONSORZIO DI BACINO VERONA DUE DEL QUADRILATERO; ;ACCONTO Fatt.n. 005585/PA  del 31/12/2019 FATTURA;03-04-2020;840;0;196;1;Spese correnti;3;Acquisto di beni e servizi;2;Acquisto di servizi;15;Contratti di servizio pubblico;5;Contratti di servizio per il conferimento in discarica dei rifiuti;06-04-2020;
764;1;674;"3.852,10";"3.852,10";CONSORZIO DI BACINO VERONA DUE DEL QUADRILATERO; ;SALDO Fatt.n. 005585/PA  del 31/12/2019 FATTURA;03-04-2020;840;0;212;1;Spese correnti;3;Acquisto di beni e servizi;2;Acquisto di servizi;15;Contratti di servizio pubblico;4;Contratti di servizio per la raccolta rifiuti;06-04-2020;
765;1;676;"36.872,14";"36.872,14";SERIT SRL SERV. IGIENE TERRITORIO;7910634DAD;SALDO Fatt.n. 237/FEL  del 23/03/2020 FATTURA;04-04-2020;840;0;195;1;Spese correnti;3;Acquisto di beni e servizi;2;Acquisto di servizi;15;Contratti di servizio pubblico;4;Contratti di servizio per la raccolta rifiuti;07-04-2020;
766;1;677;"11.125,00";"11.125,00";SCUOLA MATERNA MARIA BAMBINA; ;"CONVENZIONE CON LE SCUOLE MATERNE DEL TERRITORIO, ART.10 - EROGAZIONE PRIMO ACCONTO DEL CONTRIBUTO ECONOMICO PREVISTO PER LANNO 2020.";06-04-2020;480;0;183;1;Spese correnti;4;Trasferimenti correnti;4;Trasferimenti correnti a Istituzioni Sociali Private;1;Trasferimenti correnti a Istituzioni Sociali Private;1;Trasferimenti correnti a Istituzioni Sociali Private;07-04-2020;
767;1;678;"18.000,00";"18.000,00";FONDAZIONE DON GAETANO PROVOLI - SCUOLA PARITARIA PER L; ;"CONVENZIONE CON LE SCUOLE DINFANZIA PARITARIE DEL TERRITORIO, VALEVOLE PER GLI ANNI 2019-2020-2021. ART.11  PORTATORI DI HANDICAP. PROVVEDIMENTI IN MERITO ALLANNO 2020 (A.S. 2019/20).";06-04-2020;488;0;247;1;Spese correnti;4;Trasferimenti correnti;4;Trasferimenti correnti a Istituzioni Sociali Private;1;Trasferimenti correnti a Istituzioni Sociali Private;1;Trasferimenti correnti a Istituzioni Sociali Private;07-04-2020;
768;1;679;"8.599,24";"8.599,24";SCUOLA MATERNA "MARIA IMMACOLATA" STRA'; ;D.G.R. VENETO N.2010 del 30 dicembre 2019. Piano di azione nazionale pluriennale per la promozione del Sistema integrato dei servizi di educazione e istruzione per le bambine e i bambini dalla nascita sino ai sei anni  Anno 2019. Intesa C.U. 18 dicem;06-04-2020;480;1;243;1;Spese correnti;4;Trasferimenti correnti;4;Trasferimenti correnti a Istituzioni Sociali Private;1;Trasferimenti correnti a Istituzioni Sociali Private;1;Trasferimenti correnti a Istituzioni Sociali Private;07-04-2020;
769;1;680;"15.884,40";"15.884,40";SCUOLA MATERNA MARIA BAMBINA; ;D.G.R. VENETO N.2010 del 30 dicembre 2019. Piano di azione nazionale pluriennale per la promozione del Sistema integrato dei servizi di educazione e istruzione per le bambine e i bambini dalla nascita sino ai sei anni  Anno 2019. Intesa C.U. 18 dicem;06-04-2020;480;1;245;1;Spese correnti;4;Trasferimenti correnti;4;Trasferimenti correnti a Istituzioni Sociali Private;1;Trasferimenti correnti a Istituzioni Sociali Private;1;Trasferimenti correnti a Istituzioni Sociali Private;07-04-2020;
770;1;681;"20.822,24";"20.822,24";FONDAZIONE DON GAETANO PROVOLI - SCUOLA PARITARIA PER L; ;D.G.R. VENETO N.2010 del 30 dicembre 2019. Piano di azione nazionale pluriennale per la promozione del Sistema integrato dei servizi di educazione e istruzione per le bambine e i bambini dalla nascita sino ai sei anni  Anno 2019. Intesa C.U. 18 dicem;06-04-2020;480;1;244;1;Spese correnti;4;Trasferimenti correnti;4;Trasferimenti correnti a Istituzioni Sociali Private;1;Trasferimenti correnti a Istituzioni Sociali Private;1;Trasferimenti correnti a Istituzioni Sociali Private;07-04-2020;
771;1;682;"4.000,00";"4.000,00";PRO LOCO DI CALDIERO; ;ASSOCIAZIONE PROLOCO CALDIERO. LIQUIDAZIONE A CONSUNTO DEL SALDO DEL CONTRIBUTO ECONOMICO PER LE ATTIVITA DELL ANNO 2019.;06-04-2020;895;0;207;1;Spese correnti;4;Trasferimenti correnti;4;Trasferimenti correnti a Istituzioni Sociali Private;1;Trasferimenti correnti a Istituzioni Sociali Private;1;Trasferimenti correnti a Istituzioni Sociali Private;07-04-2020;
772;1;683;"12.300,00";"12.300,00";DALLA VERDE GIARDINI DI DALLA VERDE GIORDANO;Z352A378EE;SALDO Fatt.n. 01/PA  del 23/03/2020 FATTURA CIG: Z352A378EE;07-04-2020;870;0;774;1;Spese correnti;3;Acquisto di beni e servizi;2;Acquisto di servizi;9;Manutenzione ordinaria e riparazioni;8;Manutenzione ordinaria e riparazioni di beni immobili;07-04-2020;
773;1;684;"24.467,06";"24.467,06";RAPID SCAVI SRL;ZE42B271B0;ACCONTO Fatt.n. 04/01/2020  del 25/03/2020 FATTURA;07-04-2020;1190;2;707;2;Spese in conto capitale;2;Investimenti fissi lordi e acquisto di terreni;1;Beni materiali;3;Mobili e arredi;999;Mobili e arredi n.a.c.;07-04-2020;
774;1;685;"19.452,38";"19.452,38";RAPID SCAVI SRL;ZE42B271B0;SALDO Fatt.n. 04/01/2020  del 25/03/2020 FATTURA;07-04-2020;1190;1;706;2;Spese in conto capitale;2;Investimenti fissi lordi e acquisto di terreni;1;Beni materiali;3;Mobili e arredi;999;Mobili e arredi n.a.c.;07-04-2020;
775;1;686;"13.831,82";"13.831,82";ARREDOLUCE SRL;ZA72B4B26E;SALDO Fatt.n. 20-00003PA  del 20/03/2020 FATTURA VENDITA;07-04-2020;1188;0;714;2;Spese in conto capitale;2;Investimenti fissi lordi e acquisto di terreni;1;Beni materiali;9;Beni immobili;12;Infrastrutture stradali;07-04-2020;
776;1;687;"287,10";"287,10";RANCAN SNC DI RANCAN LAURA E ALESSANDRO & C;Z0F2B965AD;SALDO Fatt.n. 12/PA  del 31/03/2020 FATTURA;07-04-2020;110;0;72;1;Spese correnti;3;Acquisto di beni e servizi;1;Acquisto di beni;2;Altri beni di consumo;1;"Carta, cancelleria e stampati";07-04-2020;
777;1;688;"878,40";"878,40";COOPERATIVA SOCIALE VENETA ONLUS;Z902BC719A;SALDO Fatt.n. 68/002  del 31/03/2020 FATTURA;09-04-2020;782;0;239;1;Spese correnti;3;Acquisto di beni e servizi;2;Acquisto di servizi;9;Manutenzione ordinaria e riparazioni;8;Manutenzione ordinaria e riparazioni di beni immobili;10-04-2020;
778;1;689;"170,70";"170,70";FOLETTO LUCIANO SRL;Z4B2981DE3;ACCONTO Fatt.n. 2020-E-0000012  del 31/03/2020 FATTURE ELETTRONICHE;09-04-2020;350;0;475;1;Spese correnti;3;Acquisto di beni e servizi;1;Acquisto di beni;2;Altri beni di consumo;999;Altri beni e materiali di consumo n.a.c.;10-04-2020;
779;1;690;"210,70";"210,70";FOLETTO LUCIANO SRL;Z4B2981DE3;SALDO Fatt.n. 2020-E-0000012  del 31/03/2020 FATTURE ELETTRONICHE;09-04-2020;350;0;475;1;Spese correnti;3;Acquisto di beni e servizi;1;Acquisto di beni;2;Altri beni di consumo;999;Altri beni e materiali di consumo n.a.c.;10-04-2020;
780;1;691;"3.038,24";"3.038,24";TEMPO GIANCARLO SRL;Z892877BC1;ACCONTO Fatt.n. 000091-0C0  del 31/03/2020 FATTURA EMESSA ELETTRONICA SPLIT PAYMENT;09-04-2020;352;0;721;1;Spese correnti;3;Acquisto di beni e servizi;2;Acquisto di servizi;9;Manutenzione ordinaria e riparazioni;8;Manutenzione ordinaria e riparazioni di beni immobili;10-04-2020;
781;1;692;"610,41";"610,41";TEMPO GIANCARLO SRL;Z892877BC1;SALDO Fatt.n. 000091-0C0  del 31/03/2020 FATTURA EMESSA ELETTRONICA SPLIT PAYMENT;09-04-2020;352;0;720;1;Spese correnti;3;Acquisto di beni e servizi;2;Acquisto di servizi;9;Manutenzione ordinaria e riparazioni;8;Manutenzione ordinaria e riparazioni di beni immobili;10-04-2020;
782;1;693;"2.357,65";"2.357,65";CIDIELLE COOPERATIVA SOCIALE;7815839A5F;ACCONTO Fatt.n. 41/02  del 29/02/2020;09-04-2020;117;0;115;1;Spese correnti;3;Acquisto di beni e servizi;2;Acquisto di servizi;13;Servizi ausiliari per il funzionamento dell'ente;2;Servizi di pulizia e lavanderia;10-04-2020;
783;1;694;"40,83";"40,83";CIDIELLE COOPERATIVA SOCIALE;7815839A5F;SALDO Fatt.n. 41/02  del 29/02/2020;09-04-2020;117;0;115;1;Spese correnti;3;Acquisto di beni e servizi;2;Acquisto di servizi;13;Servizi ausiliari per il funzionamento dell'ente;2;Servizi di pulizia e lavanderia;10-04-2020;
784;1;695;"162,81";"162,81";KYOCERA DOCUMENT SOLUTIONS ITALIA SPA;Z6E2796919;SALDO Fatt.n. 1010582060  del 29/11/2019 FOTOCOPIATRICI 29 L3 - 60 MESI;09-04-2020;109;0;186;1;Spese correnti;3;Acquisto di beni e servizi;2;Acquisto di servizi;7;Utilizzo di beni di terzi;4;Noleggi di hardware;10-04-2020;
787;1;698;"11.462,35";"11.462,35";TRE ERRE IMPIANTI SRL;Z2A2BB900E;SALDO Fatt.n. 7/PA  del 19/02/2020 FATTURA - CONTRIBUTO AMBIETALE CONAI ASSOLTO;10-04-2020;1203;0;76;2;Spese in conto capitale;2;Investimenti fissi lordi e acquisto di terreni;1;Beni materiali;9;Beni immobili;12;Infrastrutture stradali;10-04-2020;
788;1;699;"1.903,20";"1.903,20";GARBIN GIUSEPPE;Z1225587C8;SALDO Fatt.n. 8  del 17/03/2020 FATTURA;10-04-2020;1184;0;597;2;Spese in conto capitale;2;Investimenti fissi lordi e acquisto di terreni;1;Beni materiali;9;Beni immobili;12;Infrastrutture stradali;10-04-2020;
789;1;700;"27.870,75";"27.870,75";TES SPA;80262406C6;SALDO Fatt.n. 197PA  del 24/03/2020 FATTURA INSTALLAZIONE;10-04-2020;1184;0;597;2;Spese in conto capitale;2;Investimenti fissi lordi e acquisto di terreni;1;Beni materiali;9;Beni immobili;12;Infrastrutture stradali;10-04-2020;
790;1;701;"1.423,72";"1.423,72";SYNTEC SRL;ZCC277D5F8;SALDO Fatt.n. 20155  del 31/03/2020 FATTURA;10-04-2020;589;0;397;1;Spese correnti;3;Acquisto di beni e servizi;2;Acquisto di servizi;9;Manutenzione ordinaria e riparazioni;8;Manutenzione ordinaria e riparazioni di beni immobili;10-04-2020;
791;1;702;"6.832,00";"6.832,00";STT SRL SERVIZI TELEMATICI TELEFONICI;ZD12B3C4B6;SALDO Fatt.n. 000661  del 30/03/2020 FATTURA;10-04-2020;1171;1;705;2;Spese in conto capitale;2;Investimenti fissi lordi e acquisto di terreni;1;Beni materiali;9;Beni immobili;16;Impianti sportivi;10-04-2020;
792;1;703;"951,60";"951,60";SIB SAS DI PINAMONTE ORNELLA;Z1725C9E04;SALDO Fatt.n. 14/FPA-20  del 04/04/2020 FATTURA;10-04-2020;270;0;674;1;Spese correnti;3;Acquisto di beni e servizi;2;Acquisto di servizi;11;Prestazioni professionali e specialistiche;999;Altre prestazioni professionali e specialistiche n.a.c.;10-04-2020;
793;1;704;"43.596,00";"43.596,00";GRUPPO ADIGE BITUMI SPA;8090109923;ACCONTO Fatt.n. 41/2  del 31/03/2020 Fattura Split Payment SEZ. 2;10-04-2020;1187;0;575;2;Spese in conto capitale;2;Investimenti fissi lordi e acquisto di terreni;1;Beni materiali;9;Beni immobili;12;Infrastrutture stradali;10-04-2020;
794;1;705;"10.908,05";"10.908,05";GRUPPO ADIGE BITUMI SPA;8090109923;SALDO Fatt.n. 41/2  del 31/03/2020 Fattura Split Payment SEZ. 2;10-04-2020;1184;2;576;2;Spese in conto capitale;2;Investimenti fissi lordi e acquisto di terreni;1;Beni materiali;9;Beni immobili;12;Infrastrutture stradali;10-04-2020;
795;1;706;"7.725,20";"7.725,20";LAVENETA SRL;ZEB2B2232D;ACCONTO Fatt.n. 7  del 07/04/2020 FATTURA;10-04-2020;352;0;713;1;Spese correnti;3;Acquisto di beni e servizi;2;Acquisto di servizi;9;Manutenzione ordinaria e riparazioni;8;Manutenzione ordinaria e riparazioni di beni immobili;10-04-2020;
796;1;707;"2.022,66";"2.022,66";LAVENETA SRL;ZEB2B2232D;SALDO Fatt.n. 7  del 07/04/2020 FATTURA;10-04-2020;352;0;713;1;Spese correnti;3;Acquisto di beni e servizi;2;Acquisto di servizi;9;Manutenzione ordinaria e riparazioni;8;Manutenzione ordinaria e riparazioni di beni immobili;10-04-2020;
799;1;627;"1,90";"3,80";INTESA SAN PAOLO - TESORERIA COMUNALE;ZB823CBCD9;ENTE EROGATORE SERVIZI POS-CANONE SPESE DIVERSE SERVIZIO POS                           COMUNE DI CALDIERO98 COMM     SETEFI5 (P.     105 -R.     627);14-04-2020;374;0;301;1;Spese correnti;3;Acquisto di beni e servizi;2;Acquisto di servizi;17;Servizi finanziari;2;Oneri per servizio di tesoreria;14-04-2020;
799;2;627;"1,90";"3,80";INTESA SAN PAOLO - TESORERIA COMUNALE;ZB823CBCD9;ENTE EROGATORE SERVIZI POS-CANONE SPESE DIVERSE SERVIZIO POS                           COMUNE DI CALDIERO98 COMM     SETEFI5 (P.     108 -R.     630);14-04-2020;374;0;301;1;Spese correnti;3;Acquisto di beni e servizi;2;Acquisto di servizi;17;Servizi finanziari;2;Oneri per servizio di tesoreria;14-04-2020;
800;1;675;"2.112,70";"2.112,70";GP GLOBAL POWER SPA;Z3F2297FB2;BENEFICIARI DIVERSI-PAGAMENTI DIVERSI             COD DISP 012003270Q8B42 NOME  GLOBAL POWER SPA MANDATO      AA5TZ1C7799 PFM 301 170320    FVSC 1 CIG CIGZ3F2297FB2 IBAN 1000003000 (P.     109 -R.     675);14-04-2020;1174;0;278;2;Spese in conto capitale;2;Investimenti fissi lordi e acquisto di terreni;1;Beni materiali;9;Beni immobili;16;Impianti sportivi;14-04-2020;
801;1;712;"464,79";"464,79";GP GLOBAL POWER SPA;Z3F2297FB2;SALDO Fatt.n. V1/301  del 17/03/2020 Fattura Servizio Connessione Energia Elettrica;14-04-2020;1174;0;278;2;Spese in conto capitale;2;Investimenti fissi lordi e acquisto di terreni;1;Beni materiali;9;Beni immobili;16;Impianti sportivi;14-04-2020;
802;1;774;"-5.868,20";"5.868,20";EISEKO ENGINEERING DI CENZON E POMINI;Z51218EA37;Fatt.n. 1 del 30/03/2020 FATTURA DI STORNO FT. N. 12 - NC;16-04-2020;270;0;757;1;Spese correnti;3;Acquisto di beni e servizi;2;Acquisto di servizi;11;Prestazioni professionali e specialistiche;999;Altre prestazioni professionali e specialistiche n.a.c.;17-04-2020;
802;2;774;"5.868,20";"5.868,20";EISEKO ENGINEERING DI CENZON E POMINI;Z51218EA37;Fatt.n. 15 del 30/03/2020 FATTURA CORRETTA;16-04-2020;270;0;757;1;Spese correnti;3;Acquisto di beni e servizi;2;Acquisto di servizi;11;Prestazioni professionali e specialistiche;999;Altre prestazioni professionali e specialistiche n.a.c.;17-04-2020;
802;3;774;"5.868,20";"5.868,20";EISEKO ENGINEERING DI CENZON E POMINI;Z51218EA37;Fatt.n. 12 del 19/03/2020 FATTURA;16-04-2020;270;0;757;1;Spese correnti;3;Acquisto di beni e servizi;2;Acquisto di servizi;11;Prestazioni professionali e specialistiche;999;Altre prestazioni professionali e specialistiche n.a.c.;17-04-2020;
803;1;775;"632,50";"632,50";MATTARANETTA SOCIETA' COOPERATIVA SOCIALE;Z9F225C229;SALDO Fatt.n. 13/FE  del 31/03/2020 FATTURA IMMEDIATA;16-04-2020;840;0;186;1;Spese correnti;3;Acquisto di beni e servizi;2;Acquisto di servizi;15;Contratti di servizio pubblico;5;Contratti di servizio per il conferimento in discarica dei rifiuti;17-04-2020;
804;1;776;"48,75";"48,75";LA RONDA - SERVIZI DI VIGILANZA;Z4022A6179;ACCONTO Fatt.n. V1-4046  del 31/03/2020;16-04-2020;357;0;263;1;Spese correnti;3;Acquisto di beni e servizi;2;Acquisto di servizi;13;Servizi ausiliari per il funzionamento dell'ente;1;"Servizi di sorveglianza, custodia e accoglienza";17-04-2020;
805;1;777;"80,42";"80,42";LA RONDA - SERVIZI DI VIGILANZA;Z4022A6179;SALDO Fatt.n. V1-4046  del 31/03/2020;16-04-2020;357;0;205;1;Spese correnti;3;Acquisto di beni e servizi;2;Acquisto di servizi;13;Servizi ausiliari per il funzionamento dell'ente;1;"Servizi di sorveglianza, custodia e accoglienza";17-04-2020;
806;1;778;"549,00";"549,00";MYO SRL;ZAE2C096B6;SALDO Fatt.n. 2040/200008347  del 31/03/2020 CLI 00602113 - FATTURA CARTELLE UFF. TECNICO;16-04-2020;110;0;208;1;Spese correnti;3;Acquisto di beni e servizi;1;Acquisto di beni;2;Altri beni di consumo;1;"Carta, cancelleria e stampati";17-04-2020;
807;1;779;"188,73";"188,73";OLIVETTI  SPA;ZA31A76D7F;SALDO Fatt.n. A20020201000009224  del 31/03/2020 FATTURA;16-04-2020;109;0;174;1;Spese correnti;3;Acquisto di beni e servizi;2;Acquisto di servizi;7;Utilizzo di beni di terzi;4;Noleggi di hardware;17-04-2020;
808;1;780;"7.320,00";"7.320,00";PBS SRL;Z222BB8709;SALDO Fatt.n. 01/02/0000012  del 27/03/2020 FATTURA;16-04-2020;1184;0;597;2;Spese in conto capitale;2;Investimenti fissi lordi e acquisto di terreni;1;Beni materiali;9;Beni immobili;12;Infrastrutture stradali;17-04-2020;
809;1;781;"44,80";"44,80";LEGGERE SRL;Z8A2934CC5;SALDO Fatt.n. 4156  del 30/03/2020 FATTURA LIBRI;16-04-2020;681;0;388;1;Spese correnti;3;Acquisto di beni e servizi;1;Acquisto di beni;1;"Giornali, riviste e pubblicazioni";2;Pubblicazioni;17-04-2020;
810;1;782;"16.341,93";"16.341,93";CONSORZIO DI BACINO VERONA DUE DEL QUADRILATERO; ;SALDO Fatt.n. 000144/PA  del 08/04/2020 FATTURA;16-04-2020;840;0;196;1;Spese correnti;3;Acquisto di beni e servizi;2;Acquisto di servizi;15;Contratti di servizio pubblico;5;Contratti di servizio per il conferimento in discarica dei rifiuti;17-04-2020;
811;1;783;"452,99";"452,99";SISE SISTEMI SEGNALETICI SPA;ZA92A89D97;SALDO Fatt.n. 113/F4  del 24/03/2020 FATTURA;17-04-2020;955;0;663;1;Spese correnti;3;Acquisto di beni e servizi;2;Acquisto di servizi;9;Manutenzione ordinaria e riparazioni;8;Manutenzione ordinaria e riparazioni di beni immobili;17-04-2020;
812;1;784;"8.015,37";"8.015,37";SISE SISTEMI SEGNALETICI SPA;ZA92A89D97;ACCONTO Fatt.n. 114/F4  del 24/03/2020 FATTURA;17-04-2020;955;0;775;1;Spese correnti;3;Acquisto di beni e servizi;2;Acquisto di servizi;9;Manutenzione ordinaria e riparazioni;8;Manutenzione ordinaria e riparazioni di beni immobili;17-04-2020;
813;1;785;"12.794,34";"12.794,34";SISE SISTEMI SEGNALETICI SPA;ZA92A89D97;SALDO Fatt.n. 114/F4  del 24/03/2020 FATTURA;17-04-2020;955;0;663;1;Spese correnti;3;Acquisto di beni e servizi;2;Acquisto di servizi;9;Manutenzione ordinaria e riparazioni;8;Manutenzione ordinaria e riparazioni di beni immobili;17-04-2020;
814;1;786;"357,35";"357,35";ACQUE VERONESI SCARL;Z9B226AA6F;SALDO Fatt.n. 0360120190900001500  del 18/03/2019 F/Fattura preventivo;17-04-2020;359;0;205;1;Spese correnti;3;Acquisto di beni e servizi;2;Acquisto di servizi;5;Utenze e canoni;5;Acqua;17-04-2020;
815;1;787;"40,26";"40,26";GSE - GESTORE SERVIZI ENERGETICI; ;SALDO Fatt.n. 2020014173  del 24/03/2020 FATTURA CORRISPETTIVO A COPERTURA DEGLI ONERI DI GESTIONE CONVENZIONE: T06H246214207;17-04-2020;268;0;594;1;Spese correnti;3;Acquisto di beni e servizi;2;Acquisto di servizi;16;Servizi amministrativi;999;Altre spese per servizi amministrativi;17-04-2020;
816;1;789;"40,26";"40,26";GSE - GESTORE SERVIZI ENERGETICI; ;SALDO Fatt.n. 2019019861  del 05/06/2019 FATTURA CORRISPETTIVO A COPERTURA DEGLI ONERI DI GESTIONE CONVENZIONE: T06H246214207;17-04-2020;268;0;594;1;Spese correnti;3;Acquisto di beni e servizi;2;Acquisto di servizi;16;Servizi amministrativi;999;Altre spese per servizi amministrativi;21-04-2020;
817;1;788;"787,87";"787,87";ENI SPA;ZBE2C5AA39;SALDO Fatt.n. 19900071  del 12/03/2020 FATTURA;17-04-2020;290;0;203;1;Spese correnti;3;Acquisto di beni e servizi;1;Acquisto di beni;2;Altri beni di consumo;2;"Carburanti, combustibili e lubrificanti";17-04-2020;
818;1;790;"134,20";"134,20";ALIT TECNOLOGIES SRL;ZDE2C7CC25;SALDO Fatt.n. 2020-AFAT6-0000002  del 30/03/2020 Fattura di vendita PA;21-04-2020;465;0;249;1;Spese correnti;3;Acquisto di beni e servizi;2;Acquisto di servizi;99;Altri servizi;999;Altri servizi diversi n.a.c.;21-04-2020;
819;1;791;"22,41";"22,41";LEGGERE SRL;Z7E2C5EA5A;SALDO Fatt.n. 4154  del 30/03/2020 FATTURA LIBRI;21-04-2020;681;0;209;1;Spese correnti;3;Acquisto di beni e servizi;1;Acquisto di beni;1;"Giornali, riviste e pubblicazioni";2;Pubblicazioni;21-04-2020;
820;1;792;"152,46";"152,46";LEGGERE SRL;Z7E2C5EA5A;SALDO Fatt.n. 4155  del 30/03/2020 FATTURA LIBRI;21-04-2020;681;0;209;1;Spese correnti;3;Acquisto di beni e servizi;1;Acquisto di beni;1;"Giornali, riviste e pubblicazioni";2;Pubblicazioni;21-04-2020;
821;1;793;"2.398,48";"2.398,48";CIDIELLE COOPERATIVA SOCIALE;7815839A5F;SALDO Fatt.n. 66/02  del 31/03/2020 FATTURA PULIZIE MESE DI MARZO 2020;21-04-2020;117;0;115;1;Spese correnti;3;Acquisto di beni e servizi;2;Acquisto di servizi;13;Servizi ausiliari per il funzionamento dell'ente;2;Servizi di pulizia e lavanderia;21-04-2020;
822;1;794;"570,86";"570,86";MINISTERO INTERNO - DIREZIONE CENTR SERV DEMOGRAFICI; ;Liquidazione diritti per il rilascio di carte didentita elettroniche MARZO 2020 (N. 34 CARTE DI IDENTITA);21-04-2020;325;0;73;1;Spese correnti;4;Trasferimenti correnti;1;Trasferimenti correnti a Amministrazioni Pubbliche;1;Trasferimenti correnti a Amministrazioni Centrali;1;Trasferimenti correnti a Ministeri;21-04-2020;
824;1;811;"4.240,00";"4.240,00";AMMINISTRATORI COMUNALI; ;INDENNITA DI CARICA SPETTANTE PER IL MESE DI APRILE 2020;21-04-2020;10;0;4;1;Spese correnti;3;Acquisto di beni e servizi;2;Acquisto di servizi;1;Organi e incarichi istituzionali dell'amministrazione;1;Organi istituzionali dell'amministrazione - Indennità;04-05-2020;
846;1;846;"850,00";"850,00";BOVI MIRKO; ;liquidazione compenso Sig. Mirko Bovi - saldo determinazione incarico n. 13 del 19.11.2019 - richiesta di liquidazione prot n. 2982 del 27.02.2020;21-04-2020;273;0;604;1;Spese correnti;3;Acquisto di beni e servizi;2;Acquisto di servizi;99;Altri servizi;999;Altri servizi diversi n.a.c.;04-05-2020;
912;1;812;"1.110,00";"1.110,00";MAG SPA;Z702475FD0;ASSICURAZIONI  POLIZZE ASSICURATIVE DEL COMUNE DI CALDIERO PERIODO 2019-2020. DETERMINAZIONI - ALL RISKS;23-04-2020;120;0;223;1;Spese correnti;10;Altre spese correnti;4;Premi di assicurazione;1;Premi di assicurazione contro i danni;999;Altri premi di assicurazione contro i danni;27-04-2020;
913;1;813;"54,00";"54,00";MAG SPA;ZED26FA2DB;ASSICURAZIONI  POLIZZE ASSICURATIVE DEL COMUNE DI CALDIERO PERIODO 2019-2020. DETERMINAZIONI - INFORTUNI CUMULATIVA;23-04-2020;120;0;224;1;Spese correnti;10;Altre spese correnti;4;Premi di assicurazione;1;Premi di assicurazione contro i danni;999;Altri premi di assicurazione contro i danni;27-04-2020;
914;1;814;"83,34";"83,34";MAG SPA;ZB7279FA46;ASSICURAZIONI  POLIZZE ASSICURATIVE DEL COMUNE DI CALDIERO PERIODO 2019-2020. DETERMINAZIONI - KASKO;23-04-2020;120;0;225;1;Spese correnti;10;Altre spese correnti;4;Premi di assicurazione;1;Premi di assicurazione contro i danni;999;Altri premi di assicurazione contro i danni;27-04-2020;
915;1;815;"258,34";"258,34";MAG SPA;Z68279FA8D;ASSICURAZIONI  POLIZZE ASSICURATIVE DEL COMUNE DI CALDIERO PERIODO 2019-2020. DETERMINAZIONI - TUTELA LEGALE;23-04-2020;120;0;226;1;Spese correnti;10;Altre spese correnti;4;Premi di assicurazione;1;Premi di assicurazione contro i danni;999;Altri premi di assicurazione contro i danni;27-04-2020;
916;1;816;"501,58";"501,58";MAG SPA;ZDF2786D2E;ASSICURAZIONI  POLIZZE ASSICURATIVE DEL COMUNE DI CALDIERO PERIODO 2019-2020. DETERMINAZIONI - RC PATRIMONIALE;23-04-2020;120;0;227;1;Spese correnti;10;Altre spese correnti;4;Premi di assicurazione;1;Premi di assicurazione contro i danni;999;Altri premi di assicurazione contro i danni;27-04-2020;
917;1;817;"266,00";"266,00";MAG SPA;Z1F2786C6A;ASSICURAZIONI  POLIZZE ASSICURATIVE DEL COMUNE DI CALDIERO PERIODO 2019-2020. DETERMINAZIONI - FURTO;23-04-2020;120;0;228;1;Spese correnti;10;Altre spese correnti;4;Premi di assicurazione;1;Premi di assicurazione contro i danni;999;Altri premi di assicurazione contro i danni;27-04-2020;
918;1;818;"5.028,84";"5.028,84";TEMPO GIANCARLO SRL;ZFA292E0B6;SALDO Fatt.n. 000105-0C0  del 17/04/2020 FT EMESSA ELETTRONICA SPLIT PAYMENT;23-04-2020;1188;0;402;2;Spese in conto capitale;2;Investimenti fissi lordi e acquisto di terreni;1;Beni materiali;9;Beni immobili;12;Infrastrutture stradali;27-04-2020;
920;1;713;"667,16";"667,16";SOENERGY SRL;7961490D60;BENEFICIARI DIVERSI-PAGAMENTI DIVERSI             COD DISP 012004020VTYFA NOME  SOENERGY S R L MANDATO        99Z1610053624A299 PFM 4614033 Fattura 201073428 del 12 03 20 Scad 14 0 (P.     110 -R.     713);23-04-2020;582;0;375;1;Spese correnti;3;Acquisto di beni e servizi;2;Acquisto di servizi;5;Utenze e canoni;6;Gas;27-04-2020;
921;1;820;"146,78";"146,78";SOENERGY SRL;7961490D60;SALDO Fatt.n. 201073428  del 12/03/2020 FATTURA FORNITURA GAS;23-04-2020;582;0;375;1;Spese correnti;3;Acquisto di beni e servizi;2;Acquisto di servizi;5;Utenze e canoni;6;Gas;27-04-2020;
922;1;714;"1.350,40";"1.350,40";SOENERGY SRL;7961490D60;BENEFICIARI DIVERSI-PAGAMENTI DIVERSI             COD DISP 012004020VTYFG NOME  SOENERGY S R L MANDATO        99Z1610053624A299 PFM 4614032 Fattura 201073427 del 12 03 20 Scad 14 0 (P.     111 -R.     714);23-04-2020;884;0;379;1;Spese correnti;3;Acquisto di beni e servizi;2;Acquisto di servizi;5;Utenze e canoni;6;Gas;27-04-2020;
923;1;821;"297,09";"297,09";SOENERGY SRL;7961490D60;SALDO Fatt.n. 201073427  del 12/03/2020 FATTURA FORNITURA GAS;23-04-2020;884;0;379;1;Spese correnti;3;Acquisto di beni e servizi;2;Acquisto di servizi;5;Utenze e canoni;6;Gas;27-04-2020;
924;1;715;"260,41";"260,41";SOENERGY SRL;7961490D60;BENEFICIARI DIVERSI-PAGAMENTI DIVERSI             COD DISP 012004020VTYF6 NOME  SOENERGY S R L MANDATO        99Z1610053624A299 PFM 4614034 Fattura 201073429 del 12 03 20 Scad 14 0 (P.     112 -R.     715);23-04-2020;112;0;372;1;Spese correnti;3;Acquisto di beni e servizi;2;Acquisto di servizi;5;Utenze e canoni;6;Gas;27-04-2020;
925;1;822;"57,29";"57,29";SOENERGY SRL;7961490D60;SALDO Fatt.n. 201073429  del 12/03/2020 FATTURA FORNITURA GAS;23-04-2020;112;0;372;1;Spese correnti;3;Acquisto di beni e servizi;2;Acquisto di servizi;5;Utenze e canoni;6;Gas;27-04-2020;
926;1;716;"575,85";"575,85";SOENERGY SRL;7961490D60;BENEFICIARI DIVERSI-PAGAMENTI DIVERSI             COD DISP 012004020VTYET NOME  SOENERGY S R L MANDATO        99Z1610053624A299 PFM 4614036 Fattura 201073431 del 12 03 20 Scad 14 0 (P.     113 -R.     716);23-04-2020;212;0;373;1;Spese correnti;3;Acquisto di beni e servizi;2;Acquisto di servizi;5;Utenze e canoni;6;Gas;27-04-2020;
927;1;823;"126,69";"126,69";SOENERGY SRL;7961490D60;SALDO Fatt.n. 201073431  del 12/03/2020 FATTURA FORNITURA GAS;23-04-2020;212;0;373;1;Spese correnti;3;Acquisto di beni e servizi;2;Acquisto di servizi;5;Utenze e canoni;6;Gas;27-04-2020;
928;1;717;"2.800,06";"2.800,06";SOENERGY SRL;7961490D60;BENEFICIARI DIVERSI-PAGAMENTI DIVERSI             COD DISP 012004020VTYEZ NOME  SOENERGY S R L MANDATO        99Z1610053624A299 PFM 4614035 Fattura 201073430 del 12 03 20 Scad 14 0 (P.     114 -R.     717);23-04-2020;888;0;378;1;Spese correnti;3;Acquisto di beni e servizi;2;Acquisto di servizi;5;Utenze e canoni;6;Gas;27-04-2020;
929;1;824;"616,01";"616,01";SOENERGY SRL;7961490D60;SALDO Fatt.n. 201073430  del 12/03/2020 FATTURA FORNITURA GAS;23-04-2020;888;0;378;1;Spese correnti;3;Acquisto di beni e servizi;2;Acquisto di servizi;5;Utenze e canoni;6;Gas;27-04-2020;
930;1;718;"1.186,98";"1.186,98";SOENERGY SRL;7961490D60;BENEFICIARI DIVERSI-PAGAMENTI DIVERSI             COD DISP 012004020VTYFJ NOME  SOENERGY S R L MANDATO        99Z1610053624A299 PFM 4614030 Fattura 201073425 del 12 03 20 Scad 14 0 (P.     115 -R.     718);23-04-2020;353;0;376;1;Spese correnti;3;Acquisto di beni e servizi;2;Acquisto di servizi;5;Utenze e canoni;6;Gas;27-04-2020;
931;1;825;"260,99";"260,99";SOENERGY SRL;7961490D60;SALDO Fatt.n. 201073425  del 12/03/2020 FATTURA FORNITURA GAS;23-04-2020;353;0;376;1;Spese correnti;3;Acquisto di beni e servizi;2;Acquisto di servizi;5;Utenze e canoni;6;Gas;27-04-2020;
932;1;719;"1.532,63";"1.532,63";SOENERGY SRL;7961490D60;BENEFICIARI DIVERSI-PAGAMENTI DIVERSI             COD DISP 012004020VTYFR NOME  SOENERGY S R L MANDATO        99Z1610053624A299 PFM 4614031 Fattura 201073426 del 12 03 20 Scad 14 0 (P.     116 -R.     719);23-04-2020;542;0;374;1;Spese correnti;3;Acquisto di beni e servizi;2;Acquisto di servizi;5;Utenze e canoni;6;Gas;27-04-2020;
933;1;826;"337,18";"337,18";SOENERGY SRL;7961490D60;SALDO Fatt.n. 201073426  del 12/03/2020 FATTURA FORNITURA GAS;23-04-2020;542;0;374;1;Spese correnti;3;Acquisto di beni e servizi;2;Acquisto di servizi;5;Utenze e canoni;6;Gas;27-04-2020;
934;1;802;"701,42";"701,42";GP GLOBAL POWER SPA;7961277D9A;BENEFICIARI DIVERSI-PAGAMENTI DIVERSI             COD DISP 01200414045URY NOME  GLOBAL POWER SPA MANDATO      AA5TZ1C7799 PFM 64456 010420  FEC 0 CIG CIG7961277D9A IBAN 10000030001 (P.     117 -R.     802);23-04-2020;886;0;369;1;Spese correnti;3;Acquisto di beni e servizi;2;Acquisto di servizi;5;Utenze e canoni;4;Energia elettrica;27-04-2020;
935;1;827;"154,31";"154,31";GP GLOBAL POWER SPA;7961277D9A;SALDO Fatt.n. V0/64456  del 01/04/2020 Fattura Energia Elettrica;23-04-2020;886;0;369;1;Spese correnti;3;Acquisto di beni e servizi;2;Acquisto di servizi;5;Utenze e canoni;4;Energia elettrica;27-04-2020;
936;1;803;"1.519,30";"1.519,30";GP GLOBAL POWER SPA;7961277D9A;BENEFICIARI DIVERSI-PAGAMENTI DIVERSI             COD DISP 01200414045URP NOME  GLOBAL POWER SPA MANDATO      AA5TZ1C7799 PFM 64458 010420  FEC 0 CIG CIG7961277D9A IBAN 10000030001 (P.     118 -R.     803);23-04-2020;111;0;362;1;Spese correnti;3;Acquisto di beni e servizi;2;Acquisto di servizi;5;Utenze e canoni;4;Energia elettrica;27-04-2020;
937;1;828;"334,25";"334,25";GP GLOBAL POWER SPA;7961277D9A;SALDO Fatt.n. V0/64458  del 01/04/2020 Fattura Energia Elettrica;23-04-2020;111;0;362;1;Spese correnti;3;Acquisto di beni e servizi;2;Acquisto di servizi;5;Utenze e canoni;4;Energia elettrica;27-04-2020;
938;1;805;"8.037,36";"8.037,36";GP GLOBAL POWER SPA;7961277D9A;BENEFICIARI DIVERSI-PAGAMENTI DIVERSI             COD DISP 01200414045URT NOME  GLOBAL POWER SPA MANDATO      AA5TZ1C7799 PFM 64457 010420  FEC 0 CIG CIG7961277D9A IBAN 10000030001 (P.     120 -R.     805);23-04-2020;960;0;371;1;Spese correnti;3;Acquisto di beni e servizi;2;Acquisto di servizi;5;Utenze e canoni;4;Energia elettrica;27-04-2020;
939;1;829;"1.768,22";"1.768,22";GP GLOBAL POWER SPA;7961277D9A;SALDO Fatt.n. V0/64457  del 01/04/2020 Fattura Energia Elettrica;23-04-2020;960;0;371;1;Spese correnti;3;Acquisto di beni e servizi;2;Acquisto di servizi;5;Utenze e canoni;4;Energia elettrica;27-04-2020;
940;1;806;"1.242,63";"1.242,63";GP GLOBAL POWER SPA;7961277D9A;BENEFICIARI DIVERSI-PAGAMENTI DIVERSI             COD DISP 01200414045USV NOME  GLOBAL POWER SPA MANDATO      AA5TZ1C7799 PFM 64461 010420  FEC 0 CIG CIG7961277D9A IBAN 10000030001 (P.     121 -R.     806);23-04-2020;541;0;365;1;Spese correnti;3;Acquisto di beni e servizi;2;Acquisto di servizi;5;Utenze e canoni;4;Energia elettrica;27-04-2020;
941;1;830;"124,26";"124,26";GP GLOBAL POWER SPA;7961277D9A;SALDO Fatt.n. V0/64461  del 01/04/2020 Fattura Energia Elettrica;23-04-2020;541;0;365;1;Spese correnti;3;Acquisto di beni e servizi;2;Acquisto di servizi;5;Utenze e canoni;4;Energia elettrica;27-04-2020;
942;1;807;"151,86";"151,86";GP GLOBAL POWER SPA;7961277D9A;BENEFICIARI DIVERSI-PAGAMENTI DIVERSI             COD DISP 01200414045URN NOME  GLOBAL POWER SPA MANDATO      AA5TZ1C7799 PFM 64459 010420  FEC 0 CIG CIG7961277D9A IBAN 10000030001 (P.     122 -R.     807);23-04-2020;211;0;363;1;Spese correnti;3;Acquisto di beni e servizi;2;Acquisto di servizi;5;Utenze e canoni;4;Energia elettrica;27-04-2020;
943;1;831;"33,41";"33,41";GP GLOBAL POWER SPA;7961277D9A;SALDO Fatt.n. V0/64459  del 01/04/2020 Fattura Energia Elettrica;23-04-2020;211;0;363;1;Spese correnti;3;Acquisto di beni e servizi;2;Acquisto di servizi;5;Utenze e canoni;4;Energia elettrica;27-04-2020;
944;1;808;"403,02";"403,02";GP GLOBAL POWER SPA;7961277D9A;BENEFICIARI DIVERSI-PAGAMENTI DIVERSI             COD DISP 01200414045UT0 NOME  GLOBAL POWER SPA MANDATO      AA5TZ1C7799 PFM 64460 010420  FEC 0 CIG CIG7961277D9A IBAN 10000030001 (P.     123 -R.     808);23-04-2020;354;0;364;1;Spese correnti;3;Acquisto di beni e servizi;2;Acquisto di servizi;5;Utenze e canoni;4;Energia elettrica;27-04-2020;
945;1;832;"88,66";"88,66";GP GLOBAL POWER SPA;7961277D9A;SALDO Fatt.n. V0/64460  del 01/04/2020 Fattura Energia Elettrica;23-04-2020;354;0;364;1;Spese correnti;3;Acquisto di beni e servizi;2;Acquisto di servizi;5;Utenze e canoni;4;Energia elettrica;27-04-2020;
946;1;804;"751,35";"751,35";GP GLOBAL POWER SPA;7961277D9A;BENEFICIARI DIVERSI-PAGAMENTI DIVERSI             COD DISP 01200414045URR NOME  GLOBAL POWER SPA MANDATO      AA5TZ1C7799 PFM 64455 010420  FEC 0 CIG CIG7961277D9A IBAN 10000030001 (P.     119 -R.     804);27-04-2020;881;0;367;1;Spese correnti;3;Acquisto di beni e servizi;2;Acquisto di servizi;5;Utenze e canoni;4;Energia elettrica;27-04-2020;
947;1;804;"0,10";"0,10";GP GLOBAL POWER SPA;7961277D9A;BENEFICIARI DIVERSI-PAGAMENTI DIVERSI             COD DISP 01200414045URR NOME  GLOBAL POWER SPA MANDATO      AA5TZ1C7799 PFM 64455 010420  FEC 0 CIG CIG7961277D9A IBAN 10000030001 (P.     119 -R.     804);27-04-2020;881;0;367;1;Spese correnti;3;Acquisto di beni e servizi;2;Acquisto di servizi;5;Utenze e canoni;4;Energia elettrica;27-04-2020;
948;1;833;"165,32";"165,32";GP GLOBAL POWER SPA;7961277D9A;SALDO Fatt.n. V0/64455  del 01/04/2020 Fattura Energia Elettrica;27-04-2020;881;0;367;1;Spese correnti;3;Acquisto di beni e servizi;2;Acquisto di servizi;5;Utenze e canoni;4;Energia elettrica;27-04-2020;
949;1;809;"315,00";"315,00";GP GLOBAL POWER SPA;7961277D9A;BENEFICIARI DIVERSI-PAGAMENTI DIVERSI             COD DISP 01200414045URL NOME  GLOBAL POWER SPA MANDATO      AA5TZ1C7799 PFM 64454 010420  FEC 0 CIG CIG7961277D9A IBAN 10000030001 (P.     124 -R.     809);27-04-2020;885;0;368;1;Spese correnti;3;Acquisto di beni e servizi;2;Acquisto di servizi;5;Utenze e canoni;4;Energia elettrica;27-04-2020;
950;1;834;"69,30";"69,30";GP GLOBAL POWER SPA;7961277D9A;SALDO Fatt.n. V0/64454  del 01/04/2020 Fattura Energia Elettrica;27-04-2020;885;0;368;1;Spese correnti;3;Acquisto di beni e servizi;2;Acquisto di servizi;5;Utenze e canoni;4;Energia elettrica;27-04-2020;
951;1;810;"65,82";"65,82";GP GLOBAL POWER SPA;7961277D9A;BENEFICIARI DIVERSI-PAGAMENTI DIVERSI             COD DISP 01200414045USZ NOME  GLOBAL POWER SPA MANDATO      AA5TZ1C7799 PFM 64463 010420  FEC 0 CIG CIG7961277D9A IBAN 10000030001 (P.     125 -R.     810);27-04-2020;951;0;370;1;Spese correnti;3;Acquisto di beni e servizi;2;Acquisto di servizi;5;Utenze e canoni;4;Energia elettrica;27-04-2020;
952;1;835;"14,48";"14,48";GP GLOBAL POWER SPA;7961277D9A;SALDO Fatt.n. V0/64463  del 01/04/2020 Fattura Energia Elettrica;27-04-2020;951;0;370;1;Spese correnti;3;Acquisto di beni e servizi;2;Acquisto di servizi;5;Utenze e canoni;4;Energia elettrica;27-04-2020;
953;1;836;"36.872,14";"36.872,14";SERIT SRL SERV. IGIENE TERRITORIO;7910634DAD;SALDO Fatt.n. 338/FEL  del 15/04/2020 FATTURA;27-04-2020;840;0;195;1;Spese correnti;3;Acquisto di beni e servizi;2;Acquisto di servizi;15;Contratti di servizio pubblico;4;Contratti di servizio per la raccolta rifiuti;27-04-2020;
954;1;837;"384,30";"384,30";ECONOMICS LIVING LAB COOPERATIVA SOCIALE;Z332996C9F;SALDO Fatt.n. 9  del 23/04/2020;27-04-2020;483;0;493;1;Spese correnti;3;Acquisto di beni e servizi;2;Acquisto di servizi;16;Servizi amministrativi;999;Altre spese per servizi amministrativi;27-04-2020;
955;1;838;"305,00";"305,00";RATTICIDA VENETA SAS DI FERLENGA M. E G.;ZF31F0A617;SALDO Fatt.n. 49/PA  del 20/04/2020 FATTURA;27-04-2020;465;0;453;1;Spese correnti;3;Acquisto di beni e servizi;2;Acquisto di servizi;99;Altri servizi;999;Altri servizi diversi n.a.c.;27-04-2020;
957;1;842;"3.420,30";"3.420,30";PROVINCIA DI VERONA; ;CONVENZIONE SISTEMA BIBLIOTECARIO DELLA PROVINCIA DI VERONA (SBPVR) 10.05.2019-09.05.2022. - LIQUIDAZIONE CONTRIBUTO ANNO 2020.;30-04-2020;683;0;329;1;Spese correnti;4;Trasferimenti correnti;1;Trasferimenti correnti a Amministrazioni Pubbliche;2;Trasferimenti correnti a Amministrazioni Locali;2;Trasferimenti correnti a Province;30-04-2020;
958;1;843;"108,24";"108,24";ABACO SPA;7408612407;SALDO Fatt.n. 2020120001522  del 07/04/2020 FATTURA;30-04-2020;382;0;166;1;Spese correnti;3;Acquisto di beni e servizi;2;Acquisto di servizi;3;Aggi di riscossione;999;Altri aggi di riscossione n.a.c.;30-04-2020;
959;1;844;"251,83";"251,83";ABACO SPA;7408612407;SALDO Fatt.n. 2020120001540  del 07/04/2020 FATTURA;30-04-2020;382;0;166;1;Spese correnti;3;Acquisto di beni e servizi;2;Acquisto di servizi;3;Aggi di riscossione;999;Altri aggi di riscossione n.a.c.;30-04-2020;
960;1;845;"138,21";"138,21";TELECOM ITALIA;Z3E288BEB4;SALDO Fatt.n. 7X00528716  del 14/02/2020 2BIM 2020;30-04-2020;113;0;272;1;Spese correnti;3;Acquisto di beni e servizi;2;Acquisto di servizi;5;Utenze e canoni;2;Telefonia mobile;30-04-2020;
966;1;850;"1.921,50";"1.921,50";TEZZA LEONARDO;ZE82C7FAF6;SALDO Fatt.n. 21  del 21/04/2020 FATTURA;07-05-2020;270;0;251;1;Spese correnti;3;Acquisto di beni e servizi;2;Acquisto di servizi;11;Prestazioni professionali e specialistiche;999;Altre prestazioni professionali e specialistiche n.a.c.;08-05-2020;
967;1;851;"129,17";"129,17";LA RONDA - SERVIZI DI VIGILANZA;Z4022A6179;SALDO Fatt.n. V1-6211  del 29/04/2020 FATTURA;07-05-2020;357;0;263;1;Spese correnti;3;Acquisto di beni e servizi;2;Acquisto di servizi;13;Servizi ausiliari per il funzionamento dell'ente;1;"Servizi di sorveglianza, custodia e accoglienza";08-05-2020;
968;1;852;"1.293,20";"1.293,20";COOPERATIVA SOCIALE VENETA ONLUS;Z902BC719A;SALDO Fatt.n. 103/002  del 30/04/2020 FATTURA;07-05-2020;782;0;239;1;Spese correnti;3;Acquisto di beni e servizi;2;Acquisto di servizi;9;Manutenzione ordinaria e riparazioni;8;Manutenzione ordinaria e riparazioni di beni immobili;08-05-2020;
969;1;853;"47.239,30";"47.239,30";UNIONE DI COMUNI VERONA EST; ;EMERGENZA EPIDEMIOLOGICA DA COVID-19.  TRASFERIMENTO ALLUNIONE DI COMUNI VERONA EST DEL FONDO DI SOLIDARIETA ALIMENTARE.;07-05-2020;5;1;305;1;Spese correnti;4;Trasferimenti correnti;1;Trasferimenti correnti a Amministrazioni Pubbliche;2;Trasferimenti correnti a Amministrazioni Locali;5;Trasferimenti correnti a Unioni di Comuni;08-05-2020;
970;1;854;"300,00";"300,00";ASSOCIAZIONE BANCO ALIMENTARE DEL VENETO ODV; ;EROGAZIONE CONTRIBUTO ECONOMICO STRAORDINARIO AL BANCO ALIMENTARE DEL VENETO FINALIZZATO AL SOSTEGNO DELLEMERGENZA EPIDEMIOLOGICA DA COVID 19.;07-05-2020;925;0;321;1;Spese correnti;4;Trasferimenti correnti;2;Trasferimenti correnti a Famiglie;2;Interventi assistenziali;999;Altri assegni e sussidi assistenziali;08-05-2020;
971;1;855;"184,69";"184,69";MINISTERO INTERNO - DIREZIONE CENTR SERV DEMOGRAFICI; ;Liquidazione diritti per rilascio n. 11 carte didentita elettroniche APRILE 2020.;07-05-2020;325;0;73;1;Spese correnti;4;Trasferimenti correnti;1;Trasferimenti correnti a Amministrazioni Pubbliche;1;Trasferimenti correnti a Amministrazioni Centrali;1;Trasferimenti correnti a Ministeri;08-05-2020;
973;1;857;"1.860,38";"1.860,38";CONSORZIO DI BACINO VERONA DUE DEL QUADRILATERO;Z3B2BA1641;SALDO Fatt.n. 000210/PA  del 28/04/2020 FATTURA ACQUISTO SACCHETTI SECCO 60 LT + BIDONI VERDE 240 LT;07-05-2020;842;0;3;1;Spese correnti;3;Acquisto di beni e servizi;1;Acquisto di beni;2;Altri beni di consumo;999;Altri beni e materiali di consumo n.a.c.;08-05-2020;
974;1;858;"16.616,11";"16.616,11";CONSORZIO DI BACINO VERONA DUE DEL QUADRILATERO; ;SALDO Fatt.n. 000220/PA  del 29/04/2020 FATTURA;07-05-2020;840;0;196;1;Spese correnti;3;Acquisto di beni e servizi;2;Acquisto di servizi;15;Contratti di servizio pubblico;5;Contratti di servizio per il conferimento in discarica dei rifiuti;08-05-2020;
975;1;859;"40,31";"40,31";EDILTOSI SRL;Z9B248C873;SALDO Fatt.n. 001955  del 30/04/2020 FATTURA;07-05-2020;350;0;505;1;Spese correnti;3;Acquisto di beni e servizi;1;Acquisto di beni;2;Altri beni di consumo;999;Altri beni e materiali di consumo n.a.c.;08-05-2020;
976;1;860;"11.330,00";"11.330,00";SNAM RETE GAS SPA;Z902CA0658;SALDO Fatt.n. 2020001003  del 30/04/2020 FATTURA: Met: Der. per Colognola ai Colli DN 200 e DN 100 Realizzazione di protezione su gasdotto;07-05-2020;1193;0;339;2;Spese in conto capitale;2;Investimenti fissi lordi e acquisto di terreni;1;Beni materiali;9;Beni immobili;12;Infrastrutture stradali;08-05-2020;
977;1;861;"666,72";"666,72";MAG SPA;ZB22C6A4EE;ASSICURAZIONI - AFFIDAMENTO COPERTURA ASSICURATIVA  "POLIZZA KASKO"  PERIODO 01/05.2020 - 31.12.2022 - CIG: ZB22C6A4EE - DETERMINAZIONI;11-05-2020;120;0;322;1;Spese correnti;10;Altre spese correnti;4;Premi di assicurazione;1;Premi di assicurazione contro i danni;999;Altri premi di assicurazione contro i danni;12-05-2020;
978;1;862;"1.407,00";"1.407,00";MAG SPA;Z5E2C6A4D7;ASSICURAZIONI - AFFIDAMENTO COPERTURA ASSICURATIVA  "POLIZZA INFORTUNI CUMULATIVA"  PERIODO 01.05.2020 - 31.12.2022 CIG: Z5E2C6A4D7 - DETERMINAZIONI;11-05-2020;120;0;323;1;Spese correnti;10;Altre spese correnti;4;Premi di assicurazione;1;Premi di assicurazione contro i danni;999;Altri premi di assicurazione contro i danni;12-05-2020;
979;1;863;"6.666,64";"6.666,64";MAG SPA;Z0A2C6A4C0;ASSICURAZIONI - AFFIDAMENTO COPERTURA ASSICURATIVA  "POLIZZA ALL RISKS"  PERIODO 01.05.2020 - 31.12.2022  CIG. Z0A2C6A4C0 - DETERMINAZIONI;11-05-2020;120;0;324;1;Spese correnti;10;Altre spese correnti;4;Premi di assicurazione;1;Premi di assicurazione contro i danni;2;Premi di assicurazione su beni immobili;12-05-2020;
980;1;864;"1.972,05";"1.972,05";MAG SPA;Z782C6A4FC;ASSICURAZIONI - AFFIDAMENTO COPERTURA ASSICURATIVA  "POLIZZA TUTELA LEGALE"  - PERIODO 01/05/2020  31/12/2022 - CIG: Z782C6A4FC - DETERMINAZIONI;11-05-2020;120;0;325;1;Spese correnti;10;Altre spese correnti;4;Premi di assicurazione;1;Premi di assicurazione contro i danni;999;Altri premi di assicurazione contro i danni;12-05-2020;
981;1;865;"1.300,00";"1.300,00";PARROCCHIA "SAN LORENZO MARTIRE"; ;EROGAZIONE CONTRIBUTO ECONOMICO ALLA PARROCCHIA DI STRA DI COLOGNOLA AI COLLI E ALLA PARROCCHIA DI CALDIERINO PER LE ATTIVITA DI GREST 2019.;11-05-2020;891;2;661;1;Spese correnti;4;Trasferimenti correnti;4;Trasferimenti correnti a Istituzioni Sociali Private;1;Trasferimenti correnti a Istituzioni Sociali Private;1;Trasferimenti correnti a Istituzioni Sociali Private;12-05-2020;
982;1;926;"244,00";"244,00";TIPOGRAFIA CENTRALE SAS DI GIONA F & C;Z8D2CA23EE;SALDO Fatt.n. FATTPA 12_20  del 29/04/2020 fattura;15-05-2020;147;0;261;1;Spese correnti;3;Acquisto di beni e servizi;2;Acquisto di servizi;2;"Organizzazione eventi, pubblicita` e servizi per trasferta";999;"Altre spese per relazioni pubbliche, convegni e mostre, pubblicita` n.a.c";15-05-2020;
983;1;927;"2.398,48";"2.398,48";CIDIELLE COOPERATIVA SOCIALE;7815839A5F;SALDO Fatt.n. 87/02  del 30/04/2020 FATTURA MESE DI APRILE 2020;15-05-2020;117;0;115;1;Spese correnti;3;Acquisto di beni e servizi;2;Acquisto di servizi;13;Servizi ausiliari per il funzionamento dell'ente;2;Servizi di pulizia e lavanderia;15-05-2020;
984;1;928;"-0,01";"12,60";LEGGERE SRL;Z7E2C5EA5A;SALDO Fatt.n. 4524  del 30/04/2020 FATTURA LIBRI;15-05-2020;681;0;209;1;Spese correnti;3;Acquisto di beni e servizi;1;Acquisto di beni;1;"Giornali, riviste e pubblicazioni";2;Pubblicazioni;15-05-2020;
984;2;928;"12,61";"12,60";LEGGERE SRL;Z7E2C5EA5A;SALDO Fatt.n. 4524  del 30/04/2020 FATTURA LIBRI;15-05-2020;681;0;209;1;Spese correnti;3;Acquisto di beni e servizi;1;Acquisto di beni;1;"Giornali, riviste e pubblicazioni";2;Pubblicazioni;15-05-2020;
985;1;929;"349,83";"349,83";LEGGERE SRL;Z7E2C5EA5A;SALDO Fatt.n. 4525  del 30/04/2020 FATTURA LIBRI;15-05-2020;681;0;209;1;Spese correnti;3;Acquisto di beni e servizi;1;Acquisto di beni;1;"Giornali, riviste e pubblicazioni";2;Pubblicazioni;15-05-2020;
986;1;930;"159,12";"159,12";RANCAN SNC DI RANCAN LAURA E ALESSANDRO & C;Z0F2B965AD;SALDO Fatt.n. 14/PA  del 30/04/2020 Contributo Ambientale Conai assolto.;15-05-2020;110;0;72;1;Spese correnti;3;Acquisto di beni e servizi;1;Acquisto di beni;2;Altri beni di consumo;1;"Carta, cancelleria e stampati";15-05-2020;
987;1;931;"17,64";"17,64";COMUNE DI SAN GIOVANNI LUPATOTO; ;RIMBORSO SPESE DI NOTIFICA ATTI EFFETTUATE DA PARTE DI ALTRI COMUNI - RIF. N. 1794-1795-1796 BOZZA MARCO;15-05-2020;843;0;87;1;Spese correnti;3;Acquisto di beni e servizi;2;Acquisto di servizi;3;Aggi di riscossione;999;Altri aggi di riscossione n.a.c.;15-05-2020;
988;1;932;"122,00";"122,00";E-DISTRIBUZIONE SPA; ;SALDO Fatt.n. 0000920900002207  del 08/05/2020 FATTURA CONTRIBUTI A FORFAIT DA CONNESSIONI BT - EDERLE - CODICE DI RINTRACCIABILITA 248977526;15-05-2020;541;0;343;1;Spese correnti;3;Acquisto di beni e servizi;2;Acquisto di servizi;5;Utenze e canoni;4;Energia elettrica;15-05-2020;
990;1;947;"1.116,38";"1.116,38";MATTARANETTA SOCIETA' COOPERATIVA SOCIALE;Z9F225C229;SALDO Fatt.n. 17/FE  del 30/04/2020 FATTURA IMMEDIATA;18-05-2020;840;0;186;1;Spese correnti;3;Acquisto di beni e servizi;2;Acquisto di servizi;15;Contratti di servizio pubblico;5;Contratti di servizio per il conferimento in discarica dei rifiuti;19-05-2020;
991;1;948;"2.240,08";"2.240,08";CLIMATECH SRL;Z452A5347E;SALDO Fatt.n. 944/20  del 12/05/2020 FATTURA;18-05-2020;114;0;712;1;Spese correnti;3;Acquisto di beni e servizi;2;Acquisto di servizi;9;Manutenzione ordinaria e riparazioni;4;Manutenzione ordinaria e riparazioni di impianti e macchinari;19-05-2020;
992;1;949;"1.386,43";"1.386,43";TERMOSANITARIA PASINATO SRL;ZF62B201DD;SALDO Fatt.n. 2020-FATPA-0000025  del 07/05/2020 FATTURA DI VENDITA;18-05-2020;352;0;716;1;Spese correnti;3;Acquisto di beni e servizi;2;Acquisto di servizi;9;Manutenzione ordinaria e riparazioni;8;Manutenzione ordinaria e riparazioni di beni immobili;19-05-2020;
993;1;950;"19,26";"19,26";ACQUE VERONESI SCARL; ;SALDO Fatt.n. 0350120200800365700  del 30/04/2020 FATTURA B/Bollettazione;18-05-2020;359;0;205;1;Spese correnti;3;Acquisto di beni e servizi;2;Acquisto di servizi;5;Utenze e canoni;5;Acqua;19-05-2020;
994;1;951;"226,69";"226,69";ACQUE VERONESI SCARL; ;SALDO Fatt.n. 0350120200800365800  del 30/04/2020 FATTURA B/Bollettazione;18-05-2020;359;0;205;1;Spese correnti;3;Acquisto di beni e servizi;2;Acquisto di servizi;5;Utenze e canoni;5;Acqua;19-05-2020;
995;1;952;"131,88";"131,88";ACQUE VERONESI SCARL; ;SALDO Fatt.n. 0350120200800366700  del 30/04/2020 FATTURA B/Bollettazione;18-05-2020;359;0;205;1;Spese correnti;3;Acquisto di beni e servizi;2;Acquisto di servizi;5;Utenze e canoni;5;Acqua;19-05-2020;
996;1;953;"-11,19";"88,09";ACQUE VERONESI SCARL; ;Fatt.n. 0350120190800216600 del 12/03/2019 NOTA DI CREDITO B/Bollettazione;18-05-2020;359;0;205;1;Spese correnti;3;Acquisto di beni e servizi;2;Acquisto di servizi;5;Utenze e canoni;5;Acqua;19-05-2020;
996;2;953;"99,28";"88,09";ACQUE VERONESI SCARL; ;Fatt.n. 0350120200800366800 del 30/04/2020 FATTURA B/Bollettazione;18-05-2020;359;0;205;1;Spese correnti;3;Acquisto di beni e servizi;2;Acquisto di servizi;5;Utenze e canoni;5;Acqua;19-05-2020;
997;1;954;"171,62";"171,62";EKOLOGICA SERVICE SRL;Z142CB5980;SALDO Fatt.n. 507  del 30/04/2020 FATTURA;18-05-2020;350;0;270;1;Spese correnti;3;Acquisto di beni e servizi;1;Acquisto di beni;2;Altri beni di consumo;999;Altri beni e materiali di consumo n.a.c.;19-05-2020;
998;1;955;"5.490,00";"5.490,00";NEBULA FIBER SRL;ZCD2CA6925;SALDO Fatt.n. 1/PA  del 12/05/2020 FATTURA;18-05-2020;356;0;268;1;Spese correnti;3;Acquisto di beni e servizi;2;Acquisto di servizi;19;Servizi informatici e di telecomunicazioni;4;Servizi di rete per trasmissione dati e VoIP e relativa manutenzione;19-05-2020;
999;1;956;"11.956,00";"11.956,00";CAFFINI ENGINEERING SRL;Z382C20DCD;SALDO Fatt.n. 13  del 07/05/2020 FATTURA;18-05-2020;270;1;159;1;Spese correnti;3;Acquisto di beni e servizi;2;Acquisto di servizi;11;Prestazioni professionali e specialistiche;999;Altre prestazioni professionali e specialistiche n.a.c.;19-05-2020;
1000;1;1037;"4.240,00";"4.240,00";AMMINISTRATORI COMUNALI; ;INDENNITA DI CARICA SPETTANTE PER IL MESE DI MAGGIO 2020;20-05-2020;10;0;4;1;Spese correnti;3;Acquisto di beni e servizi;2;Acquisto di servizi;1;Organi e incarichi istituzionali dell'amministrazione;1;Organi istituzionali dell'amministrazione - Indennità;28-05-2020;
1070;1;972;"19,26";"19,26";ACQUE VERONESI SCARL; ;SALDO Fatt.n. 0350120200800367500  del 30/04/2020 FATTURA B/Bollettazione;21-05-2020;359;0;205;1;Spese correnti;3;Acquisto di beni e servizi;2;Acquisto di servizi;5;Utenze e canoni;5;Acqua;25-05-2020;
1071;1;973;"54,82";"54,82";ACQUE VERONESI SCARL; ;SALDO Fatt.n. 0350120200800368000  del 30/04/2020 FATTURA B/Bollettazione;21-05-2020;359;0;205;1;Spese correnti;3;Acquisto di beni e servizi;2;Acquisto di servizi;5;Utenze e canoni;5;Acqua;25-05-2020;
1072;1;974;"16,61";"16,61";ACQUE VERONESI SCARL; ;SALDO Fatt.n. 0350120200800367900  del 30/04/2020 FATTURA B/Bollettazione;21-05-2020;359;0;205;1;Spese correnti;3;Acquisto di beni e servizi;2;Acquisto di servizi;5;Utenze e canoni;5;Acqua;25-05-2020;
1073;1;975;"5,93";"5,93";ACQUE VERONESI SCARL; ;SALDO Fatt.n. 0350120200800367700  del 30/04/2020 FATTURA B/Bollettazione;21-05-2020;359;0;205;1;Spese correnti;3;Acquisto di beni e servizi;2;Acquisto di servizi;5;Utenze e canoni;5;Acqua;25-05-2020;
1074;1;976;"19,26";"19,26";ACQUE VERONESI SCARL; ;SALDO Fatt.n. 0350120200800367600  del 30/04/2020 FATTURA B/Bollettazione;21-05-2020;359;0;205;1;Spese correnti;3;Acquisto di beni e servizi;2;Acquisto di servizi;5;Utenze e canoni;5;Acqua;25-05-2020;
1075;1;977;"93,35";"93,35";ACQUE VERONESI SCARL; ;SALDO Fatt.n. 0350120200800367400  del 30/04/2020 FATTURA B/Bollettazione;21-05-2020;359;0;205;1;Spese correnti;3;Acquisto di beni e servizi;2;Acquisto di servizi;5;Utenze e canoni;5;Acqua;25-05-2020;
1076;1;978;"109,65";"109,65";ACQUE VERONESI SCARL; ;SALDO Fatt.n. 0350120200800367300  del 30/04/2020 FATTURA B/Bollettazione;21-05-2020;359;0;205;1;Spese correnti;3;Acquisto di beni e servizi;2;Acquisto di servizi;5;Utenze e canoni;5;Acqua;25-05-2020;
1077;1;979;"20,75";"20,75";ACQUE VERONESI SCARL; ;SALDO Fatt.n. 0350120200800367200  del 30/04/2020 FATTURA B/Bollettazione;21-05-2020;359;0;205;1;Spese correnti;3;Acquisto di beni e servizi;2;Acquisto di servizi;5;Utenze e canoni;5;Acqua;25-05-2020;
1078;1;980;"96,31";"96,31";ACQUE VERONESI SCARL; ;SALDO Fatt.n. 0350120200800367100  del 30/04/2020 FATTURA B/Bollettazione;21-05-2020;359;0;205;1;Spese correnti;3;Acquisto di beni e servizi;2;Acquisto di servizi;5;Utenze e canoni;5;Acqua;25-05-2020;
1079;1;981;"54,82";"54,82";ACQUE VERONESI SCARL; ;SALDO Fatt.n. 0350120200800367000  del 30/04/2020 FATTURA B/Bollettazione;21-05-2020;359;0;205;1;Spese correnti;3;Acquisto di beni e servizi;2;Acquisto di servizi;5;Utenze e canoni;5;Acqua;25-05-2020;
1080;1;982;"130,38";"130,38";ACQUE VERONESI SCARL; ;SALDO Fatt.n. 0350120200800366900  del 30/04/2020 FATTURA B/Bollettazione;21-05-2020;359;0;205;1;Spese correnti;3;Acquisto di beni e servizi;2;Acquisto di servizi;5;Utenze e canoni;5;Acqua;25-05-2020;
1081;1;983;"16,61";"16,61";ACQUE VERONESI SCARL; ;SALDO Fatt.n. 0350120200800370900  del 30/04/2020 FATTURA B/Bollettazione;21-05-2020;879;0;206;1;Spese correnti;3;Acquisto di beni e servizi;2;Acquisto di servizi;5;Utenze e canoni;5;Acqua;25-05-2020;
1082;1;984;"16,61";"16,61";ACQUE VERONESI SCARL; ;SALDO Fatt.n. 0350120200800370800  del 30/04/2020 FATTURA B/Bollettazione;21-05-2020;879;0;206;1;Spese correnti;3;Acquisto di beni e servizi;2;Acquisto di servizi;5;Utenze e canoni;5;Acqua;25-05-2020;
1083;1;985;"15,09";"15,09";ACQUE VERONESI SCARL; ;SALDO Fatt.n. 0350120200800370600  del 30/04/2020 FATTURA B/Bollettazione;21-05-2020;879;0;206;1;Spese correnti;3;Acquisto di beni e servizi;2;Acquisto di servizi;5;Utenze e canoni;5;Acqua;25-05-2020;
1084;1;986;"19,26";"19,26";ACQUE VERONESI SCARL; ;SALDO Fatt.n. 0350120200800370500  del 30/04/2020 FATTURA B/Bollettazione;21-05-2020;879;0;206;1;Spese correnti;3;Acquisto di beni e servizi;2;Acquisto di servizi;5;Utenze e canoni;5;Acqua;25-05-2020;
1085;1;987;"19,26";"19,26";ACQUE VERONESI SCARL; ;SALDO Fatt.n. 0350120200800370400  del 30/04/2020 FATTURA B/Bollettazione;21-05-2020;879;0;206;1;Spese correnti;3;Acquisto di beni e servizi;2;Acquisto di servizi;5;Utenze e canoni;5;Acqua;25-05-2020;
1086;1;988;"19,26";"19,26";ACQUE VERONESI SCARL; ;SALDO Fatt.n. 0350120200800370300  del 30/04/2020 FATTURA B/Bollettazione;21-05-2020;879;0;206;1;Spese correnti;3;Acquisto di beni e servizi;2;Acquisto di servizi;5;Utenze e canoni;5;Acqua;25-05-2020;
1087;1;989;"19,26";"19,26";ACQUE VERONESI SCARL; ;SALDO Fatt.n. 0350120200800370200  del 30/04/2020 FATTURA B/Bollettazione;22-05-2020;879;0;206;1;Spese correnti;3;Acquisto di beni e servizi;2;Acquisto di servizi;5;Utenze e canoni;5;Acqua;25-05-2020;
1088;1;990;"19,26";"19,26";ACQUE VERONESI SCARL; ;SALDO Fatt.n. 0350120200800370100  del 30/04/2020 FATTURA B/Bollettazione;22-05-2020;879;0;206;1;Spese correnti;3;Acquisto di beni e servizi;2;Acquisto di servizi;5;Utenze e canoni;5;Acqua;25-05-2020;
1089;1;991;"19,26";"19,26";ACQUE VERONESI SCARL; ;SALDO Fatt.n. 0350120200800370000  del 30/04/2020 FATTURA B/Bollettazione;22-05-2020;879;0;206;1;Spese correnti;3;Acquisto di beni e servizi;2;Acquisto di servizi;5;Utenze e canoni;5;Acqua;25-05-2020;
1090;1;992;"19,26";"19,26";ACQUE VERONESI SCARL; ;SALDO Fatt.n. 0350120200800369900  del 30/04/2020 FATTURA B/Bollettazione;22-05-2020;879;0;206;1;Spese correnti;3;Acquisto di beni e servizi;2;Acquisto di servizi;5;Utenze e canoni;5;Acqua;25-05-2020;
1091;1;993;"1,49";"1,49";ACQUE VERONESI SCARL; ;SALDO Fatt.n. 0350120200800369800  del 30/04/2020 FATTURA B/Bollettazione;22-05-2020;879;0;206;1;Spese correnti;3;Acquisto di beni e servizi;2;Acquisto di servizi;5;Utenze e canoni;5;Acqua;25-05-2020;
